Workbook

Sheet Pdiss
A1: ALLEGRO A81407 DESIGN SPREADSHEET - Rev. 1.2 | H1: =t_on_min_Boost*J19*10^-6 -> 0.121 | AN1: 0
B2: Reset = | C2: 0 | D2: If any cell gives an error, check for valid entries, then set "RESET" to "1" then back to "0" | H2: Buck | I2: Vin | J2: =Vin_nom -> 13.5 | K2: =Vin_min_bb -> 3.5 | L2: =K2+(Vin_max_bb-Vin_min_bb)/49 -> 3.795918367 | M2: 4.091836735 | N2: 4.387755102 | O2: 4.683673469 | P2: 4.979591837 | Q2: 5.275510204 | R2: 5.571428571 | S2: 5.867346939 | T2: 6.163265306 | U2: 6.459183673 | V2: 6.755102041 | W2: 7.051020408 | X2: 7.346938776 | Y2: 7.642857143 | Z2: 7.93877551 | AA2: 8.234693878 | AB2: 8.530612245 | AC2: 8.826530612 | AD2: 9.12244898 | AE2: 9.418367347 | AF2: 9.714285714 | AG2: 10.01020408 | AH2: 10.30612245 | AI2: 10.60204082 | AJ2: 10.89795918 | AK2: 11.19387755 | AL2: 11.48979592 | AM2: 11.78571429 | AN2: 12.08163265 | AO2: 12.37755102 | AP2: 12.67346939 | AQ2: 12.96938776 | AR2: =AQ2+(Vin_max_bb-Vin_min_bb)/49 -> 13.26530612 | AS2: 13.56122449 | AT2: 13.85714286 | AU2: 14.15306122 | AV2: 14.44897959 | AW2: 14.74489796 | AX2: 15.04081633 | AY2: 15.33673469 | AZ2: 15.63265306 | BA2: 15.92857143 | BB2: 16.2244898 | BC2: 16.52040816 | BD2: 16.81632653 | BE2: 17.1122449 | BF2: 17.40816327 | BG2: 17.70408163 | BH2: 18 | BI2: 36 | BJ2: Vin
A3: INSTRUCTIONS: Enter design goals and component values in the white boxes. Ensure "Iterative Calculation" is enabled under File -> Options -> Formulas | H3: Buck-Boost | I3: Pdiss total | J3: =J33+J36+J39+J42+J45+J21*Icc -> 0.9545173335 | K3: 1.092321173 | L3: 1.028757336 | M3: 0.9823543796 | N3: 0.9477021722 | O3: 0.9214172998 | P3: 0.9012867306 | Q3: 0.88579585 | R3: 0.8738765456 | S3: 0.8648111456 | T3: 0.858052253 | U3: 0.8531814714 | V3: 0.8498806087 | W3: 0.8432708337 | X3: 0.8428147553 | Y3: 0.8432835902 | Z3: 0.8445643274 | AA3: 0.8434706001 | AB3: 0.8475326804 | AC3: 0.8518878611 | AD3: 0.8565267384 | AE3: 0.8614410745 | AF3: 0.8666236226 | AG3: 0.8720679823 | AH3: 0.87776848 | AI3: 0.8837200681 | AJ3: 0.8899182413 | AK3: 0.8963589657 | AL3: 0.903038619 | AM3: 0.9099539388 | AN3: 0.9171019794 | AO3: 0.9244800744 | AP3: =AP33+AP36+AP39+AP42+AP45+AP21*Icc -> 0.9320858039 | AQ3: 0.9399169672 | AR3: 0.9479715581 | AS3: 0.9562477443 | AT3: 0.9647438486 | AU3: 0.973458333 | AV3: 0.9823897847 | AW3: 0.9915369033 | AX3: 1.00089849 | AY3: 1.010473438 | AZ3: 1.020260724 | BA3: 1.030259399 | BB3: 1.040468584 | BC3: 1.050887463 | BD3: 1.056645858 | BE3: 1.061781415 | BF3: 1.066929284 | BG3: 1.07208885 | BH3: 1.07725954 | BI3: 1.401924193 | BJ3: Pdiss total | BK3: Buck-Boost
A4: Select Topology: | B4: Buck-Boost | C4: Select either Buck or Buck Boost operation | I4: Tj | J4: =IF(Reset=1,150,Ta+Rth_ja*J3) -> 153.63552 | K4: 157.7696352 | L4: 155.8627201 | M4: 154.4706314 | N4: 153.4310652 | O4: 152.642519 | P4: 152.0386019 | Q4: 151.5738755 | R4: 151.2162964 | S4: 150.9443344 | T4: 150.7415676 | U4: 150.5954441 | V4: 150.4964183 | W4: 150.298125 | X4: 150.2844427 | Y4: 150.2985077 | Z4: 150.3369298 | AA4: 150.304118 | AB4: 150.4259804 | AC4: 150.5566358 | AD4: 150.6958022 | AE4: 150.8432322 | AF4: 150.9987087 | AG4: 151.1620395 | AH4: 151.3330544 | AI4: 151.511602 | AJ4: 151.6975472 | AK4: 151.890769 | AL4: 152.0911586 | AM4: 152.2986182 | AN4: 152.5130594 | AO4: 152.7344022 | AP4: =IF(Reset=1,150,Ta+Rth_ja*AP3) -> 152.9625741 | AQ4: 153.197509 | AR4: 153.4391467 | AS4: 153.6874323 | AT4: 153.9423155 | AU4: 154.20375 | AV4: 154.4716935 | AW4: 154.7461071 | AX4: 155.0269547 | AY4: 155.3142031 | AZ4: 155.6078217 | BA4: 155.907782 | BB4: 156.2140575 | BC4: 156.5266239 | BD4: 156.6993757 | BE4: 156.8534425 | BF4: 157.0078785 | BG4: 157.1626655 | BH4: 157.3177862 | BI4: 167.0577258 | BJ4: Tj
A5: VARIABLES | B5: MIN | C5: TYP | E5: MAX | F5: UNITS | G5: COMMENTS | H5: Yes | K5: =K2 -> 3.5 | L5: =L2 -> 3.795918367 | M5: 4.091836735 | N5: 4.387755102 | O5: 4.683673469 | P5: 4.979591837 | Q5: 5.275510204 | R5: 5.571428571 | S5: 5.867346939 | T5: 6.163265306 | U5: 6.459183673 | V5: 6.755102041 | W5: 7.051020408 | X5: 7.346938776 | Y5: 7.642857143 | Z5: 7.93877551 | AA5: 8.234693878 | AB5: 8.530612245 | AC5: 8.826530612 | AD5: 9.12244898 | AE5: 9.418367347 | AF5: 9.714285714 | AG5: 10.01020408 | AH5: 10.30612245 | AI5: 10.60204082 | AJ5: 10.89795918 | AK5: 11.19387755 | AL5: 11.48979592 | AM5: 11.78571429 | AN5: 12.08163265 | AO5: 12.37755102 | AP5: 12.67346939 | AQ5: 12.96938776 | AR5: 13.26530612 | AS5: 13.56122449 | AT5: 13.85714286 | AU5: 14.15306122 | AV5: 14.44897959 | AW5: 14.74489796 | AX5: 15.04081633 | AY5: 15.33673469 | AZ5: 15.63265306 | BA5: 15.92857143 | BB5: 16.2244898 | BC5: 16.52040816 | BD5: 16.81632653 | BE5: 17.1122449 | BF5: 17.40816327 | BG5: 17.70408163 | BH5: 18 | BI5: =BI2 -> 36
A6: Vin Buck Boost | B6: 3.5 | C6: 13.5 | E6: 18 | F6: V | H6: No
A7: Boost Input Current | B7: =(K61+K62)/K2 -> 1.347105404 | C7: =(J61+J62)/Vin_nom -> 0.3143521802 | E7: =(BH61+BH62)/BH2 -> 0.2433690552 | F7: A
A8: Vin Buck | B8: 6.5 | C8: ‒ | E8: 18 | F8: V | H8: Buck Boost Mode Calculations | J8: =IF(J14>J12,"Boost >","buck >") -> buck > | K8: buck > | L8: buck > | M8: buck > | N8: buck > | O8: buck > | P8: buck > | Q8: buck > | R8: buck > | S8: buck > | T8: buck > | U8: buck > | V8: buck > | W8: buck > | X8: buck > | Y8: buck > | Z8: buck > | AA8: buck > | AB8: buck > | AC8: buck > | AD8: buck > | AE8: buck > | AF8: buck > | AG8: buck > | AH8: buck > | AI8: buck > | AJ8: buck > | AK8: buck > | AL8: buck > | AM8: buck > | AN8: buck > | AO8: buck > | AP8: =IF(AP14>AP12,"Boost >","buck >") -> buck > | AQ8: buck > | AR8: buck > | AS8: buck > | AT8: buck > | AU8: buck > | AV8: buck > | AW8: buck > | AX8: buck > | AY8: buck > | AZ8: buck > | BA8: buck > | BB8: buck > | BC8: buck > | BD8: buck > | BE8: buck > | BF8: buck > | BG8: buck > | BH8: buck > | BI8: buck > | BK8: Buck Boost Mode Calculations
A9: Buck Input Current | B9: =(K111+K112)/K65 -> 0.6022472828 | C9: =(J111+J112)/Vin_nom -> 0.3035950042 | E9: =(BH111+BH112)/BH65 -> 0.2368603972 | F9: A | G9: Buck is a tiny bit more efficient - no losses due to removal of the boost diode | I9: V1 | J9: =IF(Reset=1,J2-Vreg,IF(J14=0,J2-(J22-J23/2)*(J30+dcr*10^-3)-J21-J52,J2-(J22-J23/2)*(J30+R_ds_ON_boost+dcr*10^-3))) -> 7.756732359 | K9: =IF(Reset=1,K2,IF(K14=0,K2-(K22-K23/2)*(K30+dcr*10^-3)-K21-K52,K2-(K22-K23/2)*(K30+R_ds_ON_boost+dcr*10^-3))) -> 3.055720198 | L9: 3.39160643 | M9: 3.720995965 | N9: 4.045364617 | O9: 4.365755919 | P9: 4.682931481 | Q9: 4.997460033 | R9: 5.30977539 | S9: 5.620222127 | T9: 5.929070519 | U9: 6.236536176 | V9: 6.54279417 | W9: 6.857774623 | X9: 7.161619604 | Y9: 7.464659893 | Z9: 7.766975327 | AA9: 2.492425657 | AB9: 2.788307466 | AC9: 3.084186636 | AD9: 3.380063254 | AE9: 3.675937392 | AF9: 3.971809117 | AG9: 4.267678485 | AH9: 4.563545548 | AI9: 4.859410351 | AJ9: 5.155272934 | AK9: 5.451133335 | AL9: 5.746991586 | AM9: 6.042847715 | AN9: 6.33870175 | AO9: 6.634553715 | AP9: 6.93040363 | AQ9: =IF(Reset=1,AQ2,IF(AQ14=0,AQ2-(AQ22-AQ23/2)*(AQ30+dcr*10^-3)-AQ21-AQ52,AQ2-(AQ22-AQ23/2)*(AQ30+R_ds_ON_boost+dcr*10^-3))) -> 7.226251517 | AR9: 7.522097393 | AS9: 7.817941275 | AT9: 8.113783177 | AU9: 8.409623114 | AV9: 8.705461099 | AW9: 9.001297142 | AX9: 9.297131255 | AY9: 9.592963448 | AZ9: 9.88879373 | BA9: 10.18462211 | BB9: 10.48044859 | BC9: 10.77627319 | BD9: 11.07213973 | BE9: 11.36801188 | BF9: 11.66388392 | BG9: 11.95975585 | BH9: 12.25562768 | BI9: 30.2527057 | BJ9: V1
A10: VREG | B10: ‒ | C10: 5.35 | E10: ‒ | F10: V | I10: V2 | J10: =IF(Reset=1,0,IF(J12>J14,IF(J14=0,0,Vreg+J48+(J22-J23/2)*(J30+dcr*10^-3)-J2),J48+(J22-J23/2)*(R_ds_ON_boost+dcr*10^-3))) -> 0 | K10: =IF(Reset=1,K48,IF(K12>K14,IF(K14=0,0,Vreg+K48+(K22-K23/2)*(K30+dcr*10^-3)-K2),K48+(K22-K23/2)*(R_ds_ON_boost+dcr*10^-3))) -> 2.536326648 | L10: 2.200159298 | M10: 1.870645495 | N10: 1.546240059 | O10: 1.225861217 | P10: 0.9087254992 | Q10: 0.5935517143 | R10: 0.2791632024 | S10: -0.03312252874 | T10: -0.3436089493 | U10: -0.6525392235 | V10: -0.9601105684 | W10: -1.276286587 | X10: -1.581191485 | Y10: -1.885185986 | Z10: -2.188360255 | AA10: 0 | AB10: 0 | AC10: 0 | AD10: 0 | AE10: 0 | AF10: 0 | AG10: 0 | AH10: 0 | AI10: 0 | AJ10: 0 | AK10: 0 | AL10: 0 | AM10: 0 | AN10: 0 | AO10: 0 | AP10: 0 | AQ10: =IF(Reset=1,AQ48,IF(AQ12>AQ14,IF(AQ14=0,0,Vreg+AQ48+(AQ22-AQ23/2)*(AQ30+dcr*10^-3)-AQ2),AQ48+(AQ22-AQ23/2)*(R_ds_ON_boost+dcr*10^-3))) -> 0 | AR10: 0 | AS10: 0 | AT10: 0 | AU10: 0 | AV10: 0 | AW10: 0 | AX10: 0 | AY10: 0 | AZ10: 0 | BA10: 0 | BB10: 0 | BC10: 0 | BD10: 0 | BE10: 0 | BF10: 0 | BG10: 0 | BH10: 0 | BI10: 0 | BJ10: V2
A11: I out ext | B11: ‒ | C11: ‒ | E11: 0 | F11: A | G11: External load applied directly to VREG output | H11: ton min (LG) | I11: V3 | J11: =IF(Reset=1,Vreg,Vreg+J48+J52+(J22-J23/2)*dcr*10^-3) -> 5.873692447 | K11: =Vreg+K48+K52+(K22-K23/2)*dcr*10^-3 -> 6.021431132 | L11: 6.00589047 | M11: 5.9928413 | N11: 5.981719178 | O11: 5.972123627 | P11: 5.963761583 | Q11: 5.955714206 | R11: 5.946047385 | S11: 5.936440999 | T11: 5.927827436 | U11: 5.920071023 | V11: 5.913061199 | W11: 5.906697027 | X11: 5.900923101 | Y11: 5.895665532 | Z11: 5.890870744 | AA11: 5.87741061 | AB11: 5.877077191 | AC11: 5.876766603 | AD11: 5.876476582 | AE11: 5.876205151 | AF11: 5.87595058 | AG11: 5.875711347 | AH11: 5.875486106 | AI11: 5.875273667 | AJ11: 5.875072967 | AK11: 5.874883062 | AL11: 5.874703102 | AM11: 5.874532328 | AN11: 5.874370054 | AO11: 5.874215661 | AP11: 5.874068588 | AQ11: =Vreg+AQ48+AQ52+(AQ22-AQ23/2)*dcr*10^-3 -> 5.873928328 | AR11: 5.873794417 | AS11: 5.873666435 | AT11: 5.873543997 | AU11: 5.873426749 | AV11: 5.873314369 | AW11: 5.87320656 | AX11: 5.873103049 | AY11: 5.873003583 | AZ11: 5.872907931 | BA11: 5.872815877 | BB11: 5.872727222 | BC11: 5.87264178 | BD11: 5.87255937 | BE11: 5.872479841 | BF11: 5.872403046 | BG11: 5.872328848 | BH11: 5.872257116 | BI11: 5.870123665 | BJ11: V3
A12: VUC Select | B12: ‒ | C12: ‒ | E12: 3.3 | F12: V | G12: Select VUC output voltage from pull-down menu | H12: 55 | I12: Buck duty | J12: =IF(Reset=1,0.7,IF(J14=0,IF(J11/(J9+J11)>1,1,J11/(J9+J11)),IF(IF((J11*(1-J14)+J10*J14)/(J9+J10)>J14,(J10*J14-J11+J9*J14)/(J10-J11),(J11*(1-J14)+J10*J14)/(J9+J10))>$B$183,$B$183,IF((J11*(1-J14)+J10*J14)/(J9+J10)>J14,(J10*J14-J11+J9*J14)/(J10-J11),(J11*(1-J14)+J10*J14)/(J9+J10))))) -> 0.4309251202 | K12: =IF(Reset=1,0.7,IF(K14=0,IF(K11/(K9+K11)>1,1,K11/(K9+K11)),IF(IF((K11*(1-K14)+K10*K14)/(K9+K10)>K14,(K10*K14-K11+K9*K14)/(K10-K11),(K11*(1-K14)+K10*K14)/(K9+K10))>$B$183,$B$183,IF((K11*(1-K14)+K10*K14)/(K9+K10)>K14,(K10*K14-K11+K9*K14)/(K10-K11),(K11*(1-K14)+K10*K14)/(K9+K10))))) -> 0.7097600914 | L12: 0.6958480339 | M12: 0.6853669011 | N12: 0.6772875065 | O12: 0.6709431269 | P12: 0.6658847272 | Q12: 0.6617260987 | R12: 0.6581037011 | S12: 0.6550473363 | T12: 0.6524976863 | U12: 0.650357066 | V12: 0.6485502008 | W12: 0.6461354077 | X12: 0.6449040527 | Y12: 0.6438549214 | Z12: 0.6429595965 | AA12: 0.7022133316 | AB12: 0.6782246171 | AC12: 0.6558193583 | AD12: 0.6348459236 | AE12: 0.6151714261 | AF12: 0.5966789159 | AG12: 0.5792650627 | AH12: 0.5628382307 | AI12: 0.5473168709 | AJ12: 0.5326281714 | AK12: 0.5187069183 | AL12: 0.5054945307 | AM12: 0.4929382387 | AN12: 0.4809903805 | AO12: 0.4696077995 | AP12: =IF(Reset=1,0.7,IF(AP14=0,IF(AP11/(AP9+AP11)>1,1,AP11/(AP9+AP11)),IF(IF((AP11*(1-AP14)+AP10*AP14)/(AP9+AP10)>AP14,(AP10*AP14-AP11+AP9*AP14)/(AP10-AP11),(AP11*(1-AP14)+AP10*AP14)/(AP9+AP10))>$B$183,$B$183,IF((AP11*(1-AP14)+AP10*AP14)/(AP9+AP10)>AP14,(AP10*AP14-AP11+AP9*AP14)/(AP10-AP11),(AP11*(1-AP14)+AP10*AP14)/(AP9+AP10))))) -> 0.4587513244 | AQ12: 0.4483853197 | AR12: 0.4384772959 | AS12: 0.4289975699 | AT12: 0.4199189683 | AU12: 0.4112165683 | AV12: 0.4028674687 | AW12: 0.3948505898 | AX12: 0.3871464956 | AY12: 0.3797372367 | AZ12: 0.3726062108 | BA12: 0.3657380388 | BB12: 0.3591184543 | BC12: 0.3527342046 | BD12: 0.3465720656 | BE12: 0.340621366 | BF12: 0.3348715186 | BG12: 0.3293125256 | BH12: 0.3239350417 | BI12: 0.1625045371 | BJ12: Buck duty
A13: Iout VUC | B13: ‒ | C13: ‒ | E13: 0.25 | F13: A | G13: Enter VUC operating current. Maximum current is 0.375A | H13: Min Boost Duty | J13: =IF(m_*J2+b_<0,0,m_*J2+b_) -> 0 | K13: =IF(m_*K2+b_<0,0,m_*K2+b_) -> 0.6344444444 | L13: =IF(m_*L2+b_<0,0,m_*L2+b_) -> 0.6004686319 | M13: 0.5664928193 | N13: 0.5325170068 | O13: 0.4985411943 | P13: 0.4645653817 | Q13: 0.4305895692 | R13: 0.3966137566 | S13: 0.3626379441 | T13: 0.3286621315 | U13: 0.294686319 | V13: 0.2607105064 | W13: 0.2267346939 | X13: 0.1927588813 | Y13: 0.1587830688 | Z13: 0.1248072562 | AA13: 0.09083144369 | AB13: 0.05685563114 | AC13: 0.02287981859 | AD13: 0 | AE13: 0 | AF13: 0 | AG13: 0 | AH13: 0 | AI13: 0 | AJ13: 0 | AK13: 0 | AL13: 0 | AM13: 0 | AN13: 0 | AO13: 0 | AP13: =IF(m_*AP2+b_<0,0,m_*AP2+b_) -> 0 | AQ13: 0 | AR13: 0 | AS13: 0 | AT13: 0 | AU13: 0 | AV13: 0 | AW13: 0 | AX13: 0 | AY13: 0 | AZ13: 0 | BA13: 0 | BB13: 0 | BC13: 0 | BD13: 0 | BE13: 0 | BF13: 0 | BG13: 0 | BH13: 0 | BI13: =IF(m_*BI2+b_<0,0,m_*BI2+b_) -> 0
A14: Iout V5A | B14: ‒ | C14: ‒ | E14: 0.1 | F14: A | G14: Enter V5A operating current. Maximum current is 0.150A | H14: 0.121 | I14: Boost duty | J14: =IF(J13<D_boost_min,0,J13) -> 0 | K14: =IF(K13<D_boost_min,0,K13) -> 0.6344444444 | L14: =IF(L13<D_boost_min,0,L13) -> 0.6004686319 | M14: =IF(M13<D_boost_min,0,M13) -> 0.5664928193 | N14: 0.5325170068 | O14: 0.4985411943 | P14: 0.4645653817 | Q14: 0.4305895692 | R14: 0.3966137566 | S14: 0.3626379441 | T14: 0.3286621315 | U14: 0.294686319 | V14: 0.2607105064 | W14: 0.2267346939 | X14: 0.1927588813 | Y14: 0.1587830688 | Z14: 0.1248072562 | AA14: 0 | AB14: 0 | AC14: 0 | AD14: 0 | AE14: 0 | AF14: 0 | AG14: 0 | AH14: 0 | AI14: 0 | AJ14: 0 | AK14: 0 | AL14: 0 | AM14: 0 | AN14: 0 | AO14: 0 | AP14: =IF(AP13<D_boost_min,0,AP13) -> 0 | AQ14: 0 | AR14: 0 | AS14: 0 | AT14: 0 | AU14: 0 | AV14: 0 | AW14: 0 | AX14: 0 | AY14: 0 | AZ14: 0 | BA14: 0 | BB14: 0 | BC14: 0 | BD14: 0 | BE14: 0 | BF14: 0 | BG14: 0 | BH14: 0 | BI14: 0 | BJ14: Boost duty
A15: Iout V5P1 | B15: ‒ | C15: ‒ | E15: 0.1 | F15: A | G15: Enter V5P1 operating current. Maximum current is 0.120A | I15: ton buck | J15: =IF(J12>1,1000/fsw,IF(J12*1000/fsw<0.16,0.16,J12*1000/fsw)) -> 0.1958750546 | K15: 0.3226182234 | L15: 0.3162945608 | M15: 0.3115304096 | N15: 0.3078579575 | O15: 0.3049741486 | P15: 0.302674876 | Q15: 0.3007845903 | R15: 0.299138046 | S15: 0.2977487892 | T15: 0.2965898574 | U15: 0.2956168482 | V15: 0.2947955458 | W15: 0.2936979126 | X15: 0.2931382058 | Y15: 0.2926613279 | Z15: 0.292254362 | AA15: 0.319187878 | AB15: 0.3082839169 | AC15: 0.2980997083 | AD15: 0.2885663289 | AE15: 0.2796233755 | AF15: 0.2712176891 | AG15: 0.2633023012 | AH15: 0.2558355594 | AI15: 0.2487803959 | AJ15: 0.2421037143 | AK15: 0.2357758719 | AL15: 0.2297702412 | AM15: 0.2240628358 | AN15: 0.2186319911 | AO15: 0.2134580907 | AP15: =IF(AP12>1,1000/fsw,IF(AP12*1000/fsw<0.16,0.16,AP12*1000/fsw)) -> 0.2085233293 | AQ15: 0.2038115089 | AR15: 0.1993078618 | AS15: 0.1949988954 | AT15: 0.1908722583 | AU15: 0.1869166219 | AV15: 0.1831215767 | AW15: 0.1794775408 | AX15: 0.1759756798 | AY15: 0.1726078349 | AZ15: 0.1693664594 | BA15: 0.1662445631 | BB15: 0.163235661 | BC15: 0.1603337294 | BD15: 0.16 | BE15: 0.16 | BF15: 0.16 | BG15: 0.16 | BH15: 0.16 | BI15: 0.16 | BJ15: ton buck
A16: Iout V5P2 | B16: ‒ | C16: ‒ | E16: 0.1 | F16: A | G16: Enter V5P2 operating current. Maximum current is 0.120A | H16: 3.3 | I16: toff buck | J16: =J15/J12-J15 -> 0.2586703999 | K16: 0.1319272312 | L16: 0.1382508937 | M16: 0.143015045 | N16: 0.1466874971 | O16: 0.149571306 | P16: 0.1518705785 | Q16: 0.1537608642 | R16: 0.1554074086 | S16: 0.1567966653 | T16: 0.1579555971 | U16: 0.1589286064 | V16: 0.1597499087 | W16: 0.160847542 | X16: 0.1614072488 | Y16: 0.1618841266 | Z16: 0.1622910925 | AA16: 0.1353575765 | AB16: 0.1462615377 | AC16: 0.1564457462 | AD16: 0.1659791256 | AE16: 0.174922079 | AF16: 0.1833277655 | AG16: 0.1912431533 | AH16: 0.1987098951 | AI16: 0.2057650587 | AJ16: 0.2124417403 | AK16: 0.2187695826 | AL16: 0.2247752133 | AM16: 0.2304826188 | AN16: 0.2359134634 | AO16: 0.2410873639 | AP16: =AP15/AP12-AP15 -> 0.2460221253 | AQ16: 0.2507339456 | AR16: 0.2552375928 | AS16: 0.2595465591 | AT16: 0.2636731962 | AU16: 0.2676288326 | AV16: 0.2714238779 | AW16: 0.2750679137 | AX16: 0.2785697747 | AY16: 0.2819376197 | AZ16: 0.2851789951 | BA16: 0.2883008915 | BB16: 0.2913097935 | BC16: 0.2942117252 | BD16: 0.301664444 | BE16: 0.309729782 | BF16: 0.3177951874 | BG16: 0.3258606569 | BH16: 0.3339261871 | BI16: 0.8245878942 | BJ16: toff buck
A17: VREG_Iout_Max | B17: ‒ | C17: ‒ | E17: =I_reg_ext+Iout_VUC+Iout_V5C+Iout_V5P1+Iout_V5P2+Icc -> 0.57 | F17: A | G17: VREG maximum output current | H17: 5 | I17: ton boost | J17: =J14/(fsw*10^-3) -> 0 | K17: 0.2883838384 | L17: 0.2729402872 | M17: 0.2574967361 | N17: 0.2420531849 | O17: 0.2266096338 | P17: 0.2111660826 | Q17: 0.1957225314 | R17: 0.1802789803 | S17: 0.1648354291 | T17: 0.149391878 | U17: 0.1339483268 | V17: 0.1185047756 | W17: 0.1030612245 | X17: 0.08761767333 | Y17: 0.07217412217 | Z17: 0.05673057102 | AA17: 0 | AB17: 0 | AC17: 0 | AD17: 0 | AE17: 0 | AF17: 0 | AG17: 0 | AH17: 0 | AI17: 0 | AJ17: 0 | AK17: 0 | AL17: 0 | AM17: 0 | AN17: 0 | AO17: 0 | AP17: =AP14/(fsw*10^-3) -> 0 | AQ17: 0 | AR17: 0 | AS17: 0 | AT17: 0 | AU17: 0 | AV17: 0 | AW17: 0 | AX17: 0 | AY17: 0 | AZ17: 0 | BA17: 0 | BB17: 0 | BC17: 0 | BD17: 0 | BE17: 0 | BF17: 0 | BG17: 0 | BH17: 0 | BI17: 0 | BJ17: ton boost
A18: Lo_tolerance | B18: -25 | C18: ‒ | E18: 25 | F18: % | G18: Output inductor tolerances | H18: 2200 | I18: toff boost | J18: =1/fsw*10^3-J17 -> 0.4545454545 | K18: 0.1661616162 | L18: 0.1816051673 | M18: 0.1970487185 | N18: 0.2124922696 | O18: 0.2279358208 | P18: 0.243379372 | Q18: 0.2588229231 | R18: 0.2742664743 | S18: 0.2897100254 | T18: 0.3051535766 | U18: 0.3205971277 | V18: 0.3360406789 | W18: 0.3514842301 | X18: 0.3669277812 | Y18: 0.3823713324 | Z18: 0.3978148835 | AA18: 0.4545454545 | AB18: 0.4545454545 | AC18: 0.4545454545 | AD18: 0.4545454545 | AE18: 0.4545454545 | AF18: 0.4545454545 | AG18: 0.4545454545 | AH18: 0.4545454545 | AI18: 0.4545454545 | AJ18: 0.4545454545 | AK18: 0.4545454545 | AL18: 0.4545454545 | AM18: 0.4545454545 | AN18: 0.4545454545 | AO18: 0.4545454545 | AP18: =1/fsw*10^3-AP17 -> 0.4545454545 | AQ18: 0.4545454545 | AR18: 0.4545454545 | AS18: 0.4545454545 | AT18: 0.4545454545 | AU18: 0.4545454545 | AV18: 0.4545454545 | AW18: 0.4545454545 | AX18: 0.4545454545 | AY18: 0.4545454545 | AZ18: 0.4545454545 | BA18: 0.4545454545 | BB18: 0.4545454545 | BC18: 0.4545454545 | BD18: 0.4545454545 | BE18: 0.4545454545 | BF18: 0.4545454545 | BG18: 0.4545454545 | BH18: 0.4545454545 | BI18: 0.4545454545 | BJ18: toff boost
A19: RθJA | B19: ‒ | C19: 30 | E19: ‒ | F19: °C/W | G19: Thermal resistance of the PMIC, mounted on a 4 layer PCB | I19: fsw | J19: =1/(J15+J16)*10^3 -> 2200 | K19: 2200 | L19: 2200 | M19: 2200 | N19: 2200 | O19: 2200 | P19: 2200 | Q19: 2200 | R19: 2200 | S19: 2200 | T19: 2200 | U19: 2200 | V19: 2200 | W19: 2200 | X19: 2200 | Y19: 2200 | Z19: 2200 | AA19: 2200 | AB19: 2200 | AC19: 2200 | AD19: 2200 | AE19: 2200 | AF19: 2200 | AG19: 2200 | AH19: 2200 | AI19: 2200 | AJ19: 2200 | AK19: 2200 | AL19: 2200 | AM19: 2200 | AN19: 2200 | AO19: 2200 | AP19: =1/(AP15+AP16)*10^3 -> 2200 | AQ19: 2200 | AR19: 2200 | AS19: 2200 | AT19: 2200 | AU19: 2200 | AV19: 2200 | AW19: 2200 | AX19: 2200 | AY19: 2200 | AZ19: 2200 | BA19: 2200 | BB19: 2200 | BC19: 2200 | BD19: 2166.07541 | BE19: 2128.883538 | BF19: 2092.946991 | BG19: 2058.203285 | BH19: 2024.59401 | BI19: 1015.653357 | BJ19: fsw
A20: TAMB | B20: ‒ | C20: ‒ | E20: 125 | F20: °C | G20: Maximum steady-state ambient temperature | I20: V out buck | BJ20: V out buck | BM20: buck | BO20: 0.54
A21: DIODE CHARACTERIZATION | E21: UNITS | F21: COMMENTS | I21: VREG | J21: =IF(J14>0,IF(J12/(1-J14)*J9>Vreg,Vreg,J12/(1-J14)*J9),IF(J12*(J9+J11)>Vreg,Vreg,J12*(J9+J11))) -> 5.35 | K21: 5.35 | L21: 5.35 | M21: 5.35 | N21: 5.35 | O21: 5.35 | P21: 5.35 | Q21: 5.35 | R21: 5.35 | S21: 5.35 | T21: 5.35 | U21: 5.35 | V21: 5.35 | W21: 5.35 | X21: 5.35 | Y21: 5.35 | Z21: 5.35 | AA21: 5.35 | AB21: 5.35 | AC21: 5.35 | AD21: 5.35 | AE21: 5.35 | AF21: 5.35 | AG21: 5.35 | AH21: 5.35 | AI21: 5.35 | AJ21: 5.35 | AK21: 5.35 | AL21: 5.35 | AM21: 5.35 | AN21: 5.35 | AO21: 5.35 | AP21: =IF(AP14>0,IF(AP12/(1-AP14)*AP9>Vreg,Vreg,AP12/(1-AP14)*AP9),IF(AP12*(AP9+AP11)>Vreg,Vreg,AP12*(AP9+AP11))) -> 5.35 | AQ21: 5.35 | AR21: 5.35 | AS21: 5.35 | AT21: 5.35 | AU21: 5.35 | AV21: 5.35 | AW21: 5.35 | AX21: 5.35 | AY21: 5.35 | AZ21: 5.35 | BA21: 5.35 | BB21: 5.35 | BC21: 5.35 | BD21: 5.35 | BE21: 5.35 | BF21: 5.35 | BG21: 5.35 | BH21: 5.35 | BI21: 5.35 | BJ21: VREG | BM21: Boost duty | BN21: 0.54 | BO21: 0
A22: VF1 | B22: 0.2 | C22: 0.34 | E22: A | VF | F22: Value from the data sheet for D1: VF at 200mA | H22: Circuit Currents | I22: Ilpk | J22: =IF(J14=0,Iout_PreReg+J23/2,IF(J$12>J$14,(Iout_PreReg+J23/2*(1-J12))/(1-J14),Iout_PreReg/(1-J14)+J23/2)) -> 0.6459675187 | K22: =IF(K14=0,Iout_PreReg+K23/2,IF(K$12>K$14,(Iout_PreReg+K23/2*(1-K12))/(1-K14),Iout_PreReg/(1-K14)+K23/2)) -> 1.594253613 | L22: 1.461907155 | M22: 1.349627462 | N22: 1.253093493 | O22: 1.169143226 | P22: 1.095409063 | Q22: 1.030089222 | R22: 0.9717885722 | S22: 0.9193807573 | T22: 0.8719753834 | U22: 0.8288569176 | V22: 0.7894402349 | W22: 0.7533055612 | X22: 0.7199098829 | Y22: 0.6889943967 | Z22: 0.6602728936 | AA22: 0.6097776028 | AB22: 0.6129795173 | AC22: 0.6159697568 | AD22: 0.6187686222 | AE22: 0.6213939011 | AF22: 0.6238612445 | AG22: 0.6261844783 | AH22: 0.6283758614 | AI22: 0.6304463015 | AJ22: 0.6324055363 | AK22: 0.6342622858 | AL22: 0.6360243821 | AM22: 0.6376988798 | AN22: 0.6392921492 | AO22: 0.6408099584 | AP22: =IF(AP14=0,Iout_PreReg+AP23/2,IF(AP$12>AP$14,(Iout_PreReg+AP23/2*(1-AP12))/(1-AP14),Iout_PreReg/(1-AP14)+AP23/2)) -> 0.6422575419 | AQ22: 0.6436396613 | AR22: 0.6449606574 | AS22: 0.6462244956 | AT22: 0.6474348059 | AU22: 0.6485949172 | AV22: 0.6497078881 | AW22: 0.6507765338 | AX22: 0.6518034497 | AY22: 0.6527910325 | AZ22: 0.6537414991 | BA22: 0.6546569026 | BB22: 0.6555391477 | BC22: 0.6563900035 | BD22: 0.6585771179 | BE22: 0.660944095 | BF22: 0.6633110713 | BG22: 0.6656780468 | BH22: 0.6680450214 | BI22: 0.8120216456 | BJ22: Ilpk | BK22: Circuit Currents | BM22: Ipk | BN22: 1.734 | BO22: 0.9
A23: VF2 | B23: 1 | C23: 0.4 | E23: A | VF | F23: Value from the data sheet for D1: VF at 2A | I23: ΔIL | J23: =IF(J$12>J$14,IF(J14=0,J9*J12/(L_buck*10^-6*J19*10^3),(J9*(J14)/(L_buck*10^-6*J19*10^3))),J9*(J12)/(L_buck*10^-6*J19*10^3)) -> 0.1519350374 | K23: 0.08812203198 | L23: 0.09257060332 | M23: 0.09581443159 | N23: 0.09791933898 | O23: 0.09893223498 | P23: 0.09888762958 | Q23: 0.09781155285 | R23: 0.09572408929 | S23: 0.09264117261 | T23: 0.08857549794 | U23: 0.08353735858 | V23: 0.07753523552 | W23: 0.07067706499 | X23: 0.0627484447 | Y23: 0.05387552751 | Z23: 0.04406249454 | AA23: 0.07955520566 | AB23: 0.0859590347 | AC23: 0.09193951367 | AD23: 0.09753724447 | AE23: 0.1027878022 | AF23: 0.107722489 | AG23: 0.1123689566 | AH23: 0.1167517228 | AI23: 0.1208926031 | AJ23: 0.1248110725 | AK23: 0.1285245715 | AL23: 0.1320487643 | AM23: 0.1353977595 | AN23: 0.1385842985 | AO23: 0.1416199168 | AP23: =IF(AP$12>AP$14,IF(AP14=0,AP9*AP12/(L_buck*10^-6*AP19*10^3),(AP9*(AP14)/(L_buck*10^-6*AP19*10^3))),AP9*(AP12)/(L_buck*10^-6*AP19*10^3)) -> 0.1445150838 | AQ23: 0.1472793226 | AR23: 0.1499213148 | AS23: 0.1524489913 | AT23: 0.1548696119 | AU23: 0.1571898344 | AV23: 0.1594157762 | AW23: 0.1615530675 | AX23: 0.1636068993 | AY23: 0.1655820651 | AZ23: 0.1674829982 | BA23: 0.1693138053 | BB23: 0.1710782954 | BC23: 0.1727800069 | BD23: 0.1771542357 | BE23: 0.1818881901 | BF23: 0.1866221427 | BG23: 0.1913560936 | BH23: 0.1960900429 | BI23: 0.4840432912 | BJ23: ΔIL | BM23: DI | BN23: 0.178 | BO23: 0.252
A24: VF3 | B24: 4 | C24: 0.51 | E24: A | VF | F24: Value from the data sheet for D1: VF at 4A | I24: IL RMS | J24: =IF(J12>J14,SQRT((J22-J23/2)^2+J23^2/12+(J12-J14)*J23^2/12),SQRT((J22-J23/2)^2+J23^2/12+(J14-J12)*J23^2/12)) -> 0.5724095155 | K24: 1.550417025 | L24: 1.415898108 | M24: 1.302048991 | N24: 1.204513577 | O24: 1.120104047 | P24: 1.046433109 | Q24: 0.9816834969 | R24: 0.9244476684 | S24: 0.8735893726 | T24: 0.8282103271 | U24: 0.7875888983 | V24: 0.7511355754 | W24: 0.7183783886 | X24: 0.6888815754 | Y24: 0.6623278613 | Z24: 0.6384340404 | AA24: 0.5707869831 | AB24: 0.5709057371 | AC24: 0.5710222144 | AD24: 0.5711357931 | AE24: 0.5712460666 | AF24: 0.5713527863 | AG24: 0.571455819 | AH24: 0.5715551149 | AI24: 0.5716506851 | AJ24: 0.5717425835 | AK24: 0.5718308943 | AL24: 0.5719157224 | AM24: 0.571997186 | AN24: 0.5720754117 | AO24: 0.5721505301 | AP24: =IF(AP12>AP14,SQRT((AP22-AP23/2)^2+AP23^2/12+(AP12-AP14)*AP23^2/12),SQRT((AP22-AP23/2)^2+AP23^2/12+(AP14-AP12)*AP23^2/12)) -> 0.5722226731 | AQ24: 0.572291972 | AR24: 0.5723585555 | AS24: 0.5724225491 | AT24: 0.5724840743 | AU24: 0.5725432478 | AV24: 0.5726001818 | AW24: 0.572654983 | AX24: 0.5727077536 | AY24: 0.5727585905 | AZ24: 0.5728075859 | BA24: 0.5728548272 | BB24: 0.5729003974 | BC24: 0.5729443749 | BD24: 0.5730808778 | BE24: 0.5732329513 | BF24: 0.5733883697 | BG24: 0.5735471241 | BH24: 0.5737092055 | BI24: 0.589574167 | BJ24: IL RMS | BM24: IC rms | BN24: =SQRT(((BN22-BN23/2-Iout_PreReg)^2+BN23^2/12)*(1-BN21)+Iout_PreReg^2*BN21) -> 0.8415747461 | BO24: =SQRT(((BO22-BO23/2-Iout_PreReg)^2+BO23^2/12)*(1-BO21)+Iout_PreReg^2*BO21) -> 0.2165825478
A25: VF, Temp. Coeff. | B25: -1 | E25: mV/°C | F25: Estimated value from the data sheet for D1 | I25: Isw buck RMS | J25: =IF(J12>J14,SQRT(J12*(J22-J23/2)^2+J14*J23^2/12),SQRT(J12*(J22-J23/2)^2+J12*J23^2/12)) -> 0.3741758564 | K25: 1.306151972 | L25: 1.181057993 | M25: 1.077854756 | N25: 0.9911864418 | O25: 0.9173616937 | P25: 0.8537477953 | Q25: 0.7983738925 | R25: 0.7497243791 | S25: 0.7067947016 | T25: 0.668744641 | U25: 0.6348800745 | V25: 0.6046443004 | W25: 0.5772019587 | X25: 0.5529920746 | Y25: 0.5312741687 | Z25: 0.5117922694 | AA25: 0.4776495697 | AB25: 0.4694200444 | AC25: 0.4616012451 | AD25: 0.4541601486 | AE25: 0.4470673287 | AF25: 0.4402964681 | AG25: 0.4338239492 | AH25: 0.4276285084 | AI25: 0.4216909429 | AJ25: 0.4159938616 | AK25: 0.4105214705 | AL25: 0.4052593898 | AM25: 0.4001944949 | AN25: 0.3953147792 | AO25: 0.3906092345 | AP25: =IF(AP12>AP14,SQRT(AP12*(AP22-AP23/2)^2+AP14*AP23^2/12),SQRT(AP12*(AP22-AP23/2)^2+AP12*AP23^2/12)) -> 0.386067747 | AQ25: 0.381681006 | AR25: 0.3774404237 | AS25: 0.3733380646 | AT25: 0.3693665832 | AU25: 0.3655191692 | AV25: 0.3617894976 | AW25: 0.358171686 | AX25: 0.3546602549 | AY25: 0.3512500935 | AZ25: 0.3479364279 | BA25: 0.3447147934 | BB25: 0.3415810091 | BC25: 0.3385311553 | BD25: 0.3355611183 | BE25: 0.332667825 | BF25: 0.3298480808 | BG25: 0.3270988223 | BH25: 0.3244171621 | BI25: 0.2297775535 | BJ25: Isw buck RMS | BO25: =SQRT(BO20/3*BO23^2) -> 0.1069145453
A26: RθJA | B26: 85 | E26: °C/W | I26: I buck Diode avg | J26: =IF(J$12>J$14,(J22-J23/2)*(1-J12),J22*(J14-J12)+(J22-J23/2)*(1-J14)) -> 0.3243726815 | K26: 0.4499277577 | L26: 0.4305641699 | M26: 0.4095642748 | N26: 0.3885890289 | O26: 0.3684374483 | P26: 0.3494729643 | Q26: 0.331908752 | R26: 0.3158870602 | S26: 0.3011644316 | T26: 0.287623368 | U26: 0.2751998409 | V26: 0.2638237406 | W26: 0.2540631099 | X26: 0.2444962226 | Y26: 0.2357882115 | Z26: 0.227878055 | AA26: 0.169738401 | AB26: 0.1834119682 | AC26: 0.1961829658 | AD26: 0.2081378235 | AE26: 0.2193522871 | AF26: 0.2298930179 | AG26: 0.2398189143 | AH26: 0.2491822085 | AI26: 0.2580293836 | AJ26: 0.2664019423 | AK26: 0.2743370566 | AL26: 0.2818681175 | AM26: 0.289025204 | AN26: 0.2958354831 | AO26: 0.3023235543 | AP26: =IF(AP$12>AP$14,(AP22-AP23/2)*(1-AP12),AP22*(AP14-AP12)+(AP22-AP23/2)*(1-AP14)) -> 0.3085117451 | AQ26: 0.3144203678 | AR26: 0.3200679413 | AS26: 0.3254713852 | AT26: 0.330646188 | AU26: 0.3356065561 | AV26: 0.3403655429 | AW26: 0.3449351638 | AX26: 0.3493264975 | AY26: 0.3535497751 | AZ26: 0.3576144599 | BA26: 0.3615293179 | BB26: 0.3653024811 | BC26: 0.3689415034 | BD26: 0.3724539226 | BE26: 0.3758458214 | BF26: 0.3791232344 | BG26: 0.3822918604 | BH26: 0.3853570263 | BI26: 0.4773724138 | BJ26: I buck Diode avg
A27: COMPONENT CALCULATIONS and VALUE ENTRY | I27: I boost SW RMS | J27: =IF(J12>J14,SQRT(J14*(J22-J23/2)^2+J14*J23^2/12),SQRT(J14*(J22-J23/2)^2+J12*J23^2/12)) -> 0 | K27: 1.234925974 | L27: 1.097159546 | M27: 0.9799702266 | N27: 0.8789438407 | O27: 0.7908325797 | P27: 0.7131852611 | Q27: 0.644112484 | R27: 0.5821239634 | S27: 0.5259984329 | T27: 0.4747319256 | U27: 0.4274714882 | V27: 0.3834624168 | W27: 0.3420099771 | X27: 0.3024014529 | Y27: 0.2638864153 | Z27: 0.2255232318 | AA27: 0 | AB27: 0 | AC27: 0 | AD27: 0 | AE27: 0 | AF27: 0 | AG27: 0 | AH27: 0 | AI27: 0 | AJ27: 0 | AK27: 0 | AL27: 0 | AM27: 0 | AN27: 0 | AO27: 0 | AP27: =IF(AP12>AP14,SQRT(AP14*(AP22-AP23/2)^2+AP14*AP23^2/12),SQRT(AP14*(AP22-AP23/2)^2+AP12*AP23^2/12)) -> 0 | AQ27: 0 | AR27: 0 | AS27: 0 | AT27: 0 | AU27: 0 | AV27: 0 | AW27: 0 | AX27: 0 | AY27: 0 | AZ27: 0 | BA27: 0 | BB27: 0 | BC27: 0 | BD27: 0 | BE27: 0 | BF27: 0 | BG27: 0 | BH27: 0 | BI27: 0 | BJ27: I boost SW RMS
A28: COMPONENT | B28: VALUE | C28: UNITS | E28: COMMENTS | I28: I boost Diode avg | J28: =Iout_PreReg -> 0.57 | K28: 0.57 | L28: 0.57 | M28: 0.57 | N28: 0.57 | O28: 0.57 | P28: 0.57 | Q28: 0.57 | R28: 0.57 | S28: 0.57 | T28: 0.57 | U28: 0.57 | V28: 0.57 | W28: 0.57 | X28: 0.57 | Y28: 0.57 | Z28: 0.57 | AA28: 0.57 | AB28: 0.57 | AC28: 0.57 | AD28: 0.57 | AE28: 0.57 | AF28: 0.57 | AG28: 0.57 | AH28: 0.57 | AI28: 0.57 | AJ28: 0.57 | AK28: 0.57 | AL28: 0.57 | AM28: 0.57 | AN28: 0.57 | AO28: 0.57 | AP28: =Iout_PreReg -> 0.57 | AQ28: 0.57 | AR28: 0.57 | AS28: 0.57 | AT28: 0.57 | AU28: 0.57 | AV28: 0.57 | AW28: 0.57 | AX28: 0.57 | AY28: 0.57 | AZ28: 0.57 | BA28: 0.57 | BB28: 0.57 | BC28: 0.57 | BD28: 0.57 | BE28: 0.57 | BF28: 0.57 | BG28: 0.57 | BH28: 0.57 | BI28: 0.57 | BJ28: I boost Diode avg
A29: Output Inductor Calculations: | I29: I Cout RMS | J29: =SQRT(((J22-J23/2-Iout_PreReg)^2+J23^2/12)*(1-J14)+Iout_PreReg^2*J14) -> 0.04385986738 | K29: 0.7467162264 | L29: 0.6935942527 | M29: 0.6453612963 | N29: 0.6011449335 | O29: 0.5602662516 | P29: 0.52218056 | Q29: 0.4864399033 | R29: 0.4526622546 | S29: 0.4204946189 | T29: 0.3896152474 | U29: 0.3597127819 | V29: 0.3304656368 | W29: 0.3015261964 | X29: 0.2724601488 | Y29: 0.2427363223 | Z29: 0.2115825638 | AA29: 0.0229656097 | AB29: 0.02481423591 | AC29: 0.02654065148 | AD29: 0.02815657718 | AE29: 0.02967228263 | AF29: 0.03109680401 | AG29: 0.03243812367 | AH29: 0.03370331929 | AI29: 0.03489868846 | AJ29: 0.03602985317 | AK29: 0.03710184798 | AL29: 0.03811919481 | AM29: 0.03908596645 | AN29: 0.04000584102 | AO29: 0.04088214856 | AP29: =SQRT(((AP22-AP23/2-Iout_PreReg)^2+AP23^2/12)*(1-AP14)+Iout_PreReg^2*AP14) -> 0.04171791127 | AQ29: 0.04251587827 | AR29: 0.04327855572 | AS29: 0.04400823308 | AT29: 0.04470700605 | AU29: 0.04537679661 | AV29: 0.04601937065 | AW29: 0.04663635351 | AX29: 0.04722924368 | AY29: 0.04779942492 | AZ29: 0.04834817705 | BA29: 0.04887668552 | BB29: 0.04938604996 | BC29: 0.04987729176 | BD29: 0.05114002284 | BE29: 0.05250659775 | BF29: 0.05387317215 | BG29: 0.05523974607 | BH29: 0.05660631952 | BI29: 0.1397312622 | BJ29: I Cout RMS
A30: Lo_est | B30: 10 | C30: µH | E30: Recommended inductor value | H30: BUCK FET | I30: Rds_On Buck | J30: =IF(J2>7,Buck_RdsON_factor_7V*(J4-150)+Rds_ON_150_7V,Buck_RdsON_factor_6V*(J4-150)+Rds_ON_150_6V) -> 0.1919134316 | K30: 0.2075965187 | L30: 0.2066073015 | M30: 0.2058851518 | N30: 0.2053458741 | O30: 0.2049368137 | P30: 0.2046235301 | Q30: 0.2043824521 | R30: 0.2041969569 | S30: 0.2040558759 | T30: 0.2039506901 | U30: 0.2038748882 | V30: 0.2038235183 | W30: 0.1901569079 | X30: 0.1901497067 | Y30: 0.1901571093 | Z30: 0.1901773315 | AA30: 0.1901600621 | AB30: 0.1902242002 | AC30: 0.1902929662 | AD30: 0.1903662117 | AE30: 0.1904438064 | AF30: 0.1905256361 | AG30: 0.1906115997 | AH30: 0.1907016076 | AI30: 0.19079558 | AJ30: 0.1908934459 | AK30: 0.1909951416 | AL30: 0.1911006098 | AM30: 0.191209799 | AN30: 0.1913226628 | AO30: 0.1914391591 | AP30: =IF(AP2>7,Buck_RdsON_factor_7V*(AP4-150)+Rds_ON_150_7V,Buck_RdsON_factor_6V*(AP4-150)+Rds_ON_150_6V) -> 0.1915592495 | AQ30: 0.1916828995 | AR30: 0.1918100772 | AS30: 0.1919407539 | AT30: 0.1920749029 | AU30: 0.1922125 | AV30: 0.1923535229 | AW30: 0.1924979511 | AX30: 0.1926457656 | AY30: 0.192796949 | AZ30: 0.1929514851 | BA30: 0.1931093589 | BB30: 0.1932705566 | BC30: 0.1934350652 | BD30: 0.1935259872 | BE30: 0.193607075 | BF30: 0.1936883571 | BG30: 0.193769824 | BH30: 0.1938514664 | BI30: 0.1989777504 | BJ30: Rds_On Buck | BK30: BUCK FET
A31: Lo = | B31: 10 | C31: µH | E31: Actual inductor value used. | I31: Conduction Losses | J31: =J25^2*J30 -> 0.0268693335 | K31: 0.3541665061 | L31: 0.2881961081 | M31: 0.2391913731 | N31: 0.2017421695 | O31: 0.1724650832 | P31: 0.1491470827 | Q31: 0.1302735532 | R31: 0.1147763824 | S31: 0.1019378984 | T31: 0.09121070423 | U31: 0.08217640349 | V31: 0.07451680415 | W31: 0.06335307499 | X31: 0.0581478249 | Y31: 0.05367227051 | Z31: 0.0498134008 | AA31: 0.0433848492 | AB31: 0.04191688752 | AC31: 0.04054680879 | AD31: 0.03926520906 | AE31: 0.03806385054 | AF31: 0.0369354865 | AG31: 0.03587371662 | AH31: 0.03487286709 | AI31: 0.03392789038 | AJ31: 0.03303428126 | AK31: 0.03218800587 | AL31: 0.03138544171 | AM31: 0.03062332654 | AN31: 0.02989871469 | AO31: 0.02920893959 | AP31: =AP25^2*AP30 -> 0.02855158151 | AQ31: 0.02792443962 | AR31: 0.02732550786 | AS31: 0.0267529538 | AT31: 0.0262051003 | AU31: 0.02568040941 | AV31: 0.02517746818 | AW31: 0.02469497631 | AX31: 0.02423173503 | AY31: 0.0237866375 | AZ31: 0.02335866007 | BA31: 0.02294685467 | BB31: 0.02255034195 | BC31: 0.02216830514 | BD31: 0.0217912708 | BE31: 0.02142608489 | BF31: 0.02107324607 | BG31: 0.0207321387 | BH31: 0.0204021874 | BI31: 0.01050557237 | BJ31: Conduction Losses
A32: DCR < | B32: 75 | C32: mΩ | E32: Recommended inductor DC resistance | I32: Switching Losses | J32: =0.5*J2*Iout_PreReg*J19*10^3*(J2/SLEW_rate+J2/1.5)*10^-9 -> 0.203148 | K32: 0.01365466667 | L32: 0.01606122782 | M32: 0.01866300653 | N32: 0.02146000278 | O32: 0.02445221658 | P32: 0.02763964792 | Q32: 0.03102229682 | R32: 0.03460016327 | S32: 0.03837324726 | T32: 0.0423415488 | U32: 0.04650506789 | V32: 0.05086380453 | W32: 0.05541775871 | X32: 0.06016693045 | Y32: 0.06511131973 | Z32: 0.07025092656 | AA32: 0.07558575094 | AB32: 0.08111579286 | AC32: 0.08684105234 | AD32: 0.09276152936 | AE32: 0.09887722393 | AF32: 0.1051881361 | AG32: 0.1116942657 | AH32: 0.1183956129 | AI32: 0.1252921777 | AJ32: 0.13238396 | AK32: 0.1396709599 | AL32: 0.1471531773 | AM32: 0.1548306122 | AN32: 0.1627032648 | AO32: 0.1707711348 | AP32: =0.5*AP2*Iout_PreReg*AP19*10^3*(AP2/SLEW_rate+AP2/1.5)*10^-9 -> 0.1790342224 | AQ32: 0.1874925276 | AR32: 0.1961460503 | AS32: 0.2049947905 | AT32: 0.2140387483 | AU32: 0.2232779236 | AV32: 0.2327123165 | AW32: 0.242341927 | AX32: 0.252166755 | AY32: 0.2621868005 | AZ32: 0.2724020636 | BA32: 0.2828125442 | BB32: 0.2934182424 | BC32: 0.3042191581 | BD32: 0.3103545871 | BE32: 0.3158553305 | BF32: 0.3213560381 | BG32: 0.3268567116 | BH32: 0.3323573527 | BI32: 0.6669186203 | BJ32: Switching Losses
A33: LoDCR = | B33: 50 | C33: mΩ | E33: Enter the output inductor's DCR | I33: Total Buck FET Losses | J33: =J31+J32 -> 0.2300173335 | K33: =K31+K32 -> 0.3678211728 | L33: =IF(L15=1/fsw*10^3,L30*L25^2,L31+L32) -> 0.3042573359 | M33: 0.2578543796 | N33: 0.2232021722 | O33: 0.1969172998 | P33: 0.1767867306 | Q33: 0.16129585 | R33: 0.1493765456 | S33: 0.1403111456 | T33: 0.133552253 | U33: 0.1286814714 | V33: 0.1253806087 | W33: 0.1187708337 | X33: 0.1183147553 | Y33: 0.1187835902 | Z33: 0.1200643274 | AA33: 0.1189706001 | AB33: 0.1230326804 | AC33: 0.1273878611 | AD33: 0.1320267384 | AE33: 0.1369410745 | AF33: 0.1421236226 | AG33: 0.1475679823 | AH33: 0.15326848 | AI33: 0.1592200681 | AJ33: 0.1654182413 | AK33: 0.1718589657 | AL33: 0.178538619 | AM33: 0.1854539388 | AN33: 0.1926019794 | AO33: 0.1999800744 | AP33: 0.2075858039 | AQ33: 0.2154169672 | AR33: =IF(AR15=1/fsw*10^3,AR30*AR25^2,AR31+AR32) -> 0.2234715581 | AS33: 0.2317477443 | AT33: 0.2402438486 | AU33: 0.248958333 | AV33: 0.2578897847 | AW33: 0.2670369033 | AX33: 0.27639849 | AY33: 0.285973438 | AZ33: 0.2957607237 | BA33: 0.3057593989 | BB33: 0.3159685843 | BC33: 0.3263874633 | BD33: 0.3321458579 | BE33: 0.3372814154 | BF33: 0.3424292842 | BG33: 0.3475888503 | BH33: 0.3527595401 | BI33: 0.6774241927 | BJ33: Total Buck FET Losses
A34: ΔILo_typ | B34: =(Vin_nom-Vreg)/(L_buck*10^-6)*(Vreg/Vin_nom)/(fsw*10^3) -> 0.1468097643 | C34: APP | E34: Typical output inductor ripple current | H34: VUC LDO | I34: Output voltage | J34: =IF(J21-Iout_VUC*J35>VUC,VUC,J21-Iout_VUC*J35) -> 3.3 | K34: 3.3 | L34: 3.3 | M34: 3.3 | N34: 3.3 | O34: 3.3 | P34: 3.3 | Q34: 3.3 | R34: 3.3 | S34: 3.3 | T34: 3.3 | U34: 3.3 | V34: 3.3 | W34: 3.3 | X34: 3.3 | Y34: 3.3 | Z34: 3.3 | AA34: 3.3 | AB34: 3.3 | AC34: 3.3 | AD34: 3.3 | AE34: 3.3 | AF34: 3.3 | AG34: 3.3 | AH34: 3.3 | AI34: 3.3 | AJ34: 3.3 | AK34: 3.3 | AL34: 3.3 | AM34: 3.3 | AN34: 3.3 | AO34: 3.3 | AP34: =IF(AP21-Iout_VUC*AP35>VUC,VUC,AP21-Iout_VUC*AP35) -> 3.3 | AQ34: 3.3 | AR34: 3.3 | AS34: 3.3 | AT34: 3.3 | AU34: 3.3 | AV34: 3.3 | AW34: 3.3 | AX34: 3.3 | AY34: 3.3 | AZ34: 3.3 | BA34: 3.3 | BB34: 3.3 | BC34: 3.3 | BD34: 3.3 | BE34: 3.3 | BF34: 3.3 | BG34: 3.3 | BH34: 3.3 | BI34: 3.3 | BJ34: Output voltage | BK34: 5V0 LDO
A35: ΔILo_max | B35: =(V_AbsMax-(1-2/100)*Vreg)/((1-$E$18/100)*L_buck*10^-6)*(Vreg/V_AbsMax)/((1-10/100)*fsw*10^3) -> 0.3078001309 | C35: APP | E35: Worst case maximum inductor ripple current at Vin_AbsMax, L_min, VREG_max, fsw_min | I35: Series pass resistance | J35: =(Rds_ON_VUC_150-Rds_ON_VUC_min40)/190*(J4-150)+Rds_ON_VUC_150 -> 0.5063618993 | K35: 0.5101848679 | L35: 0.5084214733 | M35: 0.5071341576 | N35: 0.5061728324 | O35: 0.5054436347 | P35: 0.5048851703 | Q35: 0.5044554207 | R35: 0.5041247541 | S35: 0.5038732608 | T35: 0.5036857549 | U35: 0.5035506291 | V35: 0.5034590563 | W35: 0.5032756872 | X35: 0.5032630346 | Y35: 0.5032760411 | Z35: 0.5033115714 | AA35: 0.5032812291 | AB35: 0.5033939198 | AC35: 0.5035147417 | AD35: 0.5036434339 | AE35: 0.5037797679 | AF35: 0.5039235427 | AG35: 0.5040745807 | AH35: 0.5042327245 | AI35: 0.5043978341 | AJ35: 0.5045697845 | AK35: 0.5047484637 | AL35: 0.5049337714 | AM35: 0.5051256169 | AN35: 0.5053239186 | AO35: 0.5055286025 | AP35: =(Rds_ON_VUC_150-Rds_ON_VUC_min40)/190*(AP4-150)+Rds_ON_VUC_150 -> 0.5057396014 | AQ35: 0.5059568544 | AR35: 0.5061803057 | AS35: 0.5064099045 | AT35: 0.5066456043 | AU35: 0.5068873625 | AV35: 0.5071351398 | AW35: 0.5073889001 | AX35: 0.5076486102 | AY35: 0.5079142394 | AZ35: 0.5081857593 | BA35: 0.5084631436 | BB35: 0.5087463679 | BC35: 0.5090354096 | BD35: 0.5091951596 | BE35: 0.5093376307 | BF35: 0.5094804435 | BG35: 0.5096235807 | BH35: 0.5097670265 | BI35: 0.5187739075 | BJ35: Series pass resistance
A36: Irms | B36: =IF(Topology="buck",MAX(K82:BH82),MAX(K24:BH24)) -> 1.550417025 | C36: ARMS | E36: Maximum RMS inductor current, must be less than inductor DC rating | I36: Power dissipated | J36: =(J21-J34)*Iout_VUC -> 0.5125 | K36: 0.5125 | L36: 0.5125 | M36: 0.5125 | N36: 0.5125 | O36: 0.5125 | P36: 0.5125 | Q36: 0.5125 | R36: 0.5125 | S36: 0.5125 | T36: 0.5125 | U36: 0.5125 | V36: 0.5125 | W36: 0.5125 | X36: 0.5125 | Y36: 0.5125 | Z36: 0.5125 | AA36: 0.5125 | AB36: 0.5125 | AC36: 0.5125 | AD36: 0.5125 | AE36: 0.5125 | AF36: 0.5125 | AG36: 0.5125 | AH36: 0.5125 | AI36: 0.5125 | AJ36: 0.5125 | AK36: 0.5125 | AL36: 0.5125 | AM36: 0.5125 | AN36: 0.5125 | AO36: 0.5125 | AP36: =(AP21-AP34)*Iout_VUC -> 0.5125 | AQ36: 0.5125 | AR36: 0.5125 | AS36: 0.5125 | AT36: 0.5125 | AU36: 0.5125 | AV36: 0.5125 | AW36: 0.5125 | AX36: 0.5125 | AY36: 0.5125 | AZ36: 0.5125 | BA36: 0.5125 | BB36: 0.5125 | BC36: 0.5125 | BD36: 0.5125 | BE36: 0.5125 | BF36: 0.5125 | BG36: 0.5125 | BH36: 0.5125 | BI36: 0.5125 | BJ36: Power dissipated
A37: Lo_I_max | B37: =IF(Topology="buck",MAX(K80:BH80),MAX(K22:BH22)) -> 1.594253613 | C37: APEAK | E37: This value should not exceed the inductor's specified saturation current | H37: V5ALDO | I37: Output voltage | J37: =IF(J21-5<J38*Iout_V5C,J21-J38*Iout_V5C,5) -> 5 | K37: 5 | L37: 5 | M37: 5 | N37: 5 | O37: 5 | P37: 5 | Q37: 5 | R37: 5 | S37: 5 | T37: 5 | U37: 5 | V37: 5 | W37: 5 | X37: 5 | Y37: 5 | Z37: 5 | AA37: 5 | AB37: 5 | AC37: 5 | AD37: 5 | AE37: 5 | AF37: 5 | AG37: 5 | AH37: 5 | AI37: 5 | AJ37: 5 | AK37: 5 | AL37: 5 | AM37: 5 | AN37: 5 | AO37: 5 | AP37: =IF(AP21-5<AP38*Iout_V5C,AP21-AP38*Iout_V5C,5) -> 5 | AQ37: 5 | AR37: 5 | AS37: 5 | AT37: 5 | AU37: 5 | AV37: 5 | AW37: 5 | AX37: 5 | AY37: 5 | AZ37: 5 | BA37: 5 | BB37: 5 | BC37: 5 | BD37: 5 | BE37: 5 | BF37: 5 | BG37: 5 | BH37: 5 | BI37: 5 | BJ37: Output voltage | BK37: V5 LDO
A38: I_LOADCRIT | B38: =J81/2 -> 0.07502972032 | C38: A | E38: Output load current when pre-regulator goes discontinuous | I38: Series pass resistance | J38: =(Rds_ON_V5A_150-Rds_ON_V5A_min40)/190*(J4-150)+Rds_ON_V5A_150 -> 0.7077788241 | K38: 0.7177616243 | L38: 0.7131569262 | M38: 0.7097953983 | N38: 0.7072851195 | O38: 0.705380988 | P38: 0.7039226872 | Q38: 0.7028004952 | R38: 0.7019370357 | S38: 0.701280319 | T38: 0.7007906906 | U38: 0.7004378409 | V38: 0.7001987195 | W38: 0.6997198934 | X38: 0.6996868542 | Y38: 0.6997208176 | Z38: 0.6998135969 | AA38: 0.6997343649 | AB38: 0.7000286306 | AC38: 0.7003441291 | AD38: 0.7006801791 | AE38: 0.7010361839 | AF38: 0.7014116186 | AG38: 0.7018060195 | AH38: 0.7022189756 | AI38: 0.7026501211 | AJ38: 0.7030991299 | AK38: 0.7035657095 | AL38: 0.7040495976 | AM38: 0.704550558 | AN38: 0.7050683771 | AO38: 0.7056028618 | AP38: =(Rds_ON_V5A_150-Rds_ON_V5A_min40)/190*(AP4-150)+Rds_ON_V5A_150 -> 0.7061538369 | AQ38: 0.7067211428 | AR38: 0.7073046343 | AS38: 0.7079041787 | AT38: 0.7085196544 | AU38: 0.70915095 | AV38: 0.7097979631 | AW38: 0.7104605997 | AX38: 0.7111387727 | AY38: 0.7118324021 | AZ38: 0.7125414137 | BA38: 0.7132657388 | BB38: 0.7140053137 | BC38: 0.7147600792 | BD38: 0.7151772294 | BE38: 0.71554926 | BF38: 0.7159221825 | BG38: 0.7162959523 | BH38: 0.7166705279 | BI38: 0.7401899189 | BJ38: Series pass resistance
A39: Output Capacitor and Output Voltage Ripple: | I39: Power dissipated | J39: =(J21-J37)*Iout_V5C -> 0.035 | K39: 0.035 | L39: 0.035 | M39: 0.035 | N39: 0.035 | O39: 0.035 | P39: 0.035 | Q39: 0.035 | R39: 0.035 | S39: 0.035 | T39: 0.035 | U39: 0.035 | V39: 0.035 | W39: 0.035 | X39: 0.035 | Y39: 0.035 | Z39: 0.035 | AA39: 0.035 | AB39: 0.035 | AC39: 0.035 | AD39: 0.035 | AE39: 0.035 | AF39: 0.035 | AG39: 0.035 | AH39: 0.035 | AI39: 0.035 | AJ39: 0.035 | AK39: 0.035 | AL39: 0.035 | AM39: 0.035 | AN39: 0.035 | AO39: 0.035 | AP39: =(AP21-AP37)*Iout_V5C -> 0.035 | AQ39: 0.035 | AR39: 0.035 | AS39: 0.035 | AT39: 0.035 | AU39: 0.035 | AV39: 0.035 | AW39: 0.035 | AX39: 0.035 | AY39: 0.035 | AZ39: 0.035 | BA39: 0.035 | BB39: 0.035 | BC39: 0.035 | BD39: 0.035 | BE39: 0.035 | BF39: 0.035 | BG39: 0.035 | BH39: 0.035 | BI39: 0.035 | BJ39: Power dissipated
A40: Total Output Capacitance | B40: 44 | C40: µF | E40: Recommended total output capacitance | H40: V5P1 LDO | I40: Output voltage | J40: 5 | K40: =J40 -> 5 | L40: =K40 -> 5 | M40: 5 | N40: 5 | O40: 5 | P40: 5 | Q40: 5 | R40: 5 | S40: 5 | T40: 5 | U40: 5 | V40: 5 | W40: 5 | X40: 5 | Y40: 5 | Z40: 5 | AA40: 5 | AB40: 5 | AC40: 5 | AD40: 5 | AE40: 5 | AF40: 5 | AG40: 5 | AH40: 5 | AI40: 5 | AJ40: 5 | AK40: 5 | AL40: 5 | AM40: 5 | AN40: 5 | AO40: 5 | AP40: 5 | AQ40: 5 | AR40: 5 | AS40: 5 | AT40: 5 | AU40: 5 | AV40: 5 | AW40: 5 | AX40: 5 | AY40: 5 | AZ40: 5 | BA40: 5 | BB40: 5 | BC40: 5 | BD40: 5 | BE40: 5 | BF40: 5 | BG40: 5 | BH40: 5 | BI40: 5 | BJ40: Output voltage | BK40: V5 LDO
A41: ESR | B41: 10 | C41: mΩ | I41: Series pass resistance | J41: =(Rds_ON_V5P1_150-Rds_ON_V5P1_min40)/190*(J4-150)+Rds_ON_V5P1_150 -> 0.7077788241 | K41: 0.7177616243 | L41: 0.7131569262 | M41: 0.7097953983 | N41: 0.7072851195 | O41: 0.705380988 | P41: 0.7039226872 | Q41: 0.7028004952 | R41: 0.7019370357 | S41: 0.701280319 | T41: 0.7007906906 | U41: 0.7004378409 | V41: 0.7001987195 | W41: 0.6997198934 | X41: 0.6996868542 | Y41: 0.6997208176 | Z41: 0.6998135969 | AA41: 0.6997343649 | AB41: 0.7000286306 | AC41: 0.7003441291 | AD41: 0.7006801791 | AE41: 0.7010361839 | AF41: 0.7014116186 | AG41: 0.7018060195 | AH41: 0.7022189756 | AI41: 0.7026501211 | AJ41: 0.7030991299 | AK41: 0.7035657095 | AL41: 0.7040495976 | AM41: 0.704550558 | AN41: 0.7050683771 | AO41: 0.7056028618 | AP41: =(Rds_ON_V5P1_150-Rds_ON_V5P1_min40)/190*(AP4-150)+Rds_ON_V5P1_150 -> 0.7061538369 | AQ41: 0.7067211428 | AR41: 0.7073046343 | AS41: 0.7079041787 | AT41: 0.7085196544 | AU41: 0.70915095 | AV41: 0.7097979631 | AW41: 0.7104605997 | AX41: 0.7111387727 | AY41: 0.7118324021 | AZ41: 0.7125414137 | BA41: 0.7132657388 | BB41: 0.7140053137 | BC41: 0.7147600792 | BD41: 0.7151772294 | BE41: 0.71554926 | BF41: 0.7159221825 | BG41: 0.7162959523 | BH41: 0.7166705279 | BI41: 0.7401899189 | BJ41: Series pass resistance
A42: I RMS | B42: =ROUNDUP(IF(Topology="Buck",MAX(K85:BH85),MAX(K29:BH29)),3) -> 0.747 | C42: A | E42: Total RMS current of the output capacitors | I42: Power dissipated | J42: =(J21-J40)*Iout_V5P1 -> 0.035 | K42: 0.035 | L42: 0.035 | M42: 0.035 | N42: 0.035 | O42: 0.035 | P42: 0.035 | Q42: 0.035 | R42: 0.035 | S42: 0.035 | T42: 0.035 | U42: 0.035 | V42: 0.035 | W42: 0.035 | X42: 0.035 | Y42: 0.035 | Z42: 0.035 | AA42: 0.035 | AB42: 0.035 | AC42: 0.035 | AD42: 0.035 | AE42: 0.035 | AF42: 0.035 | AG42: 0.035 | AH42: 0.035 | AI42: 0.035 | AJ42: 0.035 | AK42: 0.035 | AL42: 0.035 | AM42: 0.035 | AN42: 0.035 | AO42: 0.035 | AP42: =(AP21-AP40)*Iout_V5P1 -> 0.035 | AQ42: 0.035 | AR42: 0.035 | AS42: 0.035 | AT42: 0.035 | AU42: 0.035 | AV42: 0.035 | AW42: 0.035 | AX42: 0.035 | AY42: 0.035 | AZ42: 0.035 | BA42: 0.035 | BB42: 0.035 | BC42: 0.035 | BD42: 0.035 | BE42: 0.035 | BF42: 0.035 | BG42: 0.035 | BH42: 0.035 | BI42: 0.035 | BJ42: Power dissipated
A43: Select Capacitor | B43: 10 | C43: µF | H43: V5P2 LDO | I43: Output voltage | J43: 5 | K43: =J43 -> 5 | L43: =K43 -> 5 | M43: 5 | N43: 5 | O43: 5 | P43: 5 | Q43: 5 | R43: 5 | S43: 5 | T43: 5 | U43: 5 | V43: 5 | W43: 5 | X43: 5 | Y43: 5 | Z43: 5 | AA43: 5 | AB43: 5 | AC43: 5 | AD43: 5 | AE43: 5 | AF43: 5 | AG43: 5 | AH43: 5 | AI43: 5 | AJ43: 5 | AK43: 5 | AL43: 5 | AM43: 5 | AN43: 5 | AO43: 5 | AP43: 5 | AQ43: 5 | AR43: 5 | AS43: 5 | AT43: 5 | AU43: 5 | AV43: 5 | AW43: 5 | AX43: 5 | AY43: 5 | AZ43: 5 | BA43: 5 | BB43: 5 | BC43: 5 | BD43: 5 | BE43: 5 | BF43: 5 | BG43: 5 | BH43: 5 | BI43: 5 | BJ43: Output voltage | BK43: V5 LDO
A44: ESR | B44: 5 | C44: mΩ | E44: Enter ESR value for selected capacitor | I44: Series pass resistance | J44: =(Rds_ON_V5P2_150-Rds_ON_V5P2_min40)/190*(J4-150)+Rds_ON_V5P2_150 -> 0.7077788241 | K44: 0.7177616243 | L44: 0.7131569262 | M44: 0.7097953983 | N44: 0.7072851195 | O44: 0.705380988 | P44: 0.7039226872 | Q44: 0.7028004952 | R44: 0.7019370357 | S44: 0.701280319 | T44: 0.7007906906 | U44: 0.7004378409 | V44: 0.7001987195 | W44: 0.6997198934 | X44: 0.6996868542 | Y44: 0.6997208176 | Z44: 0.6998135969 | AA44: 0.6997343649 | AB44: 0.7000286306 | AC44: 0.7003441291 | AD44: 0.7006801791 | AE44: 0.7010361839 | AF44: 0.7014116186 | AG44: 0.7018060195 | AH44: 0.7022189756 | AI44: 0.7026501211 | AJ44: 0.7030991299 | AK44: 0.7035657095 | AL44: 0.7040495976 | AM44: 0.704550558 | AN44: 0.7050683771 | AO44: 0.7056028618 | AP44: =(Rds_ON_V5P2_150-Rds_ON_V5P2_min40)/190*(AP4-150)+Rds_ON_V5P2_150 -> 0.7061538369 | AQ44: 0.7067211428 | AR44: 0.7073046343 | AS44: 0.7079041787 | AT44: 0.7085196544 | AU44: 0.70915095 | AV44: 0.7097979631 | AW44: 0.7104605997 | AX44: 0.7111387727 | AY44: 0.7118324021 | AZ44: 0.7125414137 | BA44: 0.7132657388 | BB44: 0.7140053137 | BC44: 0.7147600792 | BD44: 0.7151772294 | BE44: 0.71554926 | BF44: 0.7159221825 | BG44: 0.7162959523 | BH44: 0.7166705279 | BI44: 0.7401899189 | BJ44: Series pass resistance
A45: Co_num_actual = | B45: 4 | C45: pieces | E45: Choose the number of output capacitors, default is estimated number | I45: Power dissipated | J45: =(J21-J43)*Iout_V5P2 -> 0.035 | K45: 0.035 | L45: 0.035 | M45: 0.035 | N45: 0.035 | O45: 0.035 | P45: 0.035 | Q45: 0.035 | R45: 0.035 | S45: 0.035 | T45: 0.035 | U45: 0.035 | V45: 0.035 | W45: 0.035 | X45: 0.035 | Y45: 0.035 | Z45: 0.035 | AA45: 0.035 | AB45: 0.035 | AC45: 0.035 | AD45: 0.035 | AE45: 0.035 | AF45: 0.035 | AG45: 0.035 | AH45: 0.035 | AI45: 0.035 | AJ45: 0.035 | AK45: 0.035 | AL45: 0.035 | AM45: 0.035 | AN45: 0.035 | AO45: 0.035 | AP45: =(AP21-AP43)*Iout_V5P2 -> 0.035 | AQ45: 0.035 | AR45: 0.035 | AS45: 0.035 | AT45: 0.035 | AU45: 0.035 | AV45: 0.035 | AW45: 0.035 | AX45: 0.035 | AY45: 0.035 | AZ45: 0.035 | BA45: 0.035 | BB45: 0.035 | BC45: 0.035 | BD45: 0.035 | BE45: 0.035 | BF45: 0.035 | BG45: 0.035 | BH45: 0.035 | BI45: 0.035 | BJ45: Power dissipated
A46: Pre-Regulator Boost FET | H46: Buck Diode | I46: Tj Diode | J46: =J49*RthJA_diode+Ta -> 131.6121147 | K46: 135.9760806 | L46: 135.3505882 | M46: 134.7264407 | N46: 134.1336248 | O46: 133.583657 | P46: 133.0795171 | Q46: 132.6022424 | R46: 132.1350229 | S46: 131.7176411 | T46: 131.3433848 | U46: 131.0075887 | V46: 130.7061155 | W46: 130.4487065 | X46: 130.2037673 | Y46: 129.9839148 | Z46: 129.7867031 | AA46: 128.5136457 | AB46: 128.7914954 | AC46: 129.0503185 | AD46: 129.2920029 | AE46: 129.5181952 | AF46: 129.7303375 | AG46: 129.9296986 | AH46: 130.117399 | AI46: 130.2944321 | AJ46: 130.4616816 | AK46: 130.6199363 | AL46: 130.7699024 | AM46: 130.9122141 | AN46: 131.0474426 | AO46: 131.1761036 | AP46: =AP49*RthJA_diode+Ta -> 131.2986641 | AQ46: 131.4155477 | AR46: 131.5271397 | AS46: 131.6337914 | AT46: 131.7358236 | AU46: 131.8335301 | AV46: 131.92718 | AW46: 132.0170208 | AX46: 132.1032802 | AY46: 132.1861682 | AZ46: 132.2658784 | BA46: 132.3425902 | BB46: 132.4164696 | BC46: 132.4876706 | BD46: 132.5563462 | BE46: 132.6226203 | BF46: 132.6866156 | BG46: 132.7484475 | BH46: 132.808224 | BI46: 134.5861001 | BJ46: Tj Diode | BK46: Buck Diode
A47: Rds ON boost | B47: =Vreg*Iout_PreReg*0.05/K27^2/1.4 -> 0.07141488742 | E47: Recommended boost MOSFET Rds On at 25C | I47: I Buck diode ON | J47: =J22-J23/2 -> 0.57 | K47: 1.550192597 | L47: 1.415621853 | M47: 1.301720246 | N47: 1.204133824 | O47: 1.119677109 | P47: 1.045965248 | Q47: 0.9811834457 | R47: 0.9239265275 | S47: 0.873060171 | T47: 0.8276876344 | U47: 0.7870882383 | V47: 0.7506726172 | W47: 0.7179670287 | X47: 0.6885356605 | Y47: 0.6620566329 | Z47: 0.6382416464 | AA47: 0.57 | AB47: 0.57 | AC47: 0.57 | AD47: 0.57 | AE47: 0.57 | AF47: 0.57 | AG47: 0.57 | AH47: 0.57 | AI47: 0.57 | AJ47: 0.57 | AK47: 0.57 | AL47: 0.57 | AM47: 0.57 | AN47: 0.57 | AO47: 0.57 | AP47: =AP22-AP23/2 -> 0.57 | AQ47: 0.57 | AR47: 0.57 | AS47: 0.57 | AT47: 0.57 | AU47: 0.57 | AV47: 0.57 | AW47: 0.57 | AX47: 0.57 | AY47: 0.57 | AZ47: 0.57 | BA47: 0.57 | BB47: 0.57 | BC47: 0.57 | BD47: 0.57 | BE47: 0.57 | BF47: 0.57 | BG47: 0.57 | BH47: 0.57 | BI47: 0.57 | BJ47: I Buck diode ON
A48: Maximum gate charge | B48: =IF(Topology="Buck","-",10) -> 10 | E48: At Vgs = 5V | I48: Vf buck diode | J48: =IF(Reset=1,0.45,FORECAST(J47, OFFSET(Vd_1:Vd_3,MATCH(J47,I_Vd1:I_Vd3,1)-1,0,2), OFFSET(I_Vd1:I_Vd3,MATCH(J47,I_Vd1:I_Vd3,1)-1,0,2))+(J46-25)*vd_temp_coeff/1000) -> 0.2398154624 | K48: =IF(Reset=1,0.45,FORECAST(K47, OFFSET(Vd_1:Vd_3,MATCH(K47,I_Vd1:I_Vd3,1)-1,0,2), OFFSET(I_Vd1:I_Vd3,MATCH(K47,I_Vd1:I_Vd3,1)-1,0,2))+(K46-25)*vd_temp_coeff/1000) -> 0.2870024318 | L48: =IF(Reset=1,0.45,FORECAST(L47, OFFSET(Vd_1:Vd_3,MATCH(L47,I_Vd1:I_Vd3,1)-1,0,2), OFFSET(I_Vd1:I_Vd3,MATCH(L47,I_Vd1:I_Vd3,1)-1,0,2))+(L46-25)*vd_temp_coeff/1000) -> 0.2828187621 | M48: =IF(Reset=1,0.45,FORECAST(M47, OFFSET(Vd_1:Vd_3,MATCH(M47,I_Vd1:I_Vd3,1)-1,0,2), OFFSET(I_Vd1:I_Vd3,MATCH(M47,I_Vd1:I_Vd3,1)-1,0,2))+(M46-25)*vd_temp_coeff/1000) -> 0.2793913468 | N48: =IF(Reset=1,0.45,FORECAST(N47, OFFSET(Vd_1:Vd_3,MATCH(N47,I_Vd1:I_Vd3,1)-1,0,2), OFFSET(I_Vd1:I_Vd3,MATCH(N47,I_Vd1:I_Vd3,1)-1,0,2))+(N46-25)*vd_temp_coeff/1000) -> 0.2765245571 | O48: =IF(Reset=1,0.45,FORECAST(O47, OFFSET(Vd_1:Vd_3,MATCH(O47,I_Vd1:I_Vd3,1)-1,0,2), OFFSET(I_Vd1:I_Vd3,MATCH(O47,I_Vd1:I_Vd3,1)-1,0,2))+(O46-25)*vd_temp_coeff/1000) -> 0.2740877723 | P48: =IF(Reset=1,0.45,FORECAST(P47, OFFSET(Vd_1:Vd_3,MATCH(P47,I_Vd1:I_Vd3,1)-1,0,2), OFFSET(I_Vd1:I_Vd3,MATCH(P47,I_Vd1:I_Vd3,1)-1,0,2))+(P46-25)*vd_temp_coeff/1000) -> 0.271989972 | Q48: =IF(Reset=1,0.45,FORECAST(Q47, OFFSET(Vd_1:Vd_3,MATCH(Q47,I_Vd1:I_Vd3,1)-1,0,2), OFFSET(I_Vd1:I_Vd3,MATCH(Q47,I_Vd1:I_Vd3,1)-1,0,2))+(Q46-25)*vd_temp_coeff/1000) -> 0.2694660675 | R48: =IF(Reset=1,0.45,FORECAST(R47, OFFSET(Vd_1:Vd_3,MATCH(R47,I_Vd1:I_Vd3,1)-1,0,2), OFFSET(I_Vd1:I_Vd3,MATCH(R47,I_Vd1:I_Vd3,1)-1,0,2))+(R46-25)*vd_temp_coeff/1000) -> 0.265732462 | S48: =IF(Reset=1,0.45,FORECAST(S47, OFFSET(Vd_1:Vd_3,MATCH(S47,I_Vd1:I_Vd3,1)-1,0,2), OFFSET(I_Vd1:I_Vd3,MATCH(S47,I_Vd1:I_Vd3,1)-1,0,2))+(S46-25)*vd_temp_coeff/1000) -> 0.2624183436 | T48: =IF(Reset=1,0.45,FORECAST(T47, OFFSET(Vd_1:Vd_3,MATCH(T47,I_Vd1:I_Vd3,1)-1,0,2), OFFSET(I_Vd1:I_Vd3,MATCH(T47,I_Vd1:I_Vd3,1)-1,0,2))+(T46-25)*vd_temp_coeff/1000) -> 0.2594645108 | U48: =IF(Reset=1,0.45,FORECAST(U47, OFFSET(Vd_1:Vd_3,MATCH(U47,I_Vd1:I_Vd3,1)-1,0,2), OFFSET(I_Vd1:I_Vd3,MATCH(U47,I_Vd1:I_Vd3,1)-1,0,2))+(U46-25)*vd_temp_coeff/1000) -> 0.2568225114 | V48: =IF(Reset=1,0.45,FORECAST(V47, OFFSET(Vd_1:Vd_3,MATCH(V47,I_Vd1:I_Vd3,1)-1,0,2), OFFSET(I_Vd1:I_Vd3,MATCH(V47,I_Vd1:I_Vd3,1)-1,0,2))+(V46-25)*vd_temp_coeff/1000) -> 0.2544531077 | W48: =IF(Reset=1,0.45,FORECAST(W47, OFFSET(Vd_1:Vd_3,MATCH(W47,I_Vd1:I_Vd3,1)-1,0,2), OFFSET(I_Vd1:I_Vd3,MATCH(W47,I_Vd1:I_Vd3,1)-1,0,2))+(W46-25)*vd_temp_coeff/1000) -> 0.2523090794 | X48: =IF(Reset=1,0.45,FORECAST(X47, OFFSET(Vd_1:Vd_3,MATCH(X47,I_Vd1:I_Vd3,1)-1,0,2), OFFSET(I_Vd1:I_Vd3,MATCH(X47,I_Vd1:I_Vd3,1)-1,0,2))+(X46-25)*vd_temp_coeff/1000) -> 0.2503956538 | Y48: =IF(Reset=1,0.45,FORECAST(Y47, OFFSET(Vd_1:Vd_3,MATCH(Y47,I_Vd1:I_Vd3,1)-1,0,2), OFFSET(I_Vd1:I_Vd3,MATCH(Y47,I_Vd1:I_Vd3,1)-1,0,2))+(Y46-25)*vd_temp_coeff/1000) -> 0.2486735497 | Z48: =IF(Reset=1,0.45,FORECAST(Z47, OFFSET(Vd_1:Vd_3,MATCH(Z47,I_Vd1:I_Vd3,1)-1,0,2), OFFSET(I_Vd1:I_Vd3,MATCH(Z47,I_Vd1:I_Vd3,1)-1,0,2))+(Z46-25)*vd_temp_coeff/1000) -> 0.2471240797 | AA48: =IF(Reset=1,0.45,FORECAST(AA47, OFFSET(Vd_1:Vd_3,MATCH(AA47,I_Vd1:I_Vd3,1)-1,0,2), OFFSET(I_Vd1:I_Vd3,MATCH(AA47,I_Vd1:I_Vd3,1)-1,0,2))+(AA46-25)*vd_temp_coeff/1000) -> 0.2435336252 | AB48: =IF(Reset=1,0.45,FORECAST(AB47, OFFSET(Vd_1:Vd_3,MATCH(AB47,I_Vd1:I_Vd3,1)-1,0,2), OFFSET(I_Vd1:I_Vd3,MATCH(AB47,I_Vd1:I_Vd3,1)-1,0,2))+(AB46-25)*vd_temp_coeff/1000) -> 0.2432002055 | AC48: =IF(Reset=1,0.45,FORECAST(AC47, OFFSET(Vd_1:Vd_3,MATCH(AC47,I_Vd1:I_Vd3,1)-1,0,2), OFFSET(I_Vd1:I_Vd3,MATCH(AC47,I_Vd1:I_Vd3,1)-1,0,2))+(AC46-25)*vd_temp_coeff/1000) -> 0.2428896178 | AD48: =IF(Reset=1,0.45,FORECAST(AD47, OFFSET(Vd_1:Vd_3,MATCH(AD47,I_Vd1:I_Vd3,1)-1,0,2), OFFSET(I_Vd1:I_Vd3,MATCH(AD47,I_Vd1:I_Vd3,1)-1,0,2))+(AD46-25)*vd_temp_coeff/1000) -> 0.2425995965 | AE48: =IF(Reset=1,0.45,FORECAST(AE47, OFFSET(Vd_1:Vd_3,MATCH(AE47,I_Vd1:I_Vd3,1)-1,0,2), OFFSET(I_Vd1:I_Vd3,MATCH(AE47,I_Vd1:I_Vd3,1)-1,0,2))+(AE46-25)*vd_temp_coeff/1000) -> 0.2423281658 | AF48: =IF(Reset=1,0.45,FORECAST(AF47, OFFSET(Vd_1:Vd_3,MATCH(AF47,I_Vd1:I_Vd3,1)-1,0,2), OFFSET(I_Vd1:I_Vd3,MATCH(AF47,I_Vd1:I_Vd3,1)-1,0,2))+(AF46-25)*vd_temp_coeff/1000) -> 0.242073595 | AG48: =IF(Reset=1,0.45,FORECAST(AG47, OFFSET(Vd_1:Vd_3,MATCH(AG47,I_Vd1:I_Vd3,1)-1,0,2), OFFSET(I_Vd1:I_Vd3,MATCH(AG47,I_Vd1:I_Vd3,1)-1,0,2))+(AG46-25)*vd_temp_coeff/1000) -> 0.2418343617 | AH48: =IF(Reset=1,0.45,FORECAST(AH47, OFFSET(Vd_1:Vd_3,MATCH(AH47,I_Vd1:I_Vd3,1)-1,0,2), OFFSET(I_Vd1:I_Vd3,MATCH(AH47,I_Vd1:I_Vd3,1)-1,0,2))+(AH46-25)*vd_temp_coeff/1000) -> 0.2416091212 | AI48: =IF(Reset=1,0.45,FORECAST(AI47, OFFSET(Vd_1:Vd_3,MATCH(AI47,I_Vd1:I_Vd3,1)-1,0,2), OFFSET(I_Vd1:I_Vd3,MATCH(AI47,I_Vd1:I_Vd3,1)-1,0,2))+(AI46-25)*vd_temp_coeff/1000) -> 0.2413966814 | AJ48: =IF(Reset=1,0.45,FORECAST(AJ47, OFFSET(Vd_1:Vd_3,MATCH(AJ47,I_Vd1:I_Vd3,1)-1,0,2), OFFSET(I_Vd1:I_Vd3,MATCH(AJ47,I_Vd1:I_Vd3,1)-1,0,2))+(AJ46-25)*vd_temp_coeff/1000) -> 0.241195982 | AK48: =IF(Reset=1,0.45,FORECAST(AK47, OFFSET(Vd_1:Vd_3,MATCH(AK47,I_Vd1:I_Vd3,1)-1,0,2), OFFSET(I_Vd1:I_Vd3,MATCH(AK47,I_Vd1:I_Vd3,1)-1,0,2))+(AK46-25)*vd_temp_coeff/1000) -> 0.2410060764 | AL48: =IF(Reset=1,0.45,FORECAST(AL47, OFFSET(Vd_1:Vd_3,MATCH(AL47,I_Vd1:I_Vd3,1)-1,0,2), OFFSET(I_Vd1:I_Vd3,MATCH(AL47,I_Vd1:I_Vd3,1)-1,0,2))+(AL46-25)*vd_temp_coeff/1000) -> 0.2408261172 | AM48: =IF(Reset=1,0.45,FORECAST(AM47, OFFSET(Vd_1:Vd_3,MATCH(AM47,I_Vd1:I_Vd3,1)-1,0,2), OFFSET(I_Vd1:I_Vd3,MATCH(AM47,I_Vd1:I_Vd3,1)-1,0,2))+(AM46-25)*vd_temp_coeff/1000) -> 0.2406553431 | AN48: =IF(Reset=1,0.45,FORECAST(AN47, OFFSET(Vd_1:Vd_3,MATCH(AN47,I_Vd1:I_Vd3,1)-1,0,2), OFFSET(I_Vd1:I_Vd3,MATCH(AN47,I_Vd1:I_Vd3,1)-1,0,2))+(AN46-25)*vd_temp_coeff/1000) -> 0.2404930689 | AO48: =IF(Reset=1,0.45,FORECAST(AO47, OFFSET(Vd_1:Vd_3,MATCH(AO47,I_Vd1:I_Vd3,1)-1,0,2), OFFSET(I_Vd1:I_Vd3,MATCH(AO47,I_Vd1:I_Vd3,1)-1,0,2))+(AO46-25)*vd_temp_coeff/1000) -> 0.2403386756 | AP48: =IF(Reset=1,0.45,FORECAST(AP47, OFFSET(Vd_1:Vd_3,MATCH(AP47,I_Vd1:I_Vd3,1)-1,0,2), OFFSET(I_Vd1:I_Vd3,MATCH(AP47,I_Vd1:I_Vd3,1)-1,0,2))+(AP46-25)*vd_temp_coeff/1000) -> 0.2401916031 | AQ48: =IF(Reset=1,0.45,FORECAST(AQ47, OFFSET(Vd_1:Vd_3,MATCH(AQ47,I_Vd1:I_Vd3,1)-1,0,2), OFFSET(I_Vd1:I_Vd3,MATCH(AQ47,I_Vd1:I_Vd3,1)-1,0,2))+(AQ46-25)*vd_temp_coeff/1000) -> 0.2400513428 | AR48: =IF(Reset=1,0.45,FORECAST(AR47, OFFSET(Vd_1:Vd_3,MATCH(AR47,I_Vd1:I_Vd3,1)-1,0,2), OFFSET(I_Vd1:I_Vd3,MATCH(AR47,I_Vd1:I_Vd3,1)-1,0,2))+(AR46-25)*vd_temp_coeff/1000) -> 0.2399174324 | AS48: =IF(Reset=1,0.45,FORECAST(AS47, OFFSET(Vd_1:Vd_3,MATCH(AS47,I_Vd1:I_Vd3,1)-1,0,2), OFFSET(I_Vd1:I_Vd3,MATCH(AS47,I_Vd1:I_Vd3,1)-1,0,2))+(AS46-25)*vd_temp_coeff/1000) -> 0.2397894503 | AT48: =IF(Reset=1,0.45,FORECAST(AT47, OFFSET(Vd_1:Vd_3,MATCH(AT47,I_Vd1:I_Vd3,1)-1,0,2), OFFSET(I_Vd1:I_Vd3,MATCH(AT47,I_Vd1:I_Vd3,1)-1,0,2))+(AT46-25)*vd_temp_coeff/1000) -> 0.2396670117 | AU48: =IF(Reset=1,0.45,FORECAST(AU47, OFFSET(Vd_1:Vd_3,MATCH(AU47,I_Vd1:I_Vd3,1)-1,0,2), OFFSET(I_Vd1:I_Vd3,MATCH(AU47,I_Vd1:I_Vd3,1)-1,0,2))+(AU46-25)*vd_temp_coeff/1000) -> 0.2395497639 | AV48: =IF(Reset=1,0.45,FORECAST(AV47, OFFSET(Vd_1:Vd_3,MATCH(AV47,I_Vd1:I_Vd3,1)-1,0,2), OFFSET(I_Vd1:I_Vd3,MATCH(AV47,I_Vd1:I_Vd3,1)-1,0,2))+(AV46-25)*vd_temp_coeff/1000) -> 0.239437384 | AW48: =IF(Reset=1,0.45,FORECAST(AW47, OFFSET(Vd_1:Vd_3,MATCH(AW47,I_Vd1:I_Vd3,1)-1,0,2), OFFSET(I_Vd1:I_Vd3,MATCH(AW47,I_Vd1:I_Vd3,1)-1,0,2))+(AW46-25)*vd_temp_coeff/1000) -> 0.239329575 | AX48: =IF(Reset=1,0.45,FORECAST(AX47, OFFSET(Vd_1:Vd_3,MATCH(AX47,I_Vd1:I_Vd3,1)-1,0,2), OFFSET(I_Vd1:I_Vd3,MATCH(AX47,I_Vd1:I_Vd3,1)-1,0,2))+(AX46-25)*vd_temp_coeff/1000) -> 0.2392260637 | AY48: =IF(Reset=1,0.45,FORECAST(AY47, OFFSET(Vd_1:Vd_3,MATCH(AY47,I_Vd1:I_Vd3,1)-1,0,2), OFFSET(I_Vd1:I_Vd3,MATCH(AY47,I_Vd1:I_Vd3,1)-1,0,2))+(AY46-25)*vd_temp_coeff/1000) -> 0.2391265982 | AZ48: =IF(Reset=1,0.45,FORECAST(AZ47, OFFSET(Vd_1:Vd_3,MATCH(AZ47,I_Vd1:I_Vd3,1)-1,0,2), OFFSET(I_Vd1:I_Vd3,MATCH(AZ47,I_Vd1:I_Vd3,1)-1,0,2))+(AZ46-25)*vd_temp_coeff/1000) -> 0.2390309459 | BA48: =IF(Reset=1,0.45,FORECAST(BA47, OFFSET(Vd_1:Vd_3,MATCH(BA47,I_Vd1:I_Vd3,1)-1,0,2), OFFSET(I_Vd1:I_Vd3,MATCH(BA47,I_Vd1:I_Vd3,1)-1,0,2))+(BA46-25)*vd_temp_coeff/1000) -> 0.2389388917 | BB48: =IF(Reset=1,0.45,FORECAST(BB47, OFFSET(Vd_1:Vd_3,MATCH(BB47,I_Vd1:I_Vd3,1)-1,0,2), OFFSET(I_Vd1:I_Vd3,MATCH(BB47,I_Vd1:I_Vd3,1)-1,0,2))+(BB46-25)*vd_temp_coeff/1000) -> 0.2388502364 | BC48: =IF(Reset=1,0.45,FORECAST(BC47, OFFSET(Vd_1:Vd_3,MATCH(BC47,I_Vd1:I_Vd3,1)-1,0,2), OFFSET(I_Vd1:I_Vd3,MATCH(BC47,I_Vd1:I_Vd3,1)-1,0,2))+(BC46-25)*vd_temp_coeff/1000) -> 0.2387647953 | BD48: =IF(Reset=1,0.45,FORECAST(BD47, OFFSET(Vd_1:Vd_3,MATCH(BD47,I_Vd1:I_Vd3,1)-1,0,2), OFFSET(I_Vd1:I_Vd3,MATCH(BD47,I_Vd1:I_Vd3,1)-1,0,2))+(BD46-25)*vd_temp_coeff/1000) -> 0.2386823846 | BE48: =IF(Reset=1,0.45,FORECAST(BE47, OFFSET(Vd_1:Vd_3,MATCH(BE47,I_Vd1:I_Vd3,1)-1,0,2), OFFSET(I_Vd1:I_Vd3,MATCH(BE47,I_Vd1:I_Vd3,1)-1,0,2))+(BE46-25)*vd_temp_coeff/1000) -> 0.2386028556 | BF48: =IF(Reset=1,0.45,FORECAST(BF47, OFFSET(Vd_1:Vd_3,MATCH(BF47,I_Vd1:I_Vd3,1)-1,0,2), OFFSET(I_Vd1:I_Vd3,MATCH(BF47,I_Vd1:I_Vd3,1)-1,0,2))+(BF46-25)*vd_temp_coeff/1000) -> 0.2385260613 | BG48: =IF(Reset=1,0.45,FORECAST(BG47, OFFSET(Vd_1:Vd_3,MATCH(BG47,I_Vd1:I_Vd3,1)-1,0,2), OFFSET(I_Vd1:I_Vd3,MATCH(BG47,I_Vd1:I_Vd3,1)-1,0,2))+(BG46-25)*vd_temp_coeff/1000) -> 0.238451863 | BH48: =IF(Reset=1,0.45,FORECAST(BH47, OFFSET(Vd_1:Vd_3,MATCH(BH47,I_Vd1:I_Vd3,1)-1,0,2), OFFSET(I_Vd1:I_Vd3,MATCH(BH47,I_Vd1:I_Vd3,1)-1,0,2))+(BH46-25)*vd_temp_coeff/1000) -> 0.2383801312 | BI48: =IF(Reset=1,0.45,FORECAST(BI47, OFFSET(Vd_1:Vd_3,MATCH(BI47,I_Vd1:I_Vd3,1)-1,0,2), OFFSET(I_Vd1:I_Vd3,MATCH(BI47,I_Vd1:I_Vd3,1)-1,0,2))+(BI46-25)*vd_temp_coeff/1000) -> 0.2362466799 | BJ48: Vf buck diode
A49: Max Vds | B49: =IF(Topology="Buck","-",Vreg+4) -> 9.35 | E49: =IF(Topology="Buck","","Select MOSFET with higher VDS rating") -> Select MOSFET with higher VDS rating | I49: Pdiss buck diode | J49: =J48*J26 -> 0.0777895846 | K49: 0.1291303606 | L49: 0.1217716255 | M49: 0.1144287144 | N49: 0.1074544091 | O49: 0.1009841994 | P49: 0.09505314177 | Q49: 0.08943814619 | R49: 0.08394144624 | S49: 0.07903107127 | T49: 0.07462805648 | U49: 0.07067751429 | V49: 0.06713077067 | W49: 0.06410242936 | X49: 0.06122079152 | Y49: 0.05863429155 | Z49: 0.05631415462 | AA49: 0.04133700812 | AB49: 0.04460582837 | AC49: 0.04765080558 | AD49: 0.050494152 | AE49: 0.05315523739 | AF49: 0.05565102932 | AG49: 0.05799645405 | AH49: 0.06020469441 | AI49: 0.06228743691 | AJ49: 0.06425507809 | AK49: 0.06611689763 | AL49: 0.06788120429 | AM49: 0.06955545963 | AN49: 0.07114638323 | AO49: 0.07266004266 | AP49: =AP48*AP26 -> 0.07410193063 | AQ49: 0.07547703149 | AR49: 0.07678987867 | AS49: 0.07804460455 | AT49: 0.0792449838 | AU49: 0.08039447129 | AV49: 0.08149623519 | AW49: 0.08255318616 | AX49: 0.08356800294 | AY49: 0.08454315501 | AZ49: 0.08548092261 | BA49: 0.08638341454 | BB49: 0.08725258397 | BC49: 0.08809024251 | BD49: 0.08889819039 | BE49: 0.08967788625 | BF49: 0.09043077183 | BG49: 0.09115820631 | BH49: 0.09186145849 | BI49: 0.1127776479 | BJ49: Pdiss buck diode
A50: Rds ON boost | B50: 0.029 | C50: Ω | E50: Enter Rds ON at 25C of selected boost MOSFET | H50: Boost Diode | I50: Tj Boost Diode | J50: =J53*RthJA_diode+Ta -> 137.3730149 | K50: 139.870229 | L50: 139.6459803 | M50: 139.4557329 | N50: 139.2921652 | O50: 139.1499193 | P50: 139.0249837 | Q50: 138.9143054 | R50: 138.765546 | S50: 138.5839094 | T50: 138.4196104 | U50: 138.2701691 | V50: 138.1335576 | W50: 138.0083209 | X50: 137.8925772 | Y50: 137.7854293 | Z50: 137.6858855 | AA50: 137.3730149 | AB50: 137.3730149 | AC50: 137.3730149 | AD50: 137.3730149 | AE50: 137.3730149 | AF50: 137.3730149 | AG50: 137.3730149 | AH50: 137.3730149 | AI50: 137.3730149 | AJ50: 137.3730149 | AK50: 137.3730149 | AL50: 137.3730149 | AM50: 137.3730149 | AN50: 137.3730149 | AO50: 137.3730149 | AP50: =AP53*RthJA_diode+Ta -> 137.3730149 | AQ50: 137.3730149 | AR50: 137.3730149 | AS50: 137.3730149 | AT50: 137.3730149 | AU50: 137.3730149 | AV50: 137.3730149 | AW50: 137.3730149 | AX50: 137.3730149 | AY50: 137.3730149 | AZ50: 137.3730149 | BA50: 137.3730149 | BB50: 137.3730149 | BC50: 137.3730149 | BD50: 137.3730149 | BE50: 137.3730149 | BF50: 137.3730149 | BG50: 137.3730149 | BH50: 137.3730149 | BI50: 137.3730149 | BJ50: Tj Boost Diode | BK50: Boost Diode
A51: Rthj-a | B51: 40 | C51: °C/W | E51: Enter MOSFET junction to ambient thermal resistance | I51: I boost diode ON | J51: =IF(J17=0,J28,IF(J$12>J$14,J22,J22-J23/2)) -> 0.57 | K51: 1.594253613 | L51: 1.461907155 | M51: 1.349627462 | N51: 1.253093493 | O51: 1.169143226 | P51: 1.095409063 | Q51: 1.030089222 | R51: 0.9717885722 | S51: 0.9193807573 | T51: 0.8719753834 | U51: 0.8288569176 | V51: 0.7894402349 | W51: 0.7533055612 | X51: 0.7199098829 | Y51: 0.6889943967 | Z51: 0.6602728936 | AA51: 0.57 | AB51: 0.57 | AC51: 0.57 | AD51: 0.57 | AE51: 0.57 | AF51: 0.57 | AG51: 0.57 | AH51: 0.57 | AI51: 0.57 | AJ51: 0.57 | AK51: 0.57 | AL51: 0.57 | AM51: 0.57 | AN51: 0.57 | AO51: 0.57 | AP51: =IF(AP17=0,AP28,IF(AP$12>AP$14,AP22,AP22-AP23/2)) -> 0.57 | AQ51: 0.57 | AR51: 0.57 | AS51: 0.57 | AT51: 0.57 | AU51: 0.57 | AV51: 0.57 | AW51: 0.57 | AX51: 0.57 | AY51: 0.57 | AZ51: 0.57 | BA51: 0.57 | BB51: 0.57 | BC51: 0.57 | BD51: 0.57 | BE51: 0.57 | BF51: 0.57 | BG51: 0.57 | BH51: 0.57 | BI51: 0.57 | BJ51: I boost diode ON
A52: t rise boost | B52: 12 | C52: ns | E52: Enter estimated boost switch rise time | I52: Vf boost diode | J52: =IF(Reset=1,0.45,FORECAST(J51, OFFSET(Vd_1_boost:Vd_3_boost,MATCH(J51,I_Vd1_boost:I_Vd3_boost,1)-1,0,2), OFFSET(I_Vd1_boost:I_Vd3_boost,MATCH(J51,I_Vd1_boost:I_Vd3_boost,1)-1,0,2))+(J50-25)*vd_boost_temp_coeff/1000) -> 0.2553769851 | K52: =IF(Reset=1,0.45,FORECAST(K51, OFFSET(Vd_1_boost:Vd_3_boost,MATCH(K51,I_Vd1_boost:I_Vd3_boost,1)-1,0,2), OFFSET(I_Vd1_boost:I_Vd3_boost,MATCH(K51,I_Vd1_boost:I_Vd3_boost,1)-1,0,2))+(K50-25)*vd_boost_temp_coeff/1000) -> 0.3069190702 | L52: =IF(Reset=1,0.45,FORECAST(L51, OFFSET(Vd_1_boost:Vd_3_boost,MATCH(L51,I_Vd1_boost:I_Vd3_boost,1)-1,0,2), OFFSET(I_Vd1_boost:I_Vd3_boost,MATCH(L51,I_Vd1_boost:I_Vd3_boost,1)-1,0,2))+(L50-25)*vd_boost_temp_coeff/1000) -> 0.3022906154 | M52: =IF(Reset=1,0.45,FORECAST(M51, OFFSET(Vd_1_boost:Vd_3_boost,MATCH(M51,I_Vd1_boost:I_Vd3_boost,1)-1,0,2), OFFSET(I_Vd1_boost:I_Vd3_boost,MATCH(M51,I_Vd1_boost:I_Vd3_boost,1)-1,0,2))+(M50-25)*vd_boost_temp_coeff/1000) -> 0.2983639407 | N52: =IF(Reset=1,0.45,FORECAST(N51, OFFSET(Vd_1_boost:Vd_3_boost,MATCH(N51,I_Vd1_boost:I_Vd3_boost,1)-1,0,2), OFFSET(I_Vd1_boost:I_Vd3_boost,MATCH(N51,I_Vd1_boost:I_Vd3_boost,1)-1,0,2))+(N50-25)*vd_boost_temp_coeff/1000) -> 0.2949879296 | O52: =IF(Reset=1,0.45,FORECAST(O51, OFFSET(Vd_1_boost:Vd_3_boost,MATCH(O51,I_Vd1_boost:I_Vd3_boost,1)-1,0,2), OFFSET(I_Vd1_boost:I_Vd3_boost,MATCH(O51,I_Vd1_boost:I_Vd3_boost,1)-1,0,2))+(O50-25)*vd_boost_temp_coeff/1000) -> 0.2920519989 | P52: =IF(Reset=1,0.45,FORECAST(P51, OFFSET(Vd_1_boost:Vd_3_boost,MATCH(P51,I_Vd1_boost:I_Vd3_boost,1)-1,0,2), OFFSET(I_Vd1_boost:I_Vd3_boost,MATCH(P51,I_Vd1_boost:I_Vd3_boost,1)-1,0,2))+(P50-25)*vd_boost_temp_coeff/1000) -> 0.2894733486 | Q52: =IF(Reset=1,0.45,FORECAST(Q51, OFFSET(Vd_1_boost:Vd_3_boost,MATCH(Q51,I_Vd1_boost:I_Vd3_boost,1)-1,0,2), OFFSET(I_Vd1_boost:I_Vd3_boost,MATCH(Q51,I_Vd1_boost:I_Vd3_boost,1)-1,0,2))+(Q50-25)*vd_boost_temp_coeff/1000) -> 0.2871889661 | R52: =IF(Reset=1,0.45,FORECAST(R51, OFFSET(Vd_1_boost:Vd_3_boost,MATCH(R51,I_Vd1_boost:I_Vd3_boost,1)-1,0,2), OFFSET(I_Vd1_boost:I_Vd3_boost,MATCH(R51,I_Vd1_boost:I_Vd3_boost,1)-1,0,2))+(R50-25)*vd_boost_temp_coeff/1000) -> 0.2841185969 | S52: =IF(Reset=1,0.45,FORECAST(S51, OFFSET(Vd_1_boost:Vd_3_boost,MATCH(S51,I_Vd1_boost:I_Vd3_boost,1)-1,0,2), OFFSET(I_Vd1_boost:I_Vd3_boost,MATCH(S51,I_Vd1_boost:I_Vd3_boost,1)-1,0,2))+(S50-25)*vd_boost_temp_coeff/1000) -> 0.2803696474 | T52: =IF(Reset=1,0.45,FORECAST(T51, OFFSET(Vd_1_boost:Vd_3_boost,MATCH(T51,I_Vd1_boost:I_Vd3_boost,1)-1,0,2), OFFSET(I_Vd1_boost:I_Vd3_boost,MATCH(T51,I_Vd1_boost:I_Vd3_boost,1)-1,0,2))+(T50-25)*vd_boost_temp_coeff/1000) -> 0.2769785433 | U52: =IF(Reset=1,0.45,FORECAST(U51, OFFSET(Vd_1_boost:Vd_3_boost,MATCH(U51,I_Vd1_boost:I_Vd3_boost,1)-1,0,2), OFFSET(I_Vd1_boost:I_Vd3_boost,MATCH(U51,I_Vd1_boost:I_Vd3_boost,1)-1,0,2))+(U50-25)*vd_boost_temp_coeff/1000) -> 0.2738940997 | V52: =IF(Reset=1,0.45,FORECAST(V51, OFFSET(Vd_1_boost:Vd_3_boost,MATCH(V51,I_Vd1_boost:I_Vd3_boost,1)-1,0,2), OFFSET(I_Vd1_boost:I_Vd3_boost,MATCH(V51,I_Vd1_boost:I_Vd3_boost,1)-1,0,2))+(V50-25)*vd_boost_temp_coeff/1000) -> 0.27107446 | W52: =IF(Reset=1,0.45,FORECAST(W51, OFFSET(Vd_1_boost:Vd_3_boost,MATCH(W51,I_Vd1_boost:I_Vd3_boost,1)-1,0,2), OFFSET(I_Vd1_boost:I_Vd3_boost,MATCH(W51,I_Vd1_boost:I_Vd3_boost,1)-1,0,2))+(W50-25)*vd_boost_temp_coeff/1000) -> 0.2684895962 | X52: =IF(Reset=1,0.45,FORECAST(X51, OFFSET(Vd_1_boost:Vd_3_boost,MATCH(X51,I_Vd1_boost:I_Vd3_boost,1)-1,0,2), OFFSET(I_Vd1_boost:I_Vd3_boost,MATCH(X51,I_Vd1_boost:I_Vd3_boost,1)-1,0,2))+(X50-25)*vd_boost_temp_coeff/1000) -> 0.266100664 | Y52: =IF(Reset=1,0.45,FORECAST(Y51, OFFSET(Vd_1_boost:Vd_3_boost,MATCH(Y51,I_Vd1_boost:I_Vd3_boost,1)-1,0,2), OFFSET(I_Vd1_boost:I_Vd3_boost,MATCH(Y51,I_Vd1_boost:I_Vd3_boost,1)-1,0,2))+(Y50-25)*vd_boost_temp_coeff/1000) -> 0.2638891504 | Z52: =IF(Reset=1,0.45,FORECAST(Z51, OFFSET(Vd_1_boost:Vd_3_boost,MATCH(Z51,I_Vd1_boost:I_Vd3_boost,1)-1,0,2), OFFSET(I_Vd1_boost:I_Vd3_boost,MATCH(Z51,I_Vd1_boost:I_Vd3_boost,1)-1,0,2))+(Z50-25)*vd_boost_temp_coeff/1000) -> 0.2618345815 | AA52: =IF(Reset=1,0.45,FORECAST(AA51, OFFSET(Vd_1_boost:Vd_3_boost,MATCH(AA51,I_Vd1_boost:I_Vd3_boost,1)-1,0,2), OFFSET(I_Vd1_boost:I_Vd3_boost,MATCH(AA51,I_Vd1_boost:I_Vd3_boost,1)-1,0,2))+(AA50-25)*vd_boost_temp_coeff/1000) -> 0.2553769851 | AB52: =IF(Reset=1,0.45,FORECAST(AB51, OFFSET(Vd_1_boost:Vd_3_boost,MATCH(AB51,I_Vd1_boost:I_Vd3_boost,1)-1,0,2), OFFSET(I_Vd1_boost:I_Vd3_boost,MATCH(AB51,I_Vd1_boost:I_Vd3_boost,1)-1,0,2))+(AB50-25)*vd_boost_temp_coeff/1000) -> 0.2553769851 | AC52: =IF(Reset=1,0.45,FORECAST(AC51, OFFSET(Vd_1_boost:Vd_3_boost,MATCH(AC51,I_Vd1_boost:I_Vd3_boost,1)-1,0,2), OFFSET(I_Vd1_boost:I_Vd3_boost,MATCH(AC51,I_Vd1_boost:I_Vd3_boost,1)-1,0,2))+(AC50-25)*vd_boost_temp_coeff/1000) -> 0.2553769851 | AD52: =IF(Reset=1,0.45,FORECAST(AD51, OFFSET(Vd_1_boost:Vd_3_boost,MATCH(AD51,I_Vd1_boost:I_Vd3_boost,1)-1,0,2), OFFSET(I_Vd1_boost:I_Vd3_boost,MATCH(AD51,I_Vd1_boost:I_Vd3_boost,1)-1,0,2))+(AD50-25)*vd_boost_temp_coeff/1000) -> 0.2553769851 | AE52: =IF(Reset=1,0.45,FORECAST(AE51, OFFSET(Vd_1_boost:Vd_3_boost,MATCH(AE51,I_Vd1_boost:I_Vd3_boost,1)-1,0,2), OFFSET(I_Vd1_boost:I_Vd3_boost,MATCH(AE51,I_Vd1_boost:I_Vd3_boost,1)-1,0,2))+(AE50-25)*vd_boost_temp_coeff/1000) -> 0.2553769851 | AF52: =IF(Reset=1,0.45,FORECAST(AF51, OFFSET(Vd_1_boost:Vd_3_boost,MATCH(AF51,I_Vd1_boost:I_Vd3_boost,1)-1,0,2), OFFSET(I_Vd1_boost:I_Vd3_boost,MATCH(AF51,I_Vd1_boost:I_Vd3_boost,1)-1,0,2))+(AF50-25)*vd_boost_temp_coeff/1000) -> 0.2553769851 | AG52: =IF(Reset=1,0.45,FORECAST(AG51, OFFSET(Vd_1_boost:Vd_3_boost,MATCH(AG51,I_Vd1_boost:I_Vd3_boost,1)-1,0,2), OFFSET(I_Vd1_boost:I_Vd3_boost,MATCH(AG51,I_Vd1_boost:I_Vd3_boost,1)-1,0,2))+(AG50-25)*vd_boost_temp_coeff/1000) -> 0.2553769851 | AH52: =IF(Reset=1,0.45,FORECAST(AH51, OFFSET(Vd_1_boost:Vd_3_boost,MATCH(AH51,I_Vd1_boost:I_Vd3_boost,1)-1,0,2), OFFSET(I_Vd1_boost:I_Vd3_boost,MATCH(AH51,I_Vd1_boost:I_Vd3_boost,1)-1,0,2))+(AH50-25)*vd_boost_temp_coeff/1000) -> 0.2553769851 | AI52: =IF(Reset=1,0.45,FORECAST(AI51, OFFSET(Vd_1_boost:Vd_3_boost,MATCH(AI51,I_Vd1_boost:I_Vd3_boost,1)-1,0,2), OFFSET(I_Vd1_boost:I_Vd3_boost,MATCH(AI51,I_Vd1_boost:I_Vd3_boost,1)-1,0,2))+(AI50-25)*vd_boost_temp_coeff/1000) -> 0.2553769851 | AJ52: =IF(Reset=1,0.45,FORECAST(AJ51, OFFSET(Vd_1_boost:Vd_3_boost,MATCH(AJ51,I_Vd1_boost:I_Vd3_boost,1)-1,0,2), OFFSET(I_Vd1_boost:I_Vd3_boost,MATCH(AJ51,I_Vd1_boost:I_Vd3_boost,1)-1,0,2))+(AJ50-25)*vd_boost_temp_coeff/1000) -> 0.2553769851 | AK52: =IF(Reset=1,0.45,FORECAST(AK51, OFFSET(Vd_1_boost:Vd_3_boost,MATCH(AK51,I_Vd1_boost:I_Vd3_boost,1)-1,0,2), OFFSET(I_Vd1_boost:I_Vd3_boost,MATCH(AK51,I_Vd1_boost:I_Vd3_boost,1)-1,0,2))+(AK50-25)*vd_boost_temp_coeff/1000) -> 0.2553769851 | AL52: =IF(Reset=1,0.45,FORECAST(AL51, OFFSET(Vd_1_boost:Vd_3_boost,MATCH(AL51,I_Vd1_boost:I_Vd3_boost,1)-1,0,2), OFFSET(I_Vd1_boost:I_Vd3_boost,MATCH(AL51,I_Vd1_boost:I_Vd3_boost,1)-1,0,2))+(AL50-25)*vd_boost_temp_coeff/1000) -> 0.2553769851 | AM52: =IF(Reset=1,0.45,FORECAST(AM51, OFFSET(Vd_1_boost:Vd_3_boost,MATCH(AM51,I_Vd1_boost:I_Vd3_boost,1)-1,0,2), OFFSET(I_Vd1_boost:I_Vd3_boost,MATCH(AM51,I_Vd1_boost:I_Vd3_boost,1)-1,0,2))+(AM50-25)*vd_boost_temp_coeff/1000) -> 0.2553769851 | AN52: =IF(Reset=1,0.45,FORECAST(AN51, OFFSET(Vd_1_boost:Vd_3_boost,MATCH(AN51,I_Vd1_boost:I_Vd3_boost,1)-1,0,2), OFFSET(I_Vd1_boost:I_Vd3_boost,MATCH(AN51,I_Vd1_boost:I_Vd3_boost,1)-1,0,2))+(AN50-25)*vd_boost_temp_coeff/1000) -> 0.2553769851 | AO52: =IF(Reset=1,0.45,FORECAST(AO51, OFFSET(Vd_1_boost:Vd_3_boost,MATCH(AO51,I_Vd1_boost:I_Vd3_boost,1)-1,0,2), OFFSET(I_Vd1_boost:I_Vd3_boost,MATCH(AO51,I_Vd1_boost:I_Vd3_boost,1)-1,0,2))+(AO50-25)*vd_boost_temp_coeff/1000) -> 0.2553769851 | AP52: =IF(Reset=1,0.45,FORECAST(AP51, OFFSET(Vd_1_boost:Vd_3_boost,MATCH(AP51,I_Vd1_boost:I_Vd3_boost,1)-1,0,2), OFFSET(I_Vd1_boost:I_Vd3_boost,MATCH(AP51,I_Vd1_boost:I_Vd3_boost,1)-1,0,2))+(AP50-25)*vd_boost_temp_coeff/1000) -> 0.2553769851 | AQ52: =IF(Reset=1,0.45,FORECAST(AQ51, OFFSET(Vd_1_boost:Vd_3_boost,MATCH(AQ51,I_Vd1_boost:I_Vd3_boost,1)-1,0,2), OFFSET(I_Vd1_boost:I_Vd3_boost,MATCH(AQ51,I_Vd1_boost:I_Vd3_boost,1)-1,0,2))+(AQ50-25)*vd_boost_temp_coeff/1000) -> 0.2553769851 | AR52: =IF(Reset=1,0.45,FORECAST(AR51, OFFSET(Vd_1_boost:Vd_3_boost,MATCH(AR51,I_Vd1_boost:I_Vd3_boost,1)-1,0,2), OFFSET(I_Vd1_boost:I_Vd3_boost,MATCH(AR51,I_Vd1_boost:I_Vd3_boost,1)-1,0,2))+(AR50-25)*vd_boost_temp_coeff/1000) -> 0.2553769851 | AS52: =IF(Reset=1,0.45,FORECAST(AS51, OFFSET(Vd_1_boost:Vd_3_boost,MATCH(AS51,I_Vd1_boost:I_Vd3_boost,1)-1,0,2), OFFSET(I_Vd1_boost:I_Vd3_boost,MATCH(AS51,I_Vd1_boost:I_Vd3_boost,1)-1,0,2))+(AS50-25)*vd_boost_temp_coeff/1000) -> 0.2553769851 | AT52: =IF(Reset=1,0.45,FORECAST(AT51, OFFSET(Vd_1_boost:Vd_3_boost,MATCH(AT51,I_Vd1_boost:I_Vd3_boost,1)-1,0,2), OFFSET(I_Vd1_boost:I_Vd3_boost,MATCH(AT51,I_Vd1_boost:I_Vd3_boost,1)-1,0,2))+(AT50-25)*vd_boost_temp_coeff/1000) -> 0.2553769851 | AU52: =IF(Reset=1,0.45,FORECAST(AU51, OFFSET(Vd_1_boost:Vd_3_boost,MATCH(AU51,I_Vd1_boost:I_Vd3_boost,1)-1,0,2), OFFSET(I_Vd1_boost:I_Vd3_boost,MATCH(AU51,I_Vd1_boost:I_Vd3_boost,1)-1,0,2))+(AU50-25)*vd_boost_temp_coeff/1000) -> 0.2553769851 | AV52: =IF(Reset=1,0.45,FORECAST(AV51, OFFSET(Vd_1_boost:Vd_3_boost,MATCH(AV51,I_Vd1_boost:I_Vd3_boost,1)-1,0,2), OFFSET(I_Vd1_boost:I_Vd3_boost,MATCH(AV51,I_Vd1_boost:I_Vd3_boost,1)-1,0,2))+(AV50-25)*vd_boost_temp_coeff/1000) -> 0.2553769851 | AW52: =IF(Reset=1,0.45,FORECAST(AW51, OFFSET(Vd_1_boost:Vd_3_boost,MATCH(AW51,I_Vd1_boost:I_Vd3_boost,1)-1,0,2), OFFSET(I_Vd1_boost:I_Vd3_boost,MATCH(AW51,I_Vd1_boost:I_Vd3_boost,1)-1,0,2))+(AW50-25)*vd_boost_temp_coeff/1000) -> 0.2553769851 | AX52: =IF(Reset=1,0.45,FORECAST(AX51, OFFSET(Vd_1_boost:Vd_3_boost,MATCH(AX51,I_Vd1_boost:I_Vd3_boost,1)-1,0,2), OFFSET(I_Vd1_boost:I_Vd3_boost,MATCH(AX51,I_Vd1_boost:I_Vd3_boost,1)-1,0,2))+(AX50-25)*vd_boost_temp_coeff/1000) -> 0.2553769851 | AY52: =IF(Reset=1,0.45,FORECAST(AY51, OFFSET(Vd_1_boost:Vd_3_boost,MATCH(AY51,I_Vd1_boost:I_Vd3_boost,1)-1,0,2), OFFSET(I_Vd1_boost:I_Vd3_boost,MATCH(AY51,I_Vd1_boost:I_Vd3_boost,1)-1,0,2))+(AY50-25)*vd_boost_temp_coeff/1000) -> 0.2553769851 | AZ52: =IF(Reset=1,0.45,FORECAST(AZ51, OFFSET(Vd_1_boost:Vd_3_boost,MATCH(AZ51,I_Vd1_boost:I_Vd3_boost,1)-1,0,2), OFFSET(I_Vd1_boost:I_Vd3_boost,MATCH(AZ51,I_Vd1_boost:I_Vd3_boost,1)-1,0,2))+(AZ50-25)*vd_boost_temp_coeff/1000) -> 0.2553769851 | BA52: =IF(Reset=1,0.45,FORECAST(BA51, OFFSET(Vd_1_boost:Vd_3_boost,MATCH(BA51,I_Vd1_boost:I_Vd3_boost,1)-1,0,2), OFFSET(I_Vd1_boost:I_Vd3_boost,MATCH(BA51,I_Vd1_boost:I_Vd3_boost,1)-1,0,2))+(BA50-25)*vd_boost_temp_coeff/1000) -> 0.2553769851 | BB52: =IF(Reset=1,0.45,FORECAST(BB51, OFFSET(Vd_1_boost:Vd_3_boost,MATCH(BB51,I_Vd1_boost:I_Vd3_boost,1)-1,0,2), OFFSET(I_Vd1_boost:I_Vd3_boost,MATCH(BB51,I_Vd1_boost:I_Vd3_boost,1)-1,0,2))+(BB50-25)*vd_boost_temp_coeff/1000) -> 0.2553769851 | BC52: =IF(Reset=1,0.45,FORECAST(BC51, OFFSET(Vd_1_boost:Vd_3_boost,MATCH(BC51,I_Vd1_boost:I_Vd3_boost,1)-1,0,2), OFFSET(I_Vd1_boost:I_Vd3_boost,MATCH(BC51,I_Vd1_boost:I_Vd3_boost,1)-1,0,2))+(BC50-25)*vd_boost_temp_coeff/1000) -> 0.2553769851 | BD52: =IF(Reset=1,0.45,FORECAST(BD51, OFFSET(Vd_1_boost:Vd_3_boost,MATCH(BD51,I_Vd1_boost:I_Vd3_boost,1)-1,0,2), OFFSET(I_Vd1_boost:I_Vd3_boost,MATCH(BD51,I_Vd1_boost:I_Vd3_boost,1)-1,0,2))+(BD50-25)*vd_boost_temp_coeff/1000) -> 0.2553769851 | BE52: =IF(Reset=1,0.45,FORECAST(BE51, OFFSET(Vd_1_boost:Vd_3_boost,MATCH(BE51,I_Vd1_boost:I_Vd3_boost,1)-1,0,2), OFFSET(I_Vd1_boost:I_Vd3_boost,MATCH(BE51,I_Vd1_boost:I_Vd3_boost,1)-1,0,2))+(BE50-25)*vd_boost_temp_coeff/1000) -> 0.2553769851 | BF52: =IF(Reset=1,0.45,FORECAST(BF51, OFFSET(Vd_1_boost:Vd_3_boost,MATCH(BF51,I_Vd1_boost:I_Vd3_boost,1)-1,0,2), OFFSET(I_Vd1_boost:I_Vd3_boost,MATCH(BF51,I_Vd1_boost:I_Vd3_boost,1)-1,0,2))+(BF50-25)*vd_boost_temp_coeff/1000) -> 0.2553769851 | BG52: =IF(Reset=1,0.45,FORECAST(BG51, OFFSET(Vd_1_boost:Vd_3_boost,MATCH(BG51,I_Vd1_boost:I_Vd3_boost,1)-1,0,2), OFFSET(I_Vd1_boost:I_Vd3_boost,MATCH(BG51,I_Vd1_boost:I_Vd3_boost,1)-1,0,2))+(BG50-25)*vd_boost_temp_coeff/1000) -> 0.2553769851 | BH52: =IF(Reset=1,0.45,FORECAST(BH51, OFFSET(Vd_1_boost:Vd_3_boost,MATCH(BH51,I_Vd1_boost:I_Vd3_boost,1)-1,0,2), OFFSET(I_Vd1_boost:I_Vd3_boost,MATCH(BH51,I_Vd1_boost:I_Vd3_boost,1)-1,0,2))+(BH50-25)*vd_boost_temp_coeff/1000) -> 0.2553769851 | BI52: =IF(Reset=1,0.45,FORECAST(BI51, OFFSET(Vd_1_boost:Vd_3_boost,MATCH(BI51,I_Vd1_boost:I_Vd3_boost,1)-1,0,2), OFFSET(I_Vd1_boost:I_Vd3_boost,MATCH(BI51,I_Vd1_boost:I_Vd3_boost,1)-1,0,2))+(BI50-25)*vd_boost_temp_coeff/1000) -> 0.2553769851 | BJ52: Vf boost diode
A53: t fall boost | B53: 12 | C53: ns | E53: Enter estimated boost switch fall time | I53: Pdiss boost diode | J53: =J52*J28 -> 0.1455648815 | K53: 0.17494387 | L53: 0.1723056508 | M53: 0.1700674462 | N53: 0.1681431199 | O53: 0.1664696394 | P53: 0.1649998087 | Q53: 0.1636977107 | R53: 0.1619476002 | S53: 0.159810699 | T53: 0.1578777697 | U53: 0.1561196368 | V53: 0.1545124422 | W53: 0.1530390698 | X53: 0.1516773785 | Y53: 0.1504168157 | Z53: 0.1492457115 | AA53: 0.1455648815 | AB53: 0.1455648815 | AC53: 0.1455648815 | AD53: 0.1455648815 | AE53: 0.1455648815 | AF53: 0.1455648815 | AG53: 0.1455648815 | AH53: 0.1455648815 | AI53: 0.1455648815 | AJ53: 0.1455648815 | AK53: 0.1455648815 | AL53: 0.1455648815 | AM53: 0.1455648815 | AN53: 0.1455648815 | AO53: 0.1455648815 | AP53: =AP52*AP28 -> 0.1455648815 | AQ53: 0.1455648815 | AR53: 0.1455648815 | AS53: 0.1455648815 | AT53: 0.1455648815 | AU53: 0.1455648815 | AV53: 0.1455648815 | AW53: 0.1455648815 | AX53: 0.1455648815 | AY53: 0.1455648815 | AZ53: 0.1455648815 | BA53: 0.1455648815 | BB53: 0.1455648815 | BC53: 0.1455648815 | BD53: 0.1455648815 | BE53: 0.1455648815 | BF53: 0.1455648815 | BG53: 0.1455648815 | BH53: 0.1455648815 | BI53: 0.1455648815 | BJ53: Pdiss boost diode
A54: Max Peak current | B54: =IF(Topology="Buck","-",MAX(K22:BI22)) -> 1.594253613 | C54: A | E54: =IF(Topology="Buck","","Maximum peak MOSFET current") -> Maximum peak MOSFET current | H54: Boost FET | I54: Tj Boost FET | J54: =IF(Reset=1,150,IF(Ta+Rthj_a_boost_FET*J59>190,190,Ta+Rthj_a_boost_FET*J59)) -> 125 | K54: 130.9513546 | L54: 130.3725042 | M54: 129.935189 | N54: 129.5985266 | O54: 129.3352217 | P54: 129.1264973 | Q54: 128.9591123 | R54: 128.8235153 | S54: 128.7126459 | T54: 128.6212414 | U54: 128.5453113 | V54: 128.4817827 | W54: 128.4282685 | X54: 128.3828608 | Y54: 128.3440688 | Z54: 128.3106822 | AA54: 125 | AB54: 125 | AC54: 125 | AD54: 125 | AE54: 125 | AF54: 125 | AG54: 125 | AH54: 125 | AI54: 125 | AJ54: 125 | AK54: 125 | AL54: 125 | AM54: 125 | AN54: 125 | AO54: 125 | AP54: =IF(Reset=1,150,IF(Ta+Rthj_a_boost_FET*AP59>190,190,Ta+Rthj_a_boost_FET*AP59)) -> 125 | AQ54: 125 | AR54: 125 | AS54: 125 | AT54: 125 | AU54: 125 | AV54: 125 | AW54: 125 | AX54: 125 | AY54: 125 | AZ54: 125 | BA54: 125 | BB54: 125 | BC54: 125 | BD54: 125 | BE54: 125 | BF54: 125 | BG54: 125 | BH54: 125 | BI54: 125 | BJ54: Tj Boost FET | BK54: Boost FET
A55: Max RMS current | B55: =IF(Topology="Buck","-",MAX(K27:BI27)) -> 1.234925974 | C55: A | E55: =IF(Topology="Buck","","Maximum RMS MOSFET current") -> Maximum RMS MOSFET current | I55: Rds thermal Coeff | J55: =(J54+40)*(1.34655999666222-0.667409045393858)/0.828125/(190)+0.667409045393858/0.828125 -> 1.518125922 | K55: 1.543814061 | L55: 1.541315539 | M55: 1.539427934 | N55: 1.53797478 | O55: 1.536838263 | P55: 1.535937336 | Q55: 1.535214843 | R55: 1.534629559 | S55: 1.534151007 | T55: 1.533756474 | U55: 1.533428733 | V55: 1.533154521 | W55: 1.532923535 | X55: 1.532727539 | Y55: 1.532560099 | Z55: 1.532415991 | AA55: 1.518125922 | AB55: 1.518125922 | AC55: 1.518125922 | AD55: 1.518125922 | AE55: 1.518125922 | AF55: 1.518125922 | AG55: 1.518125922 | AH55: 1.518125922 | AI55: 1.518125922 | AJ55: 1.518125922 | AK55: 1.518125922 | AL55: 1.518125922 | AM55: 1.518125922 | AN55: 1.518125922 | AO55: 1.518125922 | AP55: =(AP54+40)*(1.34655999666222-0.667409045393858)/0.828125/(190)+0.667409045393858/0.828125 -> 1.518125922 | AQ55: 1.518125922 | AR55: 1.518125922 | AS55: 1.518125922 | AT55: 1.518125922 | AU55: 1.518125922 | AV55: 1.518125922 | AW55: 1.518125922 | AX55: 1.518125922 | AY55: 1.518125922 | AZ55: 1.518125922 | BA55: 1.518125922 | BB55: 1.518125922 | BC55: 1.518125922 | BD55: 1.518125922 | BE55: 1.518125922 | BF55: 1.518125922 | BG55: 1.518125922 | BH55: 1.518125922 | BI55: 1.518125922 | BJ55: Rds thermal Coeff
A56: Max Power diss | B56: =IF(Topology="Buck","-",MAX(K59:BI59)) -> 0.1487838645 | C56: W | E56: =IF(Topology="Buck","","Maximum MOSFET power dissipation") -> Maximum MOSFET power dissipation | I56: Rds_On Boost FET | J56: =R_ds_ON_boost*J55 -> 0.04402565175 | K56: 0.04477060778 | L56: 0.04469815064 | M56: 0.04464341007 | N56: 0.04460126862 | O56: 0.04456830964 | P56: 0.04454218274 | Q56: 0.04452123045 | R56: 0.0445042572 | S56: 0.04449037921 | T56: 0.04447893774 | U56: 0.04446943324 | V56: 0.04446148111 | W56: 0.0444547825 | X56: 0.04444909863 | Y56: 0.04444424288 | Z56: 0.04444006373 | AA56: 0.04402565175 | AB56: 0.04402565175 | AC56: 0.04402565175 | AD56: 0.04402565175 | AE56: 0.04402565175 | AF56: 0.04402565175 | AG56: 0.04402565175 | AH56: 0.04402565175 | AI56: 0.04402565175 | AJ56: 0.04402565175 | AK56: 0.04402565175 | AL56: 0.04402565175 | AM56: 0.04402565175 | AN56: 0.04402565175 | AO56: 0.04402565175 | AP56: =R_ds_ON_boost*AP55 -> 0.04402565175 | AQ56: 0.04402565175 | AR56: 0.04402565175 | AS56: 0.04402565175 | AT56: 0.04402565175 | AU56: 0.04402565175 | AV56: 0.04402565175 | AW56: 0.04402565175 | AX56: 0.04402565175 | AY56: 0.04402565175 | AZ56: 0.04402565175 | BA56: 0.04402565175 | BB56: 0.04402565175 | BC56: 0.04402565175 | BD56: 0.04402565175 | BE56: 0.04402565175 | BF56: 0.04402565175 | BG56: 0.04402565175 | BH56: 0.04402565175 | BI56: 0.04402565175 | BJ56: Rds_On Boost FET
A57: Max TJ | B57: =IF(Topology="Buck","-",IF(ROUNDUP(MAX(K54:BI54),0)>150,"Too High",ROUNDUP(MAX(K54:BI54),0))) -> 131 | C57: °C | E57: =IF(Topology="Buck","",IF(B57>150,"Boost MOSFET temperature too high, reduce RθJA","Estimated worse case boost MOSFET junction temperature")) -> Estimated worse case boost MOSFET junction temperature | I57: Conduction Losses | J57: =J27^2*J56 -> 0 | K57: 0.06827706446 | L57: 0.05380580425 | M57: 0.04287292587 | N57: 0.03445636554 | O57: 0.02787374148 | P57: 0.02265563368 | Q57: 0.0184710078 | R57: 0.01508108237 | S57: 0.01230934681 | T57: 0.01002423604 | U57: 0.008125982838 | V57: 0.006537768466 | W57: 0.005199912559 | X57: 0.004064720663 | Y57: 0.003094921083 | Z57: 0.002260253997 | AA57: 0 | AB57: 0 | AC57: 0 | AD57: 0 | AE57: 0 | AF57: 0 | AG57: 0 | AH57: 0 | AI57: 0 | AJ57: 0 | AK57: 0 | AL57: 0 | AM57: 0 | AN57: 0 | AO57: 0 | AP57: =AP27^2*AP56 -> 0 | AQ57: 0 | AR57: 0 | AS57: 0 | AT57: 0 | AU57: 0 | AV57: 0 | AW57: 0 | AX57: 0 | AY57: 0 | AZ57: 0 | BA57: 0 | BB57: 0 | BC57: 0 | BD57: 0 | BE57: 0 | BF57: 0 | BG57: 0 | BH57: 0 | BI57: 0 | BJ57: Conduction Losses
A58: Pre-Regulator Buck Diode (based on SS3P4) | I58: Switching Losses | J58: =IF(J14=0,0,0.5*Vreg*Iout_PreReg*J19*10^3*(t_rise_boost+t_fall_boost)*10^-9) -> 0 | K58: 0.0805068 | L58: 0.0805068 | M58: 0.0805068 | N58: 0.0805068 | O58: 0.0805068 | P58: 0.0805068 | Q58: 0.0805068 | R58: 0.0805068 | S58: 0.0805068 | T58: 0.0805068 | U58: 0.0805068 | V58: 0.0805068 | W58: 0.0805068 | X58: 0.0805068 | Y58: 0.0805068 | Z58: 0.0805068 | AA58: 0 | AB58: 0 | AC58: 0 | AD58: 0 | AE58: 0 | AF58: 0 | AG58: 0 | AH58: 0 | AI58: 0 | AJ58: 0 | AK58: 0 | AL58: 0 | AM58: 0 | AN58: 0 | AO58: 0 | AP58: =IF(AP14=0,0,0.5*Vreg*Iout_PreReg*AP19*10^3*(t_rise_boost+t_fall_boost)*10^-9) -> 0 | AQ58: 0 | AR58: 0 | AS58: 0 | AT58: 0 | AU58: 0 | AV58: 0 | AW58: 0 | AX58: 0 | AY58: 0 | AZ58: 0 | BA58: 0 | BB58: 0 | BC58: 0 | BD58: 0 | BE58: 0 | BF58: 0 | BG58: 0 | BH58: 0 | BI58: 0 | BJ58: Switching Losses
A59: Max Peak current | B59: =IF(Topology="Buck",MAX(K80:BI80),MAX(K22:BI22)) -> 1.594253613 | C59: A | E59: Maximum peak diode current | I59: Total Boost FET Losses | J59: =J57+J58 -> 0 | K59: 0.1487838645 | L59: 0.1343126043 | M59: 0.1233797259 | N59: 0.1149631655 | O59: 0.1083805415 | P59: 0.1031624337 | Q59: 0.0989778078 | R59: 0.09558788237 | S59: 0.09281614681 | T59: 0.09053103604 | U59: 0.08863278284 | V59: 0.08704456847 | W59: 0.08570671256 | X59: 0.08457152066 | Y59: 0.08360172108 | Z59: 0.082767054 | AA59: 0 | AB59: 0 | AC59: 0 | AD59: 0 | AE59: 0 | AF59: 0 | AG59: 0 | AH59: 0 | AI59: 0 | AJ59: 0 | AK59: 0 | AL59: 0 | AM59: 0 | AN59: 0 | AO59: 0 | AP59: =AP57+AP58 -> 0 | AQ59: 0 | AR59: 0 | AS59: 0 | AT59: 0 | AU59: 0 | AV59: 0 | AW59: 0 | AX59: 0 | AY59: 0 | AZ59: 0 | BA59: 0 | BB59: 0 | BC59: 0 | BD59: 0 | BE59: 0 | BF59: 0 | BG59: 0 | BH59: 0 | BI59: 0 | BJ59: Total Boost FET Losses
A60: Max Average current | B60: =IF(Topology="Buck",MAX(K84:BI84),MAX(K26:BI26)) -> 0.4773724138 | C60: A | E60: Maximum average diode current | I60: I_IN | J60: =(J61+J62)/J2 -> 0.3143521802 | K60: =(K61+K62)/K2 -> 1.347105404 | L60: 1.213641902 | M60: 1.105737384 | N60: 1.016534745 | O60: 0.9414583153 | P60: 0.8773315908 | Q60: 0.8218341869 | R60: 0.7731560396 | S60: 0.7301642509 | T60: 0.6919847712 | U60: 0.6578426058 | V60: 0.6271228173 | W60: 0.5986966675 | X60: 0.5735058459 | Y60: 0.5504970523 | Z60: 0.5293979082 | AA60: 0.4974274016 | AB60: 0.4810323035 | AC60: 0.4657443618 | AD60: 0.4514572332 | AE60: 0.4380777628 | AF60: 0.425524002 | AG60: 0.4137235736 | AH60: 0.4026123151 | AI60: 0.3921331453 | AJ60: 0.3822351148 | AK60: 0.3728726042 | AL60: 0.364004645 | AM60: 0.3555943422 | AN60: 0.3476083803 | AO60: 0.3400165997 | AP60: 0.3327916316 | AQ60: 0.325908583 | AR60: 0.3193447626 | AS60: 0.313079443 | AT60: 0.3070936526 | AU60: 0.3013699939 | AV60: 0.2958924831 | AW60: 0.29064641 | AX60: 0.2856182131 | AY60: 0.2807953701 | AZ60: 0.2761662999 | BA60: 0.2717202762 | BB60: 0.2674473495 | BC60: 0.2633382788 | BD60: 0.2590952314 | BE60: 0.2549609365 | BF60: 0.2509663761 | BG60: 0.2471045855 | BH60: 0.2433690552 | BI60: 0.131309628
A61: max Power diss | B61: =MAX(K49:BI49) -> 0.1291303606 | C61: W | E61: Maximum diode power dissipation | I61: Pout | J61: =J21*Iout_PreReg -> 3.0495 | K61: 3.0495 | L61: 3.0495 | M61: 3.0495 | N61: 3.0495 | O61: 3.0495 | P61: 3.0495 | Q61: 3.0495 | R61: 3.0495 | S61: 3.0495 | T61: 3.0495 | U61: 3.0495 | V61: 3.0495 | W61: 3.0495 | X61: 3.0495 | Y61: 3.0495 | Z61: 3.0495 | AA61: 3.0495 | AB61: 3.0495 | AC61: 3.0495 | AD61: 3.0495 | AE61: 3.0495 | AF61: 3.0495 | AG61: 3.0495 | AH61: 3.0495 | AI61: 3.0495 | AJ61: 3.0495 | AK61: 3.0495 | AL61: 3.0495 | AM61: 3.0495 | AN61: 3.0495 | AO61: 3.0495 | AP61: =AP21*Iout_PreReg -> 3.0495 | AQ61: 3.0495 | AR61: 3.0495 | AS61: 3.0495 | AT61: 3.0495 | AU61: 3.0495 | AV61: 3.0495 | AW61: 3.0495 | AX61: 3.0495 | AY61: 3.0495 | AZ61: 3.0495 | BA61: 3.0495 | BB61: 3.0495 | BC61: 3.0495 | BD61: 3.0495 | BE61: 3.0495 | BF61: 3.0495 | BG61: 3.0495 | BH61: 3.0495 | BI61: 3.0495 | BJ61: Pout
A62: Max reverse voltage | B62: =V_AbsMax+4 -> 40 | C62: V | E62: Select a schottkey diode with higher reverse voltage rating | I62: P loss | J62: =J59+J53+J49+J3+J24^2*dcr*10^-3 -> 1.194254432 | K62: 1.665368915 | L62: 1.557385589 | M62: 1.474996845 | N62: 1.410805515 | O62: 1.359983334 | P62: 1.319253227 | Q62: 1.286094639 | R62: 1.258083649 | S62: 1.234626982 | T62: 1.215385733 | U62: 1.199626219 | V62: 1.186778623 | W62: 1.171922421 | X62: 1.164012337 | Y62: 1.157870328 | Z62: 1.153271149 | AA62: 1.046662379 | AB62: 1.054000058 | AC62: 1.061406867 | AD62: 1.068895577 | AE62: 1.076477297 | AF62: 1.084161734 | AG62: 1.091957406 | AH62: 1.099871818 | AI62: 1.107911612 | AJ62: 1.11608268 | AK62: 1.124390273 | AL62: 1.132839084 | AM62: 1.141433319 | AN62: 1.150176758 | AO62: 1.15907281 | AP62: =AP59+AP53+AP49+AP3+AP24^2*dcr*10^-3 -> 1.168124555 | AQ62: 1.177334785 | AR62: 1.186706034 | AS62: 1.196240609 | AT62: 1.205940615 | AU62: 1.215807974 | AV62: 1.22584445 | AW62: 1.236051657 | AX62: 1.246431083 | AY62: 1.256984095 | AZ62: 1.267711954 | BA62: 1.278615828 | BB62: 1.289696793 | BC62: 1.30095585 | BD62: 1.307530014 | BE62: 1.313453984 | BF62: 1.319363649 | BG62: 1.325259753 | BH62: =BH59+BH53+BH49+BH3+BH24^2*dcr*10^-3 -> 1.331142993 | BI62: 1.677646607 | BJ62: P loss
A63: Max TJ | B63: =IF(Topology="Buck",ROUNDUP(MAX(K106:BI106),0),ROUNDUP(MAX(K46:BI46),0)) -> 136 | C63: °C | E63: =IF(B63>150,"Buck diode temperature too high, reduce RθJA","Estimated worse case buck diode temperature") -> Estimated worse case buck diode temperature | I63: Efficiency | J63: =J61/(J61+J62) -> 0.7185854056 | K63: 0.6467836232 | L63: 0.6619439404 | M63: 0.6739975968 | N63: 0.6836975606 | O63: 0.6915776224 | P63: 0.6980252354 | Q63: 0.7033637261 | R63: 0.7079375001 | S63: 0.711813635 | T63: 0.7150250185 | U63: 0.7176769629 | V63: 0.7198535015 | W63: 0.7223868393 | X63: 0.7237429859 | Y63: 0.7247995213 | Z63: 0.7255926845 | AA63: 0.7444773224 | AB63: 0.7431460842 | AC63: 0.741807124 | AD63: 0.7404582545 | AE63: 0.7390976199 | AF63: 0.7377236447 | AG63: 0.7363349907 | AH63: 0.7349305229 | AI63: 0.7335092805 | AJ63: 0.7320704531 | AK63: 0.7306133607 | AL63: 0.7291374368 | AM63: 0.7276422143 | AN63: 0.7261273131 | AO63: 0.7245924302 | AP63: =AP61/(AP61+AP62) -> 0.7230373306 | AQ63: 0.7214618396 | AR63: 0.7198658364 | AS63: 0.7182492481 | AT63: 0.7166120447 | AU63: 0.714954235 | AV63: 0.7132758625 | AW63: 0.7115770019 | AX63: 0.7098577564 | AY63: 0.7081182545 | AZ63: 0.7063586482 | BA63: 0.7045791105 | BB63: 0.7027798336 | BC63: 0.7009610269 | BD63: 0.6999033722 | BE63: 0.6989530513 | BF63: 0.6980075931 | BG63: 0.6970668498 | BH63: 0.6961306833 | BI63: 0.6451037494 | BJ63: Efficiency
A64: Pre-Regulator Boost Diode (based on SS3P4) | M64: =M57/M61 -> 0.01405900176
A65: Max Peak current | B65: =IF(Topology="Buck","-",MAX(K22:BI22)) -> 1.594253613 | C65: A | E65: =IF(Topology="Buck","","Maximum peak diode current") -> Maximum peak diode current | H65: Buck Only Mode Calculations | J65: =Vin_nom -> 13.5 | K65: =Vin_min_buck -> 6.5 | L65: =K65+(Vin_max_buck-Vin_min_buck)/49 -> 6.734693878 | M65: 6.969387755 | N65: 7.204081633 | O65: 7.43877551 | P65: 7.673469388 | Q65: 7.908163265 | R65: 8.142857143 | S65: 8.37755102 | T65: 8.612244898 | U65: 8.846938776 | V65: 9.081632653 | W65: 9.316326531 | X65: 9.551020408 | Y65: 9.785714286 | Z65: 10.02040816 | AA65: 10.25510204 | AB65: 10.48979592 | AC65: 10.7244898 | AD65: 10.95918367 | AE65: 11.19387755 | AF65: 11.42857143 | AG65: 11.66326531 | AH65: 11.89795918 | AI65: 12.13265306 | AJ65: 12.36734694 | AK65: 12.60204082 | AL65: 12.83673469 | AM65: 13.07142857 | AN65: 13.30612245 | AO65: 13.54081633 | AP65: 13.7755102 | AQ65: 14.01020408 | AR65: =AQ65+(Vin_max_buck-Vin_min_buck)/49 -> 14.24489796 | AS65: 14.47959184 | AT65: 14.71428571 | AU65: 14.94897959 | AV65: 15.18367347 | AW65: 15.41836735 | AX65: 15.65306122 | AY65: 15.8877551 | AZ65: 16.12244898 | BA65: 16.35714286 | BB65: 16.59183673 | BC65: 16.82653061 | BD65: 17.06122449 | BE65: 17.29591837 | BF65: 17.53061224 | BG65: 17.76530612 | BH65: 18 | BI65: =BI2 -> 36 | BK65: Buck Only Mode Calculations
A66: Max Average current | B66: =IF(Topology="Buck","-",MAX(K28:BH28)) -> 0.57 | C66: A | E66: =IF(Topology="Buck","","Maximum average diode current") -> Maximum average diode current | H66: Buck | I66: Pdiss total | J66: =J89+J93+J97+J101+J105+IF(J77<5,J2*Icc,J77*Icc) -> 0.9534859438 | K66: 0.8276980822 | L66: 0.8292562151 | M66: 0.8310646353 | N66: 0.8296646225 | O66: 0.8320462458 | P66: 0.8346386988 | Q66: 0.8374341848 | R66: 0.8404258066 | S66: 0.8436074399 | T66: 0.8469736273 | U66: 0.8505194894 | V66: 0.8542406503 | W66: 0.8581331735 | X66: 0.8621935083 | Y66: 0.8664184433 | Z66: 0.8708050665 | AA66: 0.8753507316 | AB66: 0.8800530275 | AC66: 0.8849097533 | AD66: 0.8899188955 | AE66: 0.8950786085 | AF66: 0.9003871974 | AG66: 0.9058431028 | AH66: 0.9114448875 | AI66: 0.9171912249 | AJ66: 0.9230808884 | AK66: 0.9291127419 | AL66: 0.9352857321 | AM66: 0.9415988806 | AN66: 0.9480512778 | AO66: 0.9546420762 | AP66: =AP89+AP93+AP97+AP101+AP105+IF(AP77<5,AP2*Icc,AP77*Icc) -> 0.9613704862 | AQ66: 0.9682357703 | AR66: 0.9752372394 | AS66: 0.9823742487 | AT66: 0.9896461943 | AU66: 0.9970525098 | AV66: 1.004592664 | AW66: 1.012266156 | AX66: 1.020072518 | AY66: 1.028011307 | AZ66: 1.036082106 | BA66: 1.044284522 | BB66: 1.052618185 | BC66: 1.061082743 | BD66: 1.069677867 | BE66: 1.078403242 | BF66: 1.087258572 | BG66: 1.096243575 | BH66: 1.105357986 | BI66: 1.372592859 | BJ66: Pdiss total | BK66: Buck
A67: max Power diss | B67: =IF(Topology="Buck","-",MAX(K53:BI53)) -> 0.17494387 | C67: W | E67: =IF(Topology="Buck","","Maximum diode power dissipation") -> Maximum diode power dissipation | I67: Tj | J67: =IF(Reset=1,150,Ta+Rth_ja*J66) -> 153.6045783 | K67: 149.8309425 | L67: 149.8776865 | M67: 149.9319391 | N67: 149.8899387 | O67: 149.9613874 | P67: 150.039161 | Q67: 150.1230255 | R67: 150.2127742 | S67: 150.3082232 | T67: 150.4092088 | U67: 150.5155847 | V67: 150.6272195 | W67: 150.7439952 | X67: 150.8658052 | Y67: 150.9925533 | Z67: 151.124152 | AA67: 151.2605219 | AB67: 151.4015908 | AC67: 151.5472926 | AD67: 151.6975669 | AE67: 151.8523583 | AF67: 152.0116159 | AG67: 152.1752931 | AH67: 152.3433466 | AI67: 152.5157367 | AJ67: 152.6924267 | AK67: 152.8733823 | AL67: 153.058572 | AM67: 153.2479664 | AN67: 153.4415383 | AO67: 153.6392623 | AP67: =IF(Reset=1,150,Ta+Rth_ja*AP66) -> 153.8411146 | AQ67: 154.0470731 | AR67: 154.2571172 | AS67: 154.4712275 | AT67: 154.6893858 | AU67: 154.9115753 | AV67: 155.1377799 | AW67: 155.3679847 | AX67: 155.6021755 | AY67: 155.8403392 | AZ67: 156.0824632 | BA67: 156.3285357 | BB67: 156.5785455 | BC67: 156.8324823 | BD67: 157.090336 | BE67: 157.3520973 | BF67: 157.6177572 | BG67: 157.8873073 | BH67: 158.1607396 | BI67: 166.1777858 | BJ67: Tj
A68: Max reverse voltage | B68: =IF(Topology="Buck","-",Vreg+4) -> 9.35 | C68: V | E68: =IF(Topology="Buck","","Select a schottkey diode with higher reverse voltage rating") -> Select a schottkey diode with higher reverse voltage rating | K68: =K65 -> 6.5 | L68: =L65 -> 6.734693878 | M68: 6.969387755 | N68: 7.204081633 | O68: 7.43877551 | P68: 7.673469388 | Q68: 7.908163265 | R68: 8.142857143 | S68: 8.37755102 | T68: 8.612244898 | U68: 8.846938776 | V68: 9.081632653 | W68: 9.316326531 | X68: 9.551020408 | Y68: 9.785714286 | Z68: 10.02040816 | AA68: 10.25510204 | AB68: 10.48979592 | AC68: 10.7244898 | AD68: 10.95918367 | AE68: 11.19387755 | AF68: 11.42857143 | AG68: 11.66326531 | AH68: 11.89795918 | AI68: 12.13265306 | AJ68: 12.36734694 | AK68: 12.60204082 | AL68: 12.83673469 | AM68: 13.07142857 | AN68: 13.30612245 | AO68: 13.54081633 | AP68: 13.7755102 | AQ68: 14.01020408 | AR68: 14.24489796 | AS68: 14.47959184 | AT68: 14.71428571 | AU68: 14.94897959 | AV68: 15.18367347 | AW68: 15.41836735 | AX68: 15.65306122 | AY68: 15.8877551 | AZ68: 16.12244898 | BA68: 16.35714286 | BB68: 16.59183673 | BC68: 16.82653061 | BD68: 17.06122449 | BE68: 17.29591837 | BF68: 17.53061224 | BG68: 17.76530612 | BH68: 18 | BI68: 36
A69: Max TJ | B69: =IF(Topology="Buck","-",ROUNDUP(MAX(K50:BI50),0)) -> 140 | C69: °C | E69: =IF(Topology="Buck","",IF(B69>150,"Boost diode temperature too high, reduce RθJA","Estimated worse case boost diode temperature")) -> Estimated worse case boost diode temperature | I69: V1 | J69: =IF(Reset=1,J2-Vreg,J2-Iout_PreReg*(J86+dcr*10^-3)-Vreg) -> 8.012118627 | K69: =IF(Reset=1,K65-Vreg,K65-Iout_PreReg*(K86+dcr*10^-3)-Vreg) -> 1.005517368 | L69: 1.240197424 | M69: 1.47487526 | N69: 1.717314651 | O69: 1.951987094 | P69: 2.186657639 | Q69: 2.421326358 | R69: 2.655993311 | S69: 2.890658553 | T69: 3.125322135 | U69: 3.3599841 | V69: 3.594644487 | W69: 3.829303332 | X69: 4.063960667 | Y69: 4.29861652 | Z69: 4.533270918 | AA69: 4.767923884 | AB69: 5.002575441 | AC69: 5.237225608 | AD69: 5.471874403 | AE69: 5.706521844 | AF69: 5.941167944 | AG69: 6.175812718 | AH69: 6.41045618 | AI69: 6.64509834 | AJ69: 6.879739211 | AK69: 7.114378802 | AL69: 7.349017122 | AM69: 7.583654182 | AN69: 7.818289987 | AO69: 8.052924548 | AP69: 8.28755787 | AQ69: =IF(Reset=1,AQ65-Vreg,AQ65-Iout_PreReg*(AQ86+dcr*10^-3)-Vreg) -> 8.52218996 | AR69: 8.756820824 | AS69: 8.991450468 | AT69: 9.226078899 | AU69: 9.460706119 | AV69: 9.695332135 | AW69: 9.929956952 | AX69: 10.16458057 | AY69: 10.399203 | AZ69: 10.63382424 | BA69: 10.8684443 | BB69: 11.10306317 | BC69: 11.33768087 | BD69: 11.57229739 | BE69: 11.80691274 | BF69: 12.04152692 | BG69: 12.27613993 | BH69: 12.51075178 | BI69: 30.50834666 | BJ69: V1
A70: Pre-Regulator Compensation Components | I70: V3 | J70: =IF(Reset=1,Vreg,Vreg+J108+Iout_PreReg*dcr*10^-3) -> 5.614844079 | K70: 5.623203249 | L70: 5.622628868 | M70: 5.62209484 | N70: 5.621581173 | O70: 5.621117112 | P70: 5.62068253 | Q70: 5.62027471 | R70: 5.619891255 | S70: 5.619530048 | T70: 5.619189211 | U70: 5.61886707 | V70: 5.618562128 | W70: 5.618273046 | X70: 5.61799862 | Y70: 5.617737762 | Z70: 5.617489493 | AA70: 5.617252922 | AB70: 5.617027244 | AC70: 5.616811723 | AD70: 5.616605689 | AE70: 5.616408529 | AF70: 5.616219683 | AG70: 5.616038637 | AH70: 5.615864916 | AI70: 5.615698086 | AJ70: 5.615537744 | AK70: 5.61538352 | AL70: 5.61523507 | AM70: 5.615092076 | AN70: 5.614954243 | AO70: 5.614821297 | AP70: =IF(Reset=1,Vreg,Vreg+AP108+Iout_PreReg*dcr*10^-3) -> 5.614692982 | AQ70: 5.61456906 | AR70: 5.614449311 | AS70: 5.614333526 | AT70: 5.614221512 | AU70: 5.614113088 | AV70: 5.614008084 | AW70: 5.613906341 | AX70: 5.61380771 | AY70: 5.613712049 | AZ70: 5.613619227 | BA70: 5.613529119 | BB70: 5.613441608 | BC70: 5.613356583 | BD70: 5.61327394 | BE70: 5.61319358 | BF70: 5.61311541 | BG70: 5.613039342 | BH70: 5.612965291 | BI70: 5.610186968 | BJ70: V3
A71: fcMAX | B71: =IF(ROUNDDOWN(fsw/10,0)>40,40,ROUNDDOWN(fsw/10,0)) -> 40 | C71: kHz | E71: Recommended maximum 0dB crossover frequency | I71: Required Buck duty | J71: =IF(Reset=1,Vreg/J2,J70/(J69+J70)) -> 0.412039293 | K71: =IF(Reset=1,Vreg/K65,K70/(K69+K70)) -> 0.8483089835 | L71: 0.8192876562 | M71: 0.7921824047 | N71: 0.7659982248 | O71: 0.7422474271 | P71: 0.7199228429 | Q71: 0.6988999656 | R71: 0.6790683474 | S71: 0.660329672 | T71: 0.642596137 | U71: 0.6257890863 | V71: 0.6098378515 | W71: 0.5946787643 | X71: 0.5802543115 | Y71: 0.56651241 | Z71: 0.553405781 | AA71: 0.5408914097 | AB71: 0.5289300749 | AC71: 0.5174859411 | AD71: 0.5065262004 | AE71: 0.49602076 | AF71: 0.4859419676 | AG71: 0.4762643683 | AH71: 0.4669644916 | AI71: 0.4580206612 | AJ71: 0.4494128273 | AK71: 0.4411224168 | AL71: 0.4331321997 | AM71: 0.4254261705 | AN71: 0.4179894407 | AO71: 0.4108081435 | AP71: 0.4038693476 | AQ71: =IF(Reset=1,Vreg/AQ65,AQ70/(AQ69+AQ70)) -> 0.3971609796 | AR71: 0.390671754 | AS71: 0.3843911103 | AT71: 0.3783091553 | AU71: 0.3724166115 | AV71: 0.36670477 | AW71: 0.3611654475 | AX71: 0.3557909471 | AY71: 0.350574023 | AZ71: 0.3455078479 | BA71: 0.3405859831 | BB71: 0.3358023512 | BC71: 0.3311512112 | BD71: 0.3266271358 | BE71: 0.3222249898 | BF71: 0.317939911 | BG71: 0.3137672923 | BH71: 0.3097027651 | BI71: 0.1553270968 | BJ71: Required Buck duty
A72: fc = | B72: 35 | C72: kHz | E72: Choose fc considering recommended fcMAX | I72: ton buck | J72: =J71/(fsw*10^3)*10^6 -> 0.1872905877 | K72: 0.3855949925 | L72: 0.3724034801 | M72: 0.3600829112 | N72: 0.3481810113 | O72: 0.3373851941 | P72: 0.3272376559 | Q72: 0.3176818026 | R72: 0.3086674306 | S72: 0.3001498509 | T72: 0.2920891532 | U72: 0.2844495847 | V72: 0.2771990234 | W72: 0.2703085292 | X72: 0.2637519598 | Y72: 0.2575056409 | Z72: 0.2515480823 | AA72: 0.2458597317 | AB72: 0.2404227613 | AC72: 0.2352208823 | AD72: 0.230239182 | AE72: 0.2254639818 | AF72: 0.2208827125 | AG72: 0.2164838038 | AH72: 0.2122565871 | AI72: 0.2081912096 | AJ72: 0.2042785579 | AK72: 0.2005101894 | AL72: 0.1968782726 | AM72: 0.1933755321 | AN72: 0.1899952003 | AO72: 0.1867309743 | AP72: =AP71/(fsw*10^3)*10^6 -> 0.1835769762 | AQ72: 0.180527718 | AR72: 0.17757807 | AS72: 0.1747232319 | AT72: 0.1719587069 | AU72: 0.169280278 | AV72: 0.1666839864 | AW72: 0.1641661125 | AX72: 0.1617231578 | AY72: 0.1593518286 | AZ72: 0.1570490218 | BA72: 0.1548118105 | BB72: 0.1526374323 | BC72: 0.1505232778 | BD72: 0.1484668799 | BE72: 0.1464659044 | BF72: 0.1445181414 | BG72: 0.1426214965 | BH72: 0.1407739842 | BI72: =IF(BI71>1,1000/fsw,IF(BI71*1000/fsw<0.16,0.16,BI71*1000/fsw)) -> 0.16 | BJ72: ton buck
A73: R_LOAD | B73: =Vreg/Iout_PreReg -> 9.385964912 | C73: Ω | I73: toff buck | J73: =1/(fsw*10^-3)-J72 -> 0.2672548668 | K73: 0.06895046204 | L73: 0.08214197445 | M73: 0.09446254331 | N73: 0.1063644433 | O73: 0.1171602604 | P73: 0.1273077987 | Q73: 0.136863652 | R73: 0.1458780239 | S73: 0.1543956036 | T73: 0.1624563014 | U73: 0.1700958699 | V73: 0.1773464311 | W73: 0.1842369253 | X73: 0.1907934948 | Y73: 0.1970398137 | Z73: 0.2029973723 | AA73: 0.2086857229 | AB73: 0.2141226932 | AC73: 0.2193245722 | AD73: 0.2243062726 | AE73: 0.2290814727 | AF73: 0.233662742 | AG73: 0.2380616508 | AH73: 0.2422888675 | AI73: 0.2463542449 | AJ73: 0.2502668967 | AK73: 0.2540352651 | AL73: 0.2576671819 | AM73: 0.2611699225 | AN73: 0.2645502542 | AO73: 0.2678144802 | AP73: =1/(fsw*10^-3)-AP72 -> 0.2709684784 | AQ73: 0.2740177366 | AR73: 0.2769673845 | AS73: 0.2798222226 | AT73: 0.2825867476 | AU73: 0.2852651766 | AV73: 0.2878614682 | AW73: 0.2903793421 | AX73: 0.2928222968 | AY73: 0.2951936259 | AZ73: 0.2974964328 | BA73: 0.2997336441 | BB73: 0.3019080222 | BC73: 0.3040221767 | BD73: 0.3060785746 | BE73: 0.3080795501 | BF73: 0.3100273132 | BG73: 0.311923958 | BH73: 0.3137714704 | BI73: =BI72/BI71-BI72 -> 0.870084276 | BJ73: toff buck
A74: fP1 | B74: =wp/(2*PI()) -> 0.6597024727 | C74: kHz | E74: Dominant pole formed by Co and RLOAD. | I74: Actual fsw | J74: =1/(J72+J73)*10^3 -> 2200 | K74: 2200 | L74: 2200 | M74: 2200 | N74: 2200 | O74: 2200 | P74: 2200 | Q74: 2200 | R74: 2200 | S74: 2200 | T74: 2200 | U74: 2200 | V74: 2200 | W74: 2200 | X74: 2200 | Y74: 2200 | Z74: 2200 | AA74: 2200 | AB74: 2200 | AC74: 2200 | AD74: 2200 | AE74: 2200 | AF74: 2200 | AG74: 2200 | AH74: 2200 | AI74: 2200 | AJ74: 2200 | AK74: 2200 | AL74: 2200 | AM74: 2200 | AN74: 2200 | AO74: 2200 | AP74: =1/(AP72+AP73)*10^3 -> 2200 | AQ74: 2200 | AR74: 2200 | AS74: 2200 | AT74: 2200 | AU74: 2200 | AV74: 2200 | AW74: 2200 | AX74: 2200 | AY74: 2200 | AZ74: 2200 | BA74: 2200 | BB74: 2200 | BC74: 2200 | BD74: 2200 | BE74: 2200 | BF74: 2200 | BG74: 2200 | BH74: 2200 | BI74: 970.7943547 | BJ74: Actual fsw
A75: fZ1 | B75: =wz/(2*PI()) -> 3183.098862 | C75: kHz | E75: Zero formed by the output capacitance and its ESR | I75: VREG_actual | J75: =J69*J71/(1-J71)-J108-Iout_PreReg*dcr*10^-3 -> 5.35 | K75: 5.35 | L75: 5.35 | M75: 5.35 | N75: 5.35 | O75: 5.35 | P75: 5.35 | Q75: 5.35 | R75: 5.35 | S75: 5.35 | T75: 5.35 | U75: 5.35 | V75: 5.35 | W75: 5.35 | X75: 5.35 | Y75: 5.35 | Z75: 5.35 | AA75: 5.35 | AB75: 5.35 | AC75: 5.35 | AD75: 5.35 | AE75: 5.35 | AF75: 5.35 | AG75: 5.35 | AH75: 5.35 | AI75: 5.35 | AJ75: 5.35 | AK75: 5.35 | AL75: 5.35 | AM75: 5.35 | AN75: 5.35 | AO75: 5.35 | AP75: =AP69*AP71/(1-AP71)-AP108-Iout_PreReg*dcr*10^-3 -> 5.35 | AQ75: 5.35 | AR75: 5.35 | AS75: 5.35 | AT75: 5.35 | AU75: 5.35 | AV75: 5.35 | AW75: 5.35 | AX75: 5.35 | AY75: 5.35 | AZ75: 5.35 | BA75: 5.35 | BB75: 5.35 | BC75: 5.35 | BD75: 5.35 | BE75: 5.35 | BF75: 5.35 | BG75: 5.35 | BH75: 5.35 | BI75: 5.35 | BJ75: VREG_actual
A76: fP2 | B76: =IF(fz_1>10*fc,MAX(fsw/2,5*fc),fz_1) -> 1100 | C76: kHz | I76: New duty cycle | J76: =IF(J73*10^-6<0,(1/(J74*10^3))*(J74*10^3),J71) -> 0.412039293 | K76: 0.8483089835 | L76: 0.8192876562 | M76: 0.7921824047 | N76: 0.7659982248 | O76: 0.7422474271 | P76: 0.7199228429 | Q76: 0.6988999656 | R76: 0.6790683474 | S76: 0.660329672 | T76: 0.642596137 | U76: 0.6257890863 | V76: 0.6098378515 | W76: 0.5946787643 | X76: 0.5802543115 | Y76: 0.56651241 | Z76: 0.553405781 | AA76: 0.5408914097 | AB76: 0.5289300749 | AC76: 0.5174859411 | AD76: 0.5065262004 | AE76: 0.49602076 | AF76: 0.4859419676 | AG76: 0.4762643683 | AH76: 0.4669644916 | AI76: 0.4580206612 | AJ76: 0.4494128273 | AK76: 0.4411224168 | AL76: 0.4331321997 | AM76: 0.4254261705 | AN76: 0.4179894407 | AO76: 0.4108081435 | AP76: =IF(AP73*10^-6<0,(1/(AP74*10^3))*(AP74*10^3),AP71) -> 0.4038693476 | AQ76: 0.3971609796 | AR76: 0.390671754 | AS76: 0.3843911103 | AT76: 0.3783091553 | AU76: 0.3724166115 | AV76: 0.36670477 | AW76: 0.3611654475 | AX76: 0.3557909471 | AY76: 0.350574023 | AZ76: 0.3455078479 | BA76: 0.3405859831 | BB76: 0.3358023512 | BC76: 0.3311512112 | BD76: 0.3266271358 | BE76: 0.3222249898 | BF76: 0.317939911 | BG76: 0.3137672923 | BH76: 0.3097027651 | BI76: 0.1553270968 | BJ76: New duty cycle
A77: Rz | B77: =fc*10^3*Vreg/VFB*2*PI()*Number_Cout*Co*10^-6/(gm_POWER1*gm_EA1*10^-6)*10^-3 -> 17.87816753 | C77: kΩ | E77: Recommended compensation resister to achieve chosen fc | I77: New VREG | J77: =(J2-Iout_PreReg*J86+J108)*J76-J108-Iout_PreReg*dcr*10^-3 -> 5.35 | K77: =(K65-Iout_PreReg*K86+K108)*K76-K108-Iout_PreReg*dcr*10^-3 -> 5.35 | L77: 5.35 | M77: 5.35 | N77: 5.35 | O77: 5.35 | P77: 5.35 | Q77: 5.35 | R77: 5.35 | S77: 5.35 | T77: 5.35 | U77: 5.35 | V77: 5.35 | W77: 5.35 | X77: 5.35 | Y77: 5.35 | Z77: 5.35 | AA77: 5.35 | AB77: 5.35 | AC77: 5.35 | AD77: 5.35 | AE77: 5.35 | AF77: 5.35 | AG77: 5.35 | AH77: 5.35 | AI77: 5.35 | AJ77: 5.35 | AK77: 5.35 | AL77: 5.35 | AM77: 5.35 | AN77: 5.35 | AO77: 5.35 | AP77: 5.35 | AQ77: =(AQ65-Iout_PreReg*AQ86+AQ108)*AQ76-AQ108-Iout_PreReg*dcr*10^-3 -> 5.35 | AR77: 5.35 | AS77: 5.35 | AT77: 5.35 | AU77: 5.35 | AV77: 5.35 | AW77: 5.35 | AX77: 5.35 | AY77: 5.35 | AZ77: 5.35 | BA77: 5.35 | BB77: 5.35 | BC77: 5.35 | BD77: 5.35 | BE77: 5.35 | BF77: 5.35 | BG77: 5.35 | BH77: 5.35 | BI77: 5.35 | BJ77: New VREG
A78: Actual Rz used | B78: 18.2 | C78: kΩ | E78: Enter the closest available 1% standard resister value | I78: New V1 | J78: =IF(Reset=1,J2,J2-Iout_PreReg*(J86+dcr*10^-3)-J77) -> 8.012118627 | K78: =IF(Reset=1,K65,K65-Iout_PreReg*(K86+dcr*10^-3)-K77) -> 1.005517368 | L78: 1.240197424 | M78: 1.47487526 | N78: 1.717314651 | O78: 1.951987094 | P78: 2.186657639 | Q78: 2.421326358 | R78: 2.655993311 | S78: 2.890658553 | T78: 3.125322135 | U78: 3.3599841 | V78: 3.594644487 | W78: 3.829303332 | X78: 4.063960667 | Y78: 4.29861652 | Z78: 4.533270918 | AA78: 4.767923884 | AB78: 5.002575441 | AC78: 5.237225608 | AD78: 5.471874403 | AE78: 5.706521844 | AF78: 5.941167944 | AG78: 6.175812718 | AH78: 6.41045618 | AI78: 6.64509834 | AJ78: 6.879739211 | AK78: 7.114378802 | AL78: 7.349017122 | AM78: 7.583654182 | AN78: 7.818289987 | AO78: 8.052924548 | AP78: 8.28755787 | AQ78: =IF(Reset=1,AQ65,AQ65-Iout_PreReg*(AQ86+dcr*10^-3)-AQ77) -> 8.52218996 | AR78: 8.756820824 | AS78: 8.991450468 | AT78: 9.226078899 | AU78: 9.460706119 | AV78: 9.695332135 | AW78: 9.929956952 | AX78: 10.16458057 | AY78: 10.399203 | AZ78: 10.63382424 | BA78: 10.8684443 | BB78: 11.10306317 | BC78: 11.33768087 | BD78: 11.57229739 | BE78: 11.80691274 | BF78: 12.04152692 | BG78: 12.27613993 | BH78: 12.51075178 | BI78: 30.50834666 | BJ78: New V1
A79: Cz (min) | B79: =4/(2*PI()*Rz*10^3*fc*10^3)*10^9 -> 0.9994030963 | C79: nF | E79: Recommended range for the compensation capacitor, Cz(min) to Cz(max). | I79: Vin - VREG | J79: =J2-J77 -> 8.15 | K79: =K65-K77 -> 1.15 | L79: 1.384693878 | M79: 1.619387755 | N79: 1.854081633 | O79: 2.08877551 | P79: 2.323469388 | Q79: 2.558163265 | R79: 2.792857143 | S79: 3.02755102 | T79: 3.262244898 | U79: 3.496938776 | V79: 3.731632653 | W79: 3.966326531 | X79: 4.201020408 | Y79: 4.435714286 | Z79: 4.670408163 | AA79: 4.905102041 | AB79: 5.139795918 | AC79: 5.374489796 | AD79: 5.609183673 | AE79: 5.843877551 | AF79: 6.078571429 | AG79: 6.313265306 | AH79: 6.547959184 | AI79: 6.782653061 | AJ79: 7.017346939 | AK79: 7.252040816 | AL79: 7.486734694 | AM79: 7.721428571 | AN79: 7.956122449 | AO79: 8.190816327 | AP79: 8.425510204 | AQ79: =AQ65-AQ77 -> 8.660204082 | AR79: 8.894897959 | AS79: 9.129591837 | AT79: 9.364285714 | AU79: 9.598979592 | AV79: 9.833673469 | AW79: 10.06836735 | AX79: 10.30306122 | AY79: 10.5377551 | AZ79: 10.77244898 | BA79: 11.00714286 | BB79: 11.24183673 | BC79: 11.47653061 | BD79: 11.71122449 | BE79: 11.94591837 | BF79: 12.18061224 | BG79: 12.41530612 | BH79: 12.65 | BI79: 30.65
A80: Cz (max) | B80: =0.6 *1/(2*PI()*Rz*10^3*1.5*fp_1*10^3)*10^9 -> 5.302255156 | C80: nF | E80: Note: Higher values of Cz will have more phase margin, but recover from a transient more slowly. | H80: Circuit Currents | I80: Ilpk | J80: =Iout_PreReg+J81/2 -> 0.6450297203 | K80: 0.5893861231 | L80: 0.5930926918 | M80: 0.5965538689 | N80: 0.5998968176 | O80: 0.6029285772 | P80: 0.605777836 | Q80: 0.6084605661 | R80: 0.6109909315 | S80: 0.6133815367 | T80: 0.6156436348 | U80: 0.6177873041 | V80: 0.6198215971 | W80: 0.6217546676 | X80: 0.6235938795 | Y80: 0.6253459001 | Z80: 0.6270167803 | AA80: 0.6286120243 | AB80: 0.6301366501 | AC80: 0.6315952414 | AD80: 0.6329919943 | AE80: 0.6343307569 | AF80: 0.6356150646 | AG80: 0.6368481714 | AH80: 0.6380330775 | AI80: 0.6391725531 | AJ80: 0.6402691602 | AK80: 0.6413252721 | AL80: 0.6423430898 | AM80: 0.6433246581 | AN80: 0.6442718786 | AO80: 0.6451865224 | AP80: =Iout_PreReg+AP81/2 -> 0.6460702407 | AQ80: 0.6469245753 | AR80: 0.6477509671 | AS80: 0.6485507643 | AT80: 0.6493252299 | AU80: 0.6500755481 | AV80: 0.6508028305 | AW80: 0.6515081215 | AX80: 0.6521924034 | AY80: 0.6528566007 | AZ80: 0.6535015847 | BA80: 0.6541281769 | BB80: 0.6547371527 | BC80: 0.6553292444 | BD80: 0.6559051443 | BE80: 0.6564655076 | BF80: 0.6570109545 | BG80: 0.6575420724 | BH80: 0.6580594186 | BI80: 0.8140667733 | BJ80: Ilpk | BK80: Circuit Currents
A81: Actual Cz used | B81: 1.5 | C81: nF | E81: Enter actual Cz. | I81: ΔIL | J81: =J78*J76/(L_buck*10^-6*J74*10^3) -> 0.1500594406 | K81: 0.03877224622 | L81: 0.04618538368 | M81: 0.05310773773 | N81: 0.05979363518 | O81: 0.06585715447 | P81: 0.07155567201 | Q81: 0.07692113219 | R81: 0.08198186309 | S81: 0.08676307339 | T81: 0.09128726959 | U81: 0.09557460818 | V81: 0.09964319414 | W81: 0.1035093352 | X81: 0.107187759 | Y81: 0.1106918002 | Z81: 0.1140335606 | AA81: 0.1172240487 | AB81: 0.1202733001 | AC81: 0.1231904828 | AD81: 0.1259839887 | AE81: 0.1286615137 | AF81: 0.1312301291 | AG81: 0.1336963429 | AH81: 0.136066155 | AI81: 0.1383451062 | AJ81: 0.1405383204 | AK81: 0.1426505441 | AL81: 0.1446861796 | AM81: 0.1466493162 | AN81: 0.1485437572 | AO81: 0.1503730447 | AP81: =AP78*AP76/(L_buck*10^-6*AP74*10^3) -> 0.1521404814 | AQ81: 0.1538491506 | AR81: 0.1555019341 | AS81: 0.1571015286 | AT81: 0.1586504597 | AU81: 0.1601510961 | AV81: 0.161605661 | AW81: 0.163016243 | AX81: 0.1643848067 | AY81: 0.1657132015 | AZ81: 0.1670031695 | BA81: 0.1682563539 | BB81: 0.1694743054 | BC81: 0.1706584887 | BD81: 0.1718102887 | BE81: 0.1729310153 | BF81: 0.1740219089 | BG81: 0.1750841448 | BH81: 0.1761188373 | BI81: 0.4881335466 | BJ81: ΔIL
A82: Cp | B82: =IF(1/(2*PI()*Rz*10^3*fc*10*10^3)*10^12>68,1/(2*PI()*Rz*10^3*fc*10*10^3)*10^12,68) -> 68 | C82: pF | E82: Recommended HF compensation capacitor. Sets the high frequency roll-off of the gain. | I82: IL RMS | J82: =SQRT((J80-J81/2)^2+J81^2/12) -> 0.5716436708 | K82: 0.5701098788 | L82: 0.5701559063 | M82: 0.5702061346 | N82: 0.5702612909 | O82: 0.5703169561 | P82: 0.5703741619 | Q82: 0.5704323551 | R82: 0.5704910915 | S82: 0.5705500147 | T82: 0.570608839 | U82: 0.5706673364 | V82: 0.5707253255 | W82: 0.5707826631 | X82: 0.5708392371 | Y82: 0.5708949608 | Z82: 0.5709497681 | AA82: 0.5710036104 | AB82: 0.5710564527 | AC82: 0.5711082716 | AD82: 0.571159053 | AE82: 0.5712087903 | AF82: 0.5712574833 | AG82: 0.5713051368 | AH82: 0.5713517596 | AI82: 0.5713973638 | AJ82: 0.5714419641 | AK82: 0.5714855771 | AL82: 0.5715282211 | AM82: 0.5715699157 | AN82: 0.571610681 | AO82: 0.5716505381 | AP82: =SQRT((AP80-AP81/2)^2+AP81^2/12) -> 0.5716895082 | AQ82: 0.571727613 | AR82: 0.5717648738 | AS82: 0.5718013124 | AT82: 0.57183695 | AU82: 0.5718718077 | AV82: 0.5719059064 | AW82: 0.5719392666 | AX82: 0.5719719082 | AY82: 0.5720038509 | AZ82: 0.5720351139 | BA82: 0.572065716 | BB82: 0.5720956753 | BC82: 0.5721250096 | BD82: 0.5721537363 | BE82: 0.572181872 | BF82: 0.5722094332 | BG82: 0.5722364355 | BH82: 0.5722628945 | BI82: 0.5871594303 | BJ82: IL RMS
A83: Actual Cp used | B83: 68 | C83: pF | E83: Enter actual Cp. Do not use significantly less than the recommended value. | I83: Isw buck RMS | J83: =SQRT(J76*((J80-J81/2)^2+J81^2/12)) -> 0.3669397122 | K83: 0.5250922393 | L83: 0.5160738261 | M83: 0.5075098567 | N83: 0.4991002351 | O83: 0.491349631 | P83: 0.4839525923 | Q83: 0.4768828018 | R83: 0.4701166264 | S83: 0.4636327727 | T83: 0.4574119959 | U83: 0.4514368509 | V83: 0.4456914808 | W83: 0.4401614347 | X83: 0.43483351 | Y83: 0.4296956167 | Z83: 0.4247366592 | AA83: 0.4199464326 | AB83: 0.4153155329 | AC83: 0.4108352772 | AD83: 0.4064976339 | AE83: 0.4022951612 | AF83: 0.3982209519 | AG83: 0.3942685852 | AH83: 0.3904320833 | AI83: 0.3867058723 | AJ83: 0.3830847483 | AK83: 0.3795638458 | AL83: 0.3761386102 | AM83: 0.3728047722 | AN83: 0.3695583256 | AO83: 0.3663955064 | AP83: =SQRT(AP76*((AP80-AP81/2)^2+AP81^2/12)) -> 0.3633127745 | AQ83: 0.3603067967 | AR83: 0.3573744313 | AS83: 0.3545127143 | AT83: 0.3517188465 | AU83: 0.348990182 | AV83: 0.3463242173 | AW83: 0.3437185821 | AX83: 0.3411710296 | AY83: 0.3386794289 | AZ83: 0.3362417572 | BA83: 0.3338560928 | BB83: 0.3315206086 | BC83: 0.3292335665 | BD83: 0.3269933116 | BE83: 0.3247982672 | BF83: 0.3226469301 | BG83: 0.3205378664 | BH83: 0.3184697072 | BI83: 0.2314086842 | BJ83: Isw buck RMS
A84: Estimated cross over | B84: ='Control Loop'!$B$25 -> 31.99267138 | C84: kHz | I84: I buck Diode avg | J84: =(J80-J81/2)*(1-J76) -> 0.335137603 | K84: 0.08646387939 | L84: 0.103006036 | M84: 0.1184560293 | N84: 0.1333810119 | O84: 0.1469189666 | P84: 0.1596439796 | Q84: 0.1716270196 | R84: 0.182931042 | S84: 0.1936120869 | T84: 0.2037202019 | U84: 0.2133002208 | V84: 0.2223924246 | W84: 0.2310331043 | X84: 0.2392550424 | Y84: 0.2470879263 | Z84: 0.2545587048 | AA84: 0.2616918965 | AB84: 0.2685098573 | AC84: 0.2750330136 | AD84: 0.2812800658 | AE84: 0.2872681668 | AF84: 0.2930130785 | AG84: 0.2985293101 | AH84: 0.3038302398 | AI84: 0.3089282231 | AJ84: 0.3138346884 | AK84: 0.3185602225 | AL84: 0.3231146461 | AM84: 0.3275070828 | AN84: 0.3317460188 | AO84: 0.3358393582 | AP84: =(AP80-AP81/2)*(1-AP76) -> 0.3397944719 | AQ84: 0.3436182416 | AR84: 0.3473171002 | AS84: 0.3508970671 | AT84: 0.3543637815 | AU84: 0.3577225314 | AV84: 0.3609782811 | AW84: 0.364135695 | AX84: 0.3671991602 | AY84: 0.3701728069 | AZ84: 0.3730605267 | BA84: 0.3758659896 | BB84: 0.3785926598 | BC84: 0.3812438096 | BD84: 0.3838225326 | BE84: 0.3863317558 | BF84: 0.3887742507 | BG84: 0.3911526434 | BH84: 0.3934694239 | BI84: 0.4814635548 | BJ84: I buck Diode avg
A85: Estimated phase margin | B85: ='Control Loop'!$B$26 -> 62.32876488 | C85: deg | E85: Phase margin should be at least 50 deg. If not, reduce the chosen crossove frequency, and/or increase Cz. | I85: I cout RMS | J85: =SQRT(((J80-J81/2-Iout_PreReg)^2+J81^2/12)) -> 0.04331842923 | K85: 0.01119258339 | L85: 0.01333257185 | M85: 0.01533088334 | N85: 0.01726093568 | O85: 0.01901132293 | P85: 0.02065634325 | Q85: 0.02220521819 | R85: 0.02366612536 | S85: 0.02504634189 | T85: 0.02635236484 | U85: 0.02759001288 | V85: 0.02876451248 | W85: 0.02988057126 | X85: 0.03094244076 | Y85: 0.03195397032 | Z85: 0.03291865345 | AA85: 0.03383966803 | AB85: 0.0347199111 | AC85: 0.03556202922 | AD85: 0.03636844488 | AE85: 0.03714137979 | AF85: 0.03788287518 | AG85: 0.03859480977 | AH85: 0.03927891562 | AI85: 0.03993679214 | AJ85: 0.04056991857 | AK85: 0.04117966502 | AL85: 0.04176730238 | AM85: 0.0423340111 | AN85: 0.04288088912 | AO85: 0.04340895892 | AP85: =SQRT(((AP80-AP81/2-Iout_PreReg)^2+AP81^2/12)) -> 0.04391917394 | AQ85: 0.04441242425 | AR85: 0.04488954176 | AS85: 0.0453513049 | AT85: 0.04579844282 | AU85: 0.04623163924 | AV85: 0.04665153593 | AW85: 0.04705873588 | AX85: 0.04745380621 | AY85: 0.04783728073 | AZ85: 0.04820966243 | BA85: 0.0485714256 | BB85: 0.04892301791 | BC85: 0.0492648622 | BD85: 0.0495973582 | BE85: 0.04992088411 | BF85: 0.05023579798 | BG85: 0.05054243907 | BH85: 0.05084112905 | BI85: 0.1409120173
A86: CIRCUIT PERFORMANCE | H86: Buck | I86: Rds_On Buck | J86: =IF(J2>7,Buck_RdsON_factor_7V*(J67-150)+Rds_ON_150_7V,IF(J2<5,Buck_RdsON_factor_5V*(J67-150)+Rds_ON_150,Buck_RdsON_factor_6V*(J67-150)+Rds_ON_150_6V)) -> 0.1918971465 | K86: =IF(K65>7,Buck_RdsON_factor_7V*(K67-150)+Rds_ON_150_7V,IF(K65<5,Buck_RdsON_factor_5V*(K67-150)+Rds_ON_150,Buck_RdsON_factor_6V*(K67-150)+Rds_ON_150_6V)) -> 0.203478301 | L86: 0.2035025495 | M86: 0.2035306932 | N86: 0.189942073 | O86: 0.1899796776 | P86: 0.190020611 | Q86: 0.1900647503 | R86: 0.1901119864 | S86: 0.1901622227 | T86: 0.1902153731 | U86: 0.1902713604 | V86: 0.1903301155 | W86: 0.1903915764 | X86: 0.190455687 | Y86: 0.1905223965 | Z86: 0.1905916589 | AA86: 0.1906634326 | AB86: 0.1907376794 | AC86: 0.1908143645 | AD86: 0.1908934562 | AE86: 0.1909749254 | AF86: 0.1910587452 | AG86: 0.1911448911 | AH86: 0.1912333403 | AI86: 0.191324072 | AJ86: 0.1914170667 | AK86: 0.1915123065 | AL86: 0.1916097747 | AM86: 0.191709456 | AN86: 0.191811336 | AO86: 0.1919154012 | AP86: 0.1920216393 | AQ86: =IF(AQ65>7,Buck_RdsON_factor_7V*(AQ67-150)+Rds_ON_150_7V,IF(AQ65<5,Buck_RdsON_factor_5V*(AQ67-150)+Rds_ON_150,Buck_RdsON_factor_6V*(AQ67-150)+Rds_ON_150_6V)) -> 0.1921300385 | AR86: 0.192240588 | AS86: 0.1923532776 | AT86: 0.1924680978 | AU86: 0.1925850396 | AV86: 0.1927040947 | AW86: 0.1928252551 | AX86: 0.1929485134 | AY86: 0.1930738627 | AZ86: 0.1932012964 | BA86: 0.1933308082 | BB86: 0.1934623924 | BC86: 0.1935960433 | BD86: 0.1937317558 | BE86: 0.1938695249 | BF86: 0.1940093459 | BG86: 0.1941512143 | BH86: 0.1942951261 | BI86: 0.1985146241 | BJ86: Rds_On Buck | BK86: Buck
A87: A81407 Operating at Vin nom | I87: Conduction Losses | J87: =J83^2*J86 -> 0.02583794377 | K87: 0.05610341556 | L87: 0.0541992805 | M87: 0.05242263836 | N87: 0.04731476881 | O87: 0.04586574104 | P87: 0.04450474851 | Q87: 0.04322399459 | R87: 0.04201658213 | S87: 0.04087638676 | T87: 0.03979795104 | U87: 0.03877639571 | V87: 0.0378073447 | W87: 0.03688686167 | X87: 0.03601139584 | Y87: 0.03517773578 | Z87: 0.03438296963 | AA87: 0.03362445085 | AB87: 0.03289976855 | AC87: 0.03220672177 | AD87: 0.03154329701 | AE87: 0.03090764866 | AF87: 0.03029808178 | AG87: 0.02971303699 | AH87: 0.02915107717 | AI87: 0.02861087564 | AJ87: 0.02809120573 | AK87: 0.02759093153 | AL87: 0.02710899961 | AM87: 0.02664443166 | AN87: 0.02619631787 | AO87: 0.02576381106 | AP87: =AP83^2*AP86 -> 0.02534612135 | AQ87: 0.02494251138 | AR87: 0.02455229202 | AS87: 0.02417481848 | AT87: 0.0238094868 | AU87: 0.02345573065 | AV87: 0.02311301843 | AW87: 0.02278085069 | AX87: 0.02245875767 | AY87: 0.02214629716 | AZ87: 0.0218430525 | BA87: 0.02154863075 | BB87: 0.02126266105 | BC87: 0.02098479304 | BD87: 0.0207146955 | BE87: 0.02045205505 | BF87: 0.02019657496 | BG87: 0.01994797406 | BH87: 0.01970598572 | BI87: 0.01063045397 | BJ87: Conduction Losses
A88: Pdiss Total | B88: =IF(Topology="Buck",J66,J3) -> 0.9545173335 | E88: A81407 Power dissipation at nominal input voltage | I88: Switching Losses | J88: =IF(J76=1,0,0.5*J65*Iout_PreReg*J74*10^3*(J65/SLEW_rate+J65/1.5)*10^-9) -> 0.203148 | K88: 0.04709466667 | L88: 0.05055693461 | M88: 0.05414199695 | N88: 0.05784985367 | O88: 0.06168050479 | P88: 0.0656339503 | Q88: 0.0697101902 | R88: 0.07390922449 | S88: 0.07823105317 | T88: 0.08267567625 | U88: 0.08724309371 | V88: 0.09193330557 | W88: 0.09674631181 | X88: 0.1016821125 | Y88: 0.1067407075 | Z88: 0.1119220969 | AA88: 0.1172262807 | AB88: 0.1226532589 | AC88: 0.1282030315 | AD88: 0.1338755985 | AE88: 0.1396709599 | AF88: 0.1455891156 | AG88: 0.1516300658 | AH88: 0.1577938104 | AI88: 0.1640803493 | AJ88: 0.1704896826 | AK88: 0.1770218104 | AL88: 0.1836767325 | AM88: 0.190454449 | AN88: 0.1973549599 | AO88: 0.2043782652 | AP88: =IF(AP76=1,0,0.5*AP65*Iout_PreReg*AP74*10^3*(AP65/SLEW_rate+AP65/1.5)*10^-9) -> 0.2115243648 | AQ88: 0.2187932589 | AR88: 0.2261849474 | AS88: 0.2336994302 | AT88: 0.2413367075 | AU88: 0.2490967791 | AV88: 0.2569796451 | AW88: 0.2649853056 | AX88: 0.2731137604 | AY88: 0.2813650096 | AZ88: 0.2897390532 | BA88: 0.2982358912 | BB88: 0.3068555235 | BC88: 0.3155979503 | BD88: 0.3244631715 | BE88: 0.333451187 | BF88: 0.3425619969 | BG88: 0.3517956013 | BH88: 0.361152 | BI88: 0.6374624051 | BJ88: Switching Losses
A89: Tj estimate | B89: =IF(Reset=1,150,Ta+Rth_ja*Pdiss_total) -> 153.63552 | E89: Estimated A81407 junction temperature at nominal input voltage | I89: Total Buck FET Losses | J89: =J87+J88 -> 0.2289859438 | K89: 0.1031980822 | L89: 0.1047562151 | M89: 0.1065646353 | N89: 0.1051646225 | O89: 0.1075462458 | P89: 0.1101386988 | Q89: 0.1129341848 | R89: 0.1159258066 | S89: 0.1191074399 | T89: 0.1224736273 | U89: 0.1260194894 | V89: 0.1297406503 | W89: 0.1336331735 | X89: 0.1376935083 | Y89: 0.1419184433 | Z89: 0.1463050665 | AA89: 0.1508507316 | AB89: 0.1555530275 | AC89: 0.1604097533 | AD89: 0.1654188955 | AE89: 0.1705786085 | AF89: 0.1758871974 | AG89: 0.1813431028 | AH89: 0.1869448875 | AI89: 0.1926912249 | AJ89: 0.1985808884 | AK89: 0.2046127419 | AL89: 0.2107857321 | AM89: 0.2170988806 | AN89: 0.2235512778 | AO89: 0.2301420762 | AP89: =AP87+AP88 -> 0.2368704862 | AQ89: 0.2437357703 | AR89: 0.2507372394 | AS89: 0.2578742487 | AT89: 0.2651461943 | AU89: 0.2725525098 | AV89: 0.2800926636 | AW89: 0.2877661563 | AX89: 0.295572518 | AY89: 0.3035113067 | AZ89: 0.3115821057 | BA89: 0.3197845219 | BB89: 0.3281181846 | BC89: 0.3365827433 | BD89: 0.345177867 | BE89: 0.3539032421 | BF89: 0.3627585719 | BG89: 0.3717435753 | BH89: 0.3808579857 | BI89: 0.6480928591 | BJ89: Total Buck FET Losses
A90: T rise | B90: =Tj-Ta -> 28.63552001 | E90: A81407 temperature rise at nominal input voltage | H90: VUC LDO | I90: Output voltage | J90: =IF(J77-3.3<J91*Iout_VUC,J77-J91*Iout_VUC,VUC) -> 3.3 | K90: 3.3 | L90: 3.3 | M90: 3.3 | N90: 3.3 | O90: 3.3 | P90: 3.3 | Q90: 3.3 | R90: 3.3 | S90: 3.3 | T90: 3.3 | U90: 3.3 | V90: 3.3 | W90: 3.3 | X90: 3.3 | Y90: 3.3 | Z90: 3.3 | AA90: 3.3 | AB90: 3.3 | AC90: 3.3 | AD90: 3.3 | AE90: 3.3 | AF90: 3.3 | AG90: 3.3 | AH90: 3.3 | AI90: 3.3 | AJ90: 3.3 | AK90: 3.3 | AL90: 3.3 | AM90: 3.3 | AN90: 3.3 | AO90: 3.3 | AP90: =IF(AP77-3.3<AP91*Iout_VUC,AP77-AP91*Iout_VUC,VUC) -> 3.3 | AQ90: 3.3 | AR90: 3.3 | AS90: 3.3 | AT90: 3.3 | AU90: 3.3 | AV90: 3.3 | AW90: 3.3 | AX90: 3.3 | AY90: 3.3 | AZ90: 3.3 | BA90: 3.3 | BB90: 3.3 | BC90: 3.3 | BD90: 3.3 | BE90: 3.3 | BF90: 3.3 | BG90: 3.3 | BH90: 3.3 | BI90: 3.3 | BJ90: Output voltage | BK90: 5V0 LDO
I91: Series pass resistance | J91: =(Rds_ON_VUC_150-Rds_ON_VUC_min40)/190*(J67-150)+Rds_ON_VUC_150 -> 0.5063332864 | K91: 0.5028436663 | L91: 0.5028868922 | M91: 0.5029370615 | N91: 0.5028982222 | O91: 0.5029642935 | P91: 0.5030362136 | Q91: 0.5031137663 | R91: 0.5031967601 | S91: 0.5032850253 | T91: 0.5033784105 | U91: 0.5034767802 | V91: 0.503580013 | W91: 0.5036879998 | X91: 0.503800642 | Y91: 0.5039178506 | Z91: 0.5040395448 | AA91: 0.5041656511 | AB91: 0.5042961027 | AC91: 0.5044308385 | AD91: 0.5045698026 | AE91: 0.5047129439 | AF91: 0.5048602154 | AG91: 0.5050115737 | AH91: 0.505166979 | AI91: 0.5053263945 | AJ91: 0.5054897861 | AK91: 0.5056571224 | AL91: 0.5058283742 | AM91: 0.5060035142 | AN91: 0.5061825173 | AO91: 0.5063653599 | AP91: =(Rds_ON_VUC_150-Rds_ON_VUC_min40)/190*(AP67-150)+Rds_ON_VUC_150 -> 0.5065520202 | AQ91: 0.5067424776 | AR91: 0.5069367131 | AS91: 0.5071347088 | AT91: 0.5073364478 | AU91: 0.5075419146 | AV91: 0.5077510944 | AW91: 0.5079639732 | AX91: 0.5081805381 | AY91: 0.5084007768 | AZ91: 0.5086246778 | BA91: 0.5088522301 | BB91: 0.5090834234 | BC91: 0.5093182481 | BD91: 0.5095566949 | BE91: 0.5097987552 | BF91: 0.5100444207 | BG91: 0.5102936836 | BH91: 0.5105465365 | BI91: 0.5179601945 | BJ91: Series pass resistance
A92: Tj (MAX): | B92: =IF(Topology="Buck",MAX(K67:BH67),MAX(K4:BH4)) -> 157.7696352 | C92: =IF(Topology="Buck",HLOOKUP(B92,K67:BI68,2,FALSE),HLOOKUP(B92,K4:BI5,2,FALSE)) -> 3.5 | E92: Maximum junction temperature at worse case operating voltage | I92: Dropout | J92: =J77-J90 -> 2.05 | K92: 2.05 | L92: 2.05 | M92: 2.05 | N92: 2.05 | O92: 2.05 | P92: 2.05 | Q92: 2.05 | R92: 2.05 | S92: 2.05 | T92: 2.05 | U92: 2.05 | V92: 2.05 | W92: 2.05 | X92: 2.05 | Y92: 2.05 | Z92: 2.05 | AA92: 2.05 | AB92: 2.05 | AC92: 2.05 | AD92: 2.05 | AE92: 2.05 | AF92: 2.05 | AG92: 2.05 | AH92: 2.05 | AI92: 2.05 | AJ92: 2.05 | AK92: 2.05 | AL92: 2.05 | AM92: 2.05 | AN92: 2.05 | AO92: 2.05 | AP92: =AP77-AP90 -> 2.05 | AQ92: 2.05 | AR92: 2.05 | AS92: 2.05 | AT92: 2.05 | AU92: 2.05 | AV92: 2.05 | AW92: 2.05 | AX92: 2.05 | AY92: 2.05 | AZ92: 2.05 | BA92: 2.05 | BB92: 2.05 | BC92: 2.05 | BD92: 2.05 | BE92: 2.05 | BF92: 2.05 | BG92: 2.05 | BH92: 2.05 | BI92: 2.05 | BJ92: Dropout
I93: Power dissipated | J93: =(J77-J90)*Iout_VUC -> 0.5125 | K93: 0.5125 | L93: 0.5125 | M93: 0.5125 | N93: 0.5125 | O93: 0.5125 | P93: 0.5125 | Q93: 0.5125 | R93: 0.5125 | S93: 0.5125 | T93: 0.5125 | U93: 0.5125 | V93: 0.5125 | W93: 0.5125 | X93: 0.5125 | Y93: 0.5125 | Z93: 0.5125 | AA93: 0.5125 | AB93: 0.5125 | AC93: 0.5125 | AD93: 0.5125 | AE93: 0.5125 | AF93: 0.5125 | AG93: 0.5125 | AH93: 0.5125 | AI93: 0.5125 | AJ93: 0.5125 | AK93: 0.5125 | AL93: 0.5125 | AM93: 0.5125 | AN93: 0.5125 | AO93: 0.5125 | AP93: =(AP77-AP90)*Iout_VUC -> 0.5125 | AQ93: 0.5125 | AR93: 0.5125 | AS93: 0.5125 | AT93: 0.5125 | AU93: 0.5125 | AV93: 0.5125 | AW93: 0.5125 | AX93: 0.5125 | AY93: 0.5125 | AZ93: 0.5125 | BA93: 0.5125 | BB93: 0.5125 | BC93: 0.5125 | BD93: 0.5125 | BE93: 0.5125 | BF93: 0.5125 | BG93: 0.5125 | BH93: 0.5125 | BI93: 0.5125 | BJ93: Power dissipated
H94: V5A LDO | I94: Output voltage | J94: =IF(J77-5<J95*Iout_V5C,J77-J95*Iout_V5C,5) -> 5 | K94: 5 | L94: 5 | M94: 5 | N94: 5 | O94: 5 | P94: 5 | Q94: 5 | R94: 5 | S94: 5 | T94: 5 | U94: 5 | V94: 5 | W94: 5 | X94: 5 | Y94: 5 | Z94: 5 | AA94: 5 | AB94: 5 | AC94: 5 | AD94: 5 | AE94: 5 | AF94: 5 | AG94: 5 | AH94: 5 | AI94: 5 | AJ94: 5 | AK94: 5 | AL94: 5 | AM94: 5 | AN94: 5 | AO94: 5 | AP94: =IF(AP77-5<AP95*Iout_V5C,AP77-AP95*Iout_V5C,5) -> 5 | AQ94: 5 | AR94: 5 | AS94: 5 | AT94: 5 | AU94: 5 | AV94: 5 | AW94: 5 | AX94: 5 | AY94: 5 | AZ94: 5 | BA94: 5 | BB94: 5 | BC94: 5 | BD94: 5 | BE94: 5 | BF94: 5 | BG94: 5 | BH94: 5 | BI94: 5
I95: Series pass resistance | J95: =(Rds_ON_V5A_150-Rds_ON_V5A_min40)/190*(J67-150)+Rds_ON_V5A_150 -> 0.7077041081 | K95: 0.6985917705 | L95: 0.698704645 | M95: 0.6988356507 | N95: 0.6987342309 | O95: 0.6989067607 | P95: 0.6990945634 | Q95: 0.6992970743 | R95: 0.6995137937 | S95: 0.6997442779 | T95: 0.6999881316 | U95: 0.7002450013 | V95: 0.7005145701 | W95: 0.7007965526 | X95: 0.7010906918 | Y95: 0.701396755 | Z95: 0.7017145312 | AA95: 0.7020438288 | AB95: 0.702384473 | AC95: 0.7027363044 | AD95: 0.7030991773 | AE95: 0.7034729577 | AF95: 0.7038575231 | AG95: 0.7042527604 | AH95: 0.7046585654 | AI95: 0.7050748422 | AJ95: 0.7055015018 | AK95: 0.705938462 | AL95: 0.7063856464 | AM95: 0.7068429842 | AN95: 0.7073104094 | AO95: 0.7077878607 | AP95: =(Rds_ON_V5A_150-Rds_ON_V5A_min40)/190*(AP67-150)+Rds_ON_V5A_150 -> 0.7082752809 | AQ95: 0.7087726165 | AR95: 0.7092798177 | AS95: 0.7097968377 | AT95: 0.7103236327 | AU95: 0.7108601618 | AV95: 0.7114063864 | AW95: 0.7119622704 | AX95: 0.7125277797 | AY95: 0.7131028822 | AZ95: 0.7136875479 | BA95: 0.7142817482 | BB95: 0.7148854563 | BC95: 0.7154986467 | BD95: 0.7161212956 | BE95: 0.7167533801 | BF95: 0.7173948789 | BG95: 0.7180457714 | BH95: 0.7187060385 | BI95: 0.7380650953
I96: Dropout | J96: =J77-J94 -> 0.35 | K96: 0.35 | L96: 0.35 | M96: 0.35 | N96: 0.35 | O96: 0.35 | P96: 0.35 | Q96: 0.35 | R96: 0.35 | S96: 0.35 | T96: 0.35 | U96: 0.35 | V96: 0.35 | W96: 0.35 | X96: 0.35 | Y96: 0.35 | Z96: 0.35 | AA96: 0.35 | AB96: 0.35 | AC96: 0.35 | AD96: 0.35 | AE96: 0.35 | AF96: 0.35 | AG96: 0.35 | AH96: 0.35 | AI96: 0.35 | AJ96: 0.35 | AK96: 0.35 | AL96: 0.35 | AM96: 0.35 | AN96: 0.35 | AO96: 0.35 | AP96: =AP77-AP94 -> 0.35 | AQ96: 0.35 | AR96: 0.35 | AS96: 0.35 | AT96: 0.35 | AU96: 0.35 | AV96: 0.35 | AW96: 0.35 | AX96: 0.35 | AY96: 0.35 | AZ96: 0.35 | BA96: 0.35 | BB96: 0.35 | BC96: 0.35 | BD96: 0.35 | BE96: 0.35 | BF96: 0.35 | BG96: 0.35 | BH96: 0.35 | BI96: 0.35
I97: Power dissipated | J97: =(J77-J94)*Iout_V5C -> 0.035 | K97: 0.035 | L97: 0.035 | M97: 0.035 | N97: 0.035 | O97: 0.035 | P97: 0.035 | Q97: 0.035 | R97: 0.035 | S97: 0.035 | T97: 0.035 | U97: 0.035 | V97: 0.035 | W97: 0.035 | X97: 0.035 | Y97: 0.035 | Z97: 0.035 | AA97: 0.035 | AB97: 0.035 | AC97: 0.035 | AD97: 0.035 | AE97: 0.035 | AF97: 0.035 | AG97: 0.035 | AH97: 0.035 | AI97: 0.035 | AJ97: 0.035 | AK97: 0.035 | AL97: 0.035 | AM97: 0.035 | AN97: 0.035 | AO97: 0.035 | AP97: =(AP77-AP94)*Iout_V5C -> 0.035 | AQ97: 0.035 | AR97: 0.035 | AS97: 0.035 | AT97: 0.035 | AU97: 0.035 | AV97: 0.035 | AW97: 0.035 | AX97: 0.035 | AY97: 0.035 | AZ97: 0.035 | BA97: 0.035 | BB97: 0.035 | BC97: 0.035 | BD97: 0.035 | BE97: 0.035 | BF97: 0.035 | BG97: 0.035 | BH97: 0.035 | BI97: 0.035
H98: V5P1 LDO | I98: Output voltage | J98: =IF(J77-5<J99*Iout_V5P1,J77-J99*Iout_V5P1,5) -> 5 | K98: 5 | L98: 5 | M98: 5 | N98: 5 | O98: 5 | P98: 5 | Q98: 5 | R98: 5 | S98: 5 | T98: 5 | U98: 5 | V98: 5 | W98: 5 | X98: 5 | Y98: 5 | Z98: 5 | AA98: 5 | AB98: 5 | AC98: 5 | AD98: 5 | AE98: 5 | AF98: 5 | AG98: 5 | AH98: 5 | AI98: 5 | AJ98: 5 | AK98: 5 | AL98: 5 | AM98: 5 | AN98: 5 | AO98: 5 | AP98: =IF(AP77-5<AP99*Iout_V5P1,AP77-AP99*Iout_V5P1,5) -> 5 | AQ98: 5 | AR98: 5 | AS98: 5 | AT98: 5 | AU98: 5 | AV98: 5 | AW98: 5 | AX98: 5 | AY98: 5 | AZ98: 5 | BA98: 5 | BB98: 5 | BC98: 5 | BD98: 5 | BE98: 5 | BF98: 5 | BG98: 5 | BH98: 5 | BI98: 5
I99: Series pass resistance | J99: =(Rds_ON_V5P1_150-Rds_ON_V5P1_min40)/190*(J67-150)+Rds_ON_V5P1_150 -> 0.7077041081 | K99: 0.6985917705 | L99: 0.698704645 | M99: 0.6988356507 | N99: 0.6987342309 | O99: 0.6989067607 | P99: 0.6990945634 | Q99: 0.6992970743 | R99: 0.6995137937 | S99: 0.6997442779 | T99: 0.6999881316 | U99: 0.7002450013 | V99: 0.7005145701 | W99: 0.7007965526 | X99: 0.7010906918 | Y99: 0.701396755 | Z99: 0.7017145312 | AA99: 0.7020438288 | AB99: 0.702384473 | AC99: 0.7027363044 | AD99: 0.7030991773 | AE99: 0.7034729577 | AF99: 0.7038575231 | AG99: 0.7042527604 | AH99: 0.7046585654 | AI99: 0.7050748422 | AJ99: 0.7055015018 | AK99: 0.705938462 | AL99: 0.7063856464 | AM99: 0.7068429842 | AN99: 0.7073104094 | AO99: 0.7077878607 | AP99: =(Rds_ON_V5P1_150-Rds_ON_V5P1_min40)/190*(AP67-150)+Rds_ON_V5P1_150 -> 0.7082752809 | AQ99: 0.7087726165 | AR99: 0.7092798177 | AS99: 0.7097968377 | AT99: 0.7103236327 | AU99: 0.7108601618 | AV99: 0.7114063864 | AW99: 0.7119622704 | AX99: 0.7125277797 | AY99: 0.7131028822 | AZ99: 0.7136875479 | BA99: 0.7142817482 | BB99: 0.7148854563 | BC99: 0.7154986467 | BD99: 0.7161212956 | BE99: 0.7167533801 | BF99: 0.7173948789 | BG99: 0.7180457714 | BH99: 0.7187060385 | BI99: 0.7380650953
I100: Dropout | J100: =J77-J98 -> 0.35 | K100: 0.35 | L100: 0.35 | M100: 0.35 | N100: 0.35 | O100: 0.35 | P100: 0.35 | Q100: 0.35 | R100: 0.35 | S100: 0.35 | T100: 0.35 | U100: 0.35 | V100: 0.35 | W100: 0.35 | X100: 0.35 | Y100: 0.35 | Z100: 0.35 | AA100: 0.35 | AB100: 0.35 | AC100: 0.35 | AD100: 0.35 | AE100: 0.35 | AF100: 0.35 | AG100: 0.35 | AH100: 0.35 | AI100: 0.35 | AJ100: 0.35 | AK100: 0.35 | AL100: 0.35 | AM100: 0.35 | AN100: 0.35 | AO100: 0.35 | AP100: =AP77-AP98 -> 0.35 | AQ100: 0.35 | AR100: 0.35 | AS100: 0.35 | AT100: 0.35 | AU100: 0.35 | AV100: 0.35 | AW100: 0.35 | AX100: 0.35 | AY100: 0.35 | AZ100: 0.35 | BA100: 0.35 | BB100: 0.35 | BC100: 0.35 | BD100: 0.35 | BE100: 0.35 | BF100: 0.35 | BG100: 0.35 | BH100: 0.35 | BI100: 0.35
I101: Power dissipated | J101: =(J77-J98)*Iout_V5P1 -> 0.035 | K101: 0.035 | L101: 0.035 | M101: 0.035 | N101: 0.035 | O101: 0.035 | P101: 0.035 | Q101: 0.035 | R101: 0.035 | S101: 0.035 | T101: 0.035 | U101: 0.035 | V101: 0.035 | W101: 0.035 | X101: 0.035 | Y101: 0.035 | Z101: 0.035 | AA101: 0.035 | AB101: 0.035 | AC101: 0.035 | AD101: 0.035 | AE101: 0.035 | AF101: 0.035 | AG101: 0.035 | AH101: 0.035 | AI101: 0.035 | AJ101: 0.035 | AK101: 0.035 | AL101: 0.035 | AM101: 0.035 | AN101: 0.035 | AO101: 0.035 | AP101: =(AP77-AP98)*Iout_V5P1 -> 0.035 | AQ101: 0.035 | AR101: 0.035 | AS101: 0.035 | AT101: 0.035 | AU101: 0.035 | AV101: 0.035 | AW101: 0.035 | AX101: 0.035 | AY101: 0.035 | AZ101: 0.035 | BA101: 0.035 | BB101: 0.035 | BC101: 0.035 | BD101: 0.035 | BE101: 0.035 | BF101: 0.035 | BG101: 0.035 | BH101: 0.035 | BI101: 0.035
H102: V5P2 LDO | I102: Output voltage | J102: =IF(J77-5<J103*Iout_V5P2,J77-J103*Iout_V5P2,5) -> 5 | K102: 5 | L102: 5 | M102: 5 | N102: 5 | O102: 5 | P102: 5 | Q102: 5 | R102: 5 | S102: 5 | T102: 5 | U102: 5 | V102: 5 | W102: 5 | X102: 5 | Y102: 5 | Z102: 5 | AA102: 5 | AB102: 5 | AC102: 5 | AD102: 5 | AE102: 5 | AF102: 5 | AG102: 5 | AH102: 5 | AI102: 5 | AJ102: 5 | AK102: 5 | AL102: 5 | AM102: 5 | AN102: 5 | AO102: 5 | AP102: =IF(AP77-5<AP103*Iout_V5P2,AP77-AP103*Iout_V5P2,5) -> 5 | AQ102: 5 | AR102: 5 | AS102: 5 | AT102: 5 | AU102: 5 | AV102: 5 | AW102: 5 | AX102: 5 | AY102: 5 | AZ102: 5 | BA102: 5 | BB102: 5 | BC102: 5 | BD102: 5 | BE102: 5 | BF102: 5 | BG102: 5 | BH102: 5 | BI102: 5
I103: Series pass resistance | J103: =(Rds_ON_V5P2_150-Rds_ON_V5P2_min40)/190*(J67-150)+Rds_ON_V5P2_150 -> 0.7077041081 | K103: 0.6985917705 | L103: 0.698704645 | M103: 0.6988356507 | N103: 0.6987342309 | O103: 0.6989067607 | P103: 0.6990945634 | Q103: 0.6992970743 | R103: 0.6995137937 | S103: 0.6997442779 | T103: 0.6999881316 | U103: 0.7002450013 | V103: 0.7005145701 | W103: 0.7007965526 | X103: 0.7010906918 | Y103: 0.701396755 | Z103: 0.7017145312 | AA103: 0.7020438288 | AB103: 0.702384473 | AC103: 0.7027363044 | AD103: 0.7030991773 | AE103: 0.7034729577 | AF103: 0.7038575231 | AG103: 0.7042527604 | AH103: 0.7046585654 | AI103: 0.7050748422 | AJ103: 0.7055015018 | AK103: 0.705938462 | AL103: 0.7063856464 | AM103: 0.7068429842 | AN103: 0.7073104094 | AO103: 0.7077878607 | AP103: =(Rds_ON_V5P2_150-Rds_ON_V5P2_min40)/190*(AP67-150)+Rds_ON_V5P2_150 -> 0.7082752809 | AQ103: 0.7087726165 | AR103: 0.7092798177 | AS103: 0.7097968377 | AT103: 0.7103236327 | AU103: 0.7108601618 | AV103: 0.7114063864 | AW103: 0.7119622704 | AX103: 0.7125277797 | AY103: 0.7131028822 | AZ103: 0.7136875479 | BA103: 0.7142817482 | BB103: 0.7148854563 | BC103: 0.7154986467 | BD103: 0.7161212956 | BE103: 0.7167533801 | BF103: 0.7173948789 | BG103: 0.7180457714 | BH103: 0.7187060385 | BI103: 0.7380650953
I104: Dropout | J104: =J77-J102 -> 0.35 | K104: 0.35 | L104: 0.35 | M104: 0.35 | N104: 0.35 | O104: 0.35 | P104: 0.35 | Q104: 0.35 | R104: 0.35 | S104: 0.35 | T104: 0.35 | U104: 0.35 | V104: 0.35 | W104: 0.35 | X104: 0.35 | Y104: 0.35 | Z104: 0.35 | AA104: 0.35 | AB104: 0.35 | AC104: 0.35 | AD104: 0.35 | AE104: 0.35 | AF104: 0.35 | AG104: 0.35 | AH104: 0.35 | AI104: 0.35 | AJ104: 0.35 | AK104: 0.35 | AL104: 0.35 | AM104: 0.35 | AN104: 0.35 | AO104: 0.35 | AP104: =AP77-AP102 -> 0.35 | AQ104: 0.35 | AR104: 0.35 | AS104: 0.35 | AT104: 0.35 | AU104: 0.35 | AV104: 0.35 | AW104: 0.35 | AX104: 0.35 | AY104: 0.35 | AZ104: 0.35 | BA104: 0.35 | BB104: 0.35 | BC104: 0.35 | BD104: 0.35 | BE104: 0.35 | BF104: 0.35 | BG104: 0.35 | BH104: 0.35 | BI104: 0.35
I105: Power dissipated | J105: =(J77-J102)*Iout_V5P2 -> 0.035 | K105: 0.035 | L105: 0.035 | M105: 0.035 | N105: 0.035 | O105: 0.035 | P105: 0.035 | Q105: 0.035 | R105: 0.035 | S105: 0.035 | T105: 0.035 | U105: 0.035 | V105: 0.035 | W105: 0.035 | X105: 0.035 | Y105: 0.035 | Z105: 0.035 | AA105: 0.035 | AB105: 0.035 | AC105: 0.035 | AD105: 0.035 | AE105: 0.035 | AF105: 0.035 | AG105: 0.035 | AH105: 0.035 | AI105: 0.035 | AJ105: 0.035 | AK105: 0.035 | AL105: 0.035 | AM105: 0.035 | AN105: 0.035 | AO105: 0.035 | AP105: =(AP77-AP102)*Iout_V5P2 -> 0.035 | AQ105: 0.035 | AR105: 0.035 | AS105: 0.035 | AT105: 0.035 | AU105: 0.035 | AV105: 0.035 | AW105: 0.035 | AX105: 0.035 | AY105: 0.035 | AZ105: 0.035 | BA105: 0.035 | BB105: 0.035 | BC105: 0.035 | BD105: 0.035 | BE105: 0.035 | BF105: 0.035 | BG105: 0.035 | BH105: 0.035 | BI105: 0.035
H106: Buck Diode | I106: Tj Diode | J106: =J109*RTHavg_Vd+Ta -> 134.5049346 | K106: 127.5389591 | L106: 128.0176096 | M106: 128.4626333 | N106: 128.8906895 | O106: 129.2774066 | P106: 129.639558 | Q106: 129.9794087 | R106: 130.2989544 | S106: 130.5999597 | T106: 130.8839906 | U106: 131.1524419 | V106: 131.4065598 | W106: 131.6474613 | X106: 131.8761503 | Y106: 132.0935315 | Z106: 132.3004227 | AA106: 132.4975646 | AB106: 132.68563 | AC106: 132.865231 | AD106: 133.0369261 | AE106: 133.2012256 | AF106: 133.3585972 | AG106: 133.5094694 | AH106: 133.6542367 | AI106: 133.793262 | AJ106: 133.92688 | AK106: 134.0554 | AL106: 134.1791082 | AM106: 134.2982697 | AN106: 134.4131305 | AO106: 134.5239191 | AP106: =AP109*RTHavg_Vd+Ta -> 134.6308483 | AQ106: 134.7341163 | AR106: 134.8339077 | AS106: 134.9303951 | AT106: 135.02374 | AU106: 135.1140932 | AV106: 135.2015964 | AW106: 135.2863822 | AX106: 135.3685752 | AY106: 135.4482925 | AZ106: 135.5256443 | BA106: 135.6007343 | BB106: 135.6736602 | BC106: 135.7445142 | BD106: 135.8133834 | BE106: 135.8803499 | BF106: 135.9454916 | BG106: 136.008882 | BH106: 136.0705908 | BI106: 138.3858598 | BJ106: Tj Diode
I107: I Buck Diode ON | J107: =J80-J81/2 -> 0.57 | K107: 0.57 | L107: 0.57 | M107: 0.57 | N107: 0.57 | O107: 0.57 | P107: 0.57 | Q107: 0.57 | R107: 0.57 | S107: 0.57 | T107: 0.57 | U107: 0.57 | V107: 0.57 | W107: 0.57 | X107: 0.57 | Y107: 0.57 | Z107: 0.57 | AA107: 0.57 | AB107: 0.57 | AC107: 0.57 | AD107: 0.57 | AE107: 0.57 | AF107: 0.57 | AG107: 0.57 | AH107: 0.57 | AI107: 0.57 | AJ107: 0.57 | AK107: 0.57 | AL107: 0.57 | AM107: 0.57 | AN107: 0.57 | AO107: 0.57 | AP107: =AP80-AP81/2 -> 0.57 | AQ107: 0.57 | AR107: 0.57 | AS107: 0.57 | AT107: 0.57 | AU107: 0.57 | AV107: 0.57 | AW107: 0.57 | AX107: 0.57 | AY107: 0.57 | AZ107: 0.57 | BA107: 0.57 | BB107: 0.57 | BC107: 0.57 | BD107: 0.57 | BE107: 0.57 | BF107: 0.57 | BG107: 0.57 | BH107: 0.57 | BI107: 0.57 | BJ107: I Buck Diode ON
I108: Vf buck diode | J108: =IF(J107<I_Vd1,Vd_1+(J106-25)*vd_temp_coeff/1000,IF(J107=0,0,IF(Reset=1,0.45,FORECAST(J107, OFFSET(Vd_1:Vd_3,MATCH(J107,I_Vd1:I_Vd3,1)-1,0,2), OFFSET(I_Vd1:I_Vd3,MATCH(J107,I_Vd1:I_Vd3,1)-1,0,2))+(J106-25)*vd_temp_coeff/1000))) -> 0.2363440785 | K108: =IF(K107<I_Vd1,Vd_1+(K106-25)*vd_temp_coeff/1000,IF(K107=0,0,IF(Reset=1,0.45,FORECAST(K107, OFFSET(Vd_1:Vd_3,MATCH(K107,I_Vd1:I_Vd3,1)-1,0,2), OFFSET(I_Vd1:I_Vd3,MATCH(K107,I_Vd1:I_Vd3,1)-1,0,2))+(K106-25)*vd_temp_coeff/1000))) -> 0.2447032491 | L108: =IF(L107<I_Vd1,Vd_1+(L106-25)*vd_temp_coeff/1000,IF(L107=0,0,IF(Reset=1,0.45,FORECAST(L107, OFFSET(Vd_1:Vd_3,MATCH(L107,I_Vd1:I_Vd3,1)-1,0,2), OFFSET(I_Vd1:I_Vd3,MATCH(L107,I_Vd1:I_Vd3,1)-1,0,2))+(L106-25)*vd_temp_coeff/1000))) -> 0.2441288684 | M108: =IF(M107<I_Vd1,Vd_1+(M106-25)*vd_temp_coeff/1000,IF(M107=0,0,IF(Reset=1,0.45,FORECAST(M107, OFFSET(Vd_1:Vd_3,MATCH(M107,I_Vd1:I_Vd3,1)-1,0,2), OFFSET(I_Vd1:I_Vd3,MATCH(M107,I_Vd1:I_Vd3,1)-1,0,2))+(M106-25)*vd_temp_coeff/1000))) -> 0.24359484 | N108: =IF(N107<I_Vd1,Vd_1+(N106-25)*vd_temp_coeff/1000,IF(N107=0,0,IF(Reset=1,0.45,FORECAST(N107, OFFSET(Vd_1:Vd_3,MATCH(N107,I_Vd1:I_Vd3,1)-1,0,2), OFFSET(I_Vd1:I_Vd3,MATCH(N107,I_Vd1:I_Vd3,1)-1,0,2))+(N106-25)*vd_temp_coeff/1000))) -> 0.2430811726 | O108: =IF(O107<I_Vd1,Vd_1+(O106-25)*vd_temp_coeff/1000,IF(O107=0,0,IF(Reset=1,0.45,FORECAST(O107, OFFSET(Vd_1:Vd_3,MATCH(O107,I_Vd1:I_Vd3,1)-1,0,2), OFFSET(I_Vd1:I_Vd3,MATCH(O107,I_Vd1:I_Vd3,1)-1,0,2))+(O106-25)*vd_temp_coeff/1000))) -> 0.242617112 | P108: =IF(P107<I_Vd1,Vd_1+(P106-25)*vd_temp_coeff/1000,IF(P107=0,0,IF(Reset=1,0.45,FORECAST(P107, OFFSET(Vd_1:Vd_3,MATCH(P107,I_Vd1:I_Vd3,1)-1,0,2), OFFSET(I_Vd1:I_Vd3,MATCH(P107,I_Vd1:I_Vd3,1)-1,0,2))+(P106-25)*vd_temp_coeff/1000))) -> 0.2421825305 | Q108: =IF(Q107<I_Vd1,Vd_1+(Q106-25)*vd_temp_coeff/1000,IF(Q107=0,0,IF(Reset=1,0.45,FORECAST(Q107, OFFSET(Vd_1:Vd_3,MATCH(Q107,I_Vd1:I_Vd3,1)-1,0,2), OFFSET(I_Vd1:I_Vd3,MATCH(Q107,I_Vd1:I_Vd3,1)-1,0,2))+(Q106-25)*vd_temp_coeff/1000))) -> 0.2417747095 | R108: =IF(R107<I_Vd1,Vd_1+(R106-25)*vd_temp_coeff/1000,IF(R107=0,0,IF(Reset=1,0.45,FORECAST(R107, OFFSET(Vd_1:Vd_3,MATCH(R107,I_Vd1:I_Vd3,1)-1,0,2), OFFSET(I_Vd1:I_Vd3,MATCH(R107,I_Vd1:I_Vd3,1)-1,0,2))+(R106-25)*vd_temp_coeff/1000))) -> 0.2413912547 | S108: =IF(S107<I_Vd1,Vd_1+(S106-25)*vd_temp_coeff/1000,IF(S107=0,0,IF(Reset=1,0.45,FORECAST(S107, OFFSET(Vd_1:Vd_3,MATCH(S107,I_Vd1:I_Vd3,1)-1,0,2), OFFSET(I_Vd1:I_Vd3,MATCH(S107,I_Vd1:I_Vd3,1)-1,0,2))+(S106-25)*vd_temp_coeff/1000))) -> 0.2410300484 | T108: =IF(T107<I_Vd1,Vd_1+(T106-25)*vd_temp_coeff/1000,IF(T107=0,0,IF(Reset=1,0.45,FORECAST(T107, OFFSET(Vd_1:Vd_3,MATCH(T107,I_Vd1:I_Vd3,1)-1,0,2), OFFSET(I_Vd1:I_Vd3,MATCH(T107,I_Vd1:I_Vd3,1)-1,0,2))+(T106-25)*vd_temp_coeff/1000))) -> 0.2406892113 | U108: =IF(U107<I_Vd1,Vd_1+(U106-25)*vd_temp_coeff/1000,IF(U107=0,0,IF(Reset=1,0.45,FORECAST(U107, OFFSET(Vd_1:Vd_3,MATCH(U107,I_Vd1:I_Vd3,1)-1,0,2), OFFSET(I_Vd1:I_Vd3,MATCH(U107,I_Vd1:I_Vd3,1)-1,0,2))+(U106-25)*vd_temp_coeff/1000))) -> 0.2403670697 | V108: =IF(V107<I_Vd1,Vd_1+(V106-25)*vd_temp_coeff/1000,IF(V107=0,0,IF(Reset=1,0.45,FORECAST(V107, OFFSET(Vd_1:Vd_3,MATCH(V107,I_Vd1:I_Vd3,1)-1,0,2), OFFSET(I_Vd1:I_Vd3,MATCH(V107,I_Vd1:I_Vd3,1)-1,0,2))+(V106-25)*vd_temp_coeff/1000))) -> 0.2400621282 | W108: =IF(W107<I_Vd1,Vd_1+(W106-25)*vd_temp_coeff/1000,IF(W107=0,0,IF(Reset=1,0.45,FORECAST(W107, OFFSET(Vd_1:Vd_3,MATCH(W107,I_Vd1:I_Vd3,1)-1,0,2), OFFSET(I_Vd1:I_Vd3,MATCH(W107,I_Vd1:I_Vd3,1)-1,0,2))+(W106-25)*vd_temp_coeff/1000))) -> 0.2397730464 | X108: =IF(X107<I_Vd1,Vd_1+(X106-25)*vd_temp_coeff/1000,IF(X107=0,0,IF(Reset=1,0.45,FORECAST(X107, OFFSET(Vd_1:Vd_3,MATCH(X107,I_Vd1:I_Vd3,1)-1,0,2), OFFSET(I_Vd1:I_Vd3,MATCH(X107,I_Vd1:I_Vd3,1)-1,0,2))+(X106-25)*vd_temp_coeff/1000))) -> 0.2394986197 | Y108: =IF(Y107<I_Vd1,Vd_1+(Y106-25)*vd_temp_coeff/1000,IF(Y107=0,0,IF(Reset=1,0.45,FORECAST(Y107, OFFSET(Vd_1:Vd_3,MATCH(Y107,I_Vd1:I_Vd3,1)-1,0,2), OFFSET(I_Vd1:I_Vd3,MATCH(Y107,I_Vd1:I_Vd3,1)-1,0,2))+(Y106-25)*vd_temp_coeff/1000))) -> 0.2392377622 | Z108: =IF(Z107<I_Vd1,Vd_1+(Z106-25)*vd_temp_coeff/1000,IF(Z107=0,0,IF(Reset=1,0.45,FORECAST(Z107, OFFSET(Vd_1:Vd_3,MATCH(Z107,I_Vd1:I_Vd3,1)-1,0,2), OFFSET(I_Vd1:I_Vd3,MATCH(Z107,I_Vd1:I_Vd3,1)-1,0,2))+(Z106-25)*vd_temp_coeff/1000))) -> 0.2389894928 | AA108: =IF(AA107<I_Vd1,Vd_1+(AA106-25)*vd_temp_coeff/1000,IF(AA107=0,0,IF(Reset=1,0.45,FORECAST(AA107, OFFSET(Vd_1:Vd_3,MATCH(AA107,I_Vd1:I_Vd3,1)-1,0,2), OFFSET(I_Vd1:I_Vd3,MATCH(AA107,I_Vd1:I_Vd3,1)-1,0,2))+(AA106-25)*vd_temp_coeff/1000))) -> 0.2387529225 | AB108: =IF(AB107<I_Vd1,Vd_1+(AB106-25)*vd_temp_coeff/1000,IF(AB107=0,0,IF(Reset=1,0.45,FORECAST(AB107, OFFSET(Vd_1:Vd_3,MATCH(AB107,I_Vd1:I_Vd3,1)-1,0,2), OFFSET(I_Vd1:I_Vd3,MATCH(AB107,I_Vd1:I_Vd3,1)-1,0,2))+(AB106-25)*vd_temp_coeff/1000))) -> 0.2385272441 | AC108: =IF(AC107<I_Vd1,Vd_1+(AC106-25)*vd_temp_coeff/1000,IF(AC107=0,0,IF(Reset=1,0.45,FORECAST(AC107, OFFSET(Vd_1:Vd_3,MATCH(AC107,I_Vd1:I_Vd3,1)-1,0,2), OFFSET(I_Vd1:I_Vd3,MATCH(AC107,I_Vd1:I_Vd3,1)-1,0,2))+(AC106-25)*vd_temp_coeff/1000))) -> 0.2383117229 | AD108: =IF(AD107<I_Vd1,Vd_1+(AD106-25)*vd_temp_coeff/1000,IF(AD107=0,0,IF(Reset=1,0.45,FORECAST(AD107, OFFSET(Vd_1:Vd_3,MATCH(AD107,I_Vd1:I_Vd3,1)-1,0,2), OFFSET(I_Vd1:I_Vd3,MATCH(AD107,I_Vd1:I_Vd3,1)-1,0,2))+(AD106-25)*vd_temp_coeff/1000))) -> 0.2381056887 | AE108: =IF(AE107<I_Vd1,Vd_1+(AE106-25)*vd_temp_coeff/1000,IF(AE107=0,0,IF(Reset=1,0.45,FORECAST(AE107, OFFSET(Vd_1:Vd_3,MATCH(AE107,I_Vd1:I_Vd3,1)-1,0,2), OFFSET(I_Vd1:I_Vd3,MATCH(AE107,I_Vd1:I_Vd3,1)-1,0,2))+(AE106-25)*vd_temp_coeff/1000))) -> 0.2379085292 | AF108: =IF(AF107<I_Vd1,Vd_1+(AF106-25)*vd_temp_coeff/1000,IF(AF107=0,0,IF(Reset=1,0.45,FORECAST(AF107, OFFSET(Vd_1:Vd_3,MATCH(AF107,I_Vd1:I_Vd3,1)-1,0,2), OFFSET(I_Vd1:I_Vd3,MATCH(AF107,I_Vd1:I_Vd3,1)-1,0,2))+(AF106-25)*vd_temp_coeff/1000))) -> 0.2377196834 | AG108: =IF(AG107<I_Vd1,Vd_1+(AG106-25)*vd_temp_coeff/1000,IF(AG107=0,0,IF(Reset=1,0.45,FORECAST(AG107, OFFSET(Vd_1:Vd_3,MATCH(AG107,I_Vd1:I_Vd3,1)-1,0,2), OFFSET(I_Vd1:I_Vd3,MATCH(AG107,I_Vd1:I_Vd3,1)-1,0,2))+(AG106-25)*vd_temp_coeff/1000))) -> 0.2375386367 | AH108: =IF(AH107<I_Vd1,Vd_1+(AH106-25)*vd_temp_coeff/1000,IF(AH107=0,0,IF(Reset=1,0.45,FORECAST(AH107, OFFSET(Vd_1:Vd_3,MATCH(AH107,I_Vd1:I_Vd3,1)-1,0,2), OFFSET(I_Vd1:I_Vd3,MATCH(AH107,I_Vd1:I_Vd3,1)-1,0,2))+(AH106-25)*vd_temp_coeff/1000))) -> 0.2373649159 | AI108: =IF(AI107<I_Vd1,Vd_1+(AI106-25)*vd_temp_coeff/1000,IF(AI107=0,0,IF(Reset=1,0.45,FORECAST(AI107, OFFSET(Vd_1:Vd_3,MATCH(AI107,I_Vd1:I_Vd3,1)-1,0,2), OFFSET(I_Vd1:I_Vd3,MATCH(AI107,I_Vd1:I_Vd3,1)-1,0,2))+(AI106-25)*vd_temp_coeff/1000))) -> 0.2371980856 | AJ108: =IF(AJ107<I_Vd1,Vd_1+(AJ106-25)*vd_temp_coeff/1000,IF(AJ107=0,0,IF(Reset=1,0.45,FORECAST(AJ107, OFFSET(Vd_1:Vd_3,MATCH(AJ107,I_Vd1:I_Vd3,1)-1,0,2), OFFSET(I_Vd1:I_Vd3,MATCH(AJ107,I_Vd1:I_Vd3,1)-1,0,2))+(AJ106-25)*vd_temp_coeff/1000))) -> 0.237037744 | AK108: =IF(AK107<I_Vd1,Vd_1+(AK106-25)*vd_temp_coeff/1000,IF(AK107=0,0,IF(Reset=1,0.45,FORECAST(AK107, OFFSET(Vd_1:Vd_3,MATCH(AK107,I_Vd1:I_Vd3,1)-1,0,2), OFFSET(I_Vd1:I_Vd3,MATCH(AK107,I_Vd1:I_Vd3,1)-1,0,2))+(AK106-25)*vd_temp_coeff/1000))) -> 0.23688352 | AL108: =IF(AL107<I_Vd1,Vd_1+(AL106-25)*vd_temp_coeff/1000,IF(AL107=0,0,IF(Reset=1,0.45,FORECAST(AL107, OFFSET(Vd_1:Vd_3,MATCH(AL107,I_Vd1:I_Vd3,1)-1,0,2), OFFSET(I_Vd1:I_Vd3,MATCH(AL107,I_Vd1:I_Vd3,1)-1,0,2))+(AL106-25)*vd_temp_coeff/1000))) -> 0.2367350701 | AM108: =IF(AM107<I_Vd1,Vd_1+(AM106-25)*vd_temp_coeff/1000,IF(AM107=0,0,IF(Reset=1,0.45,FORECAST(AM107, OFFSET(Vd_1:Vd_3,MATCH(AM107,I_Vd1:I_Vd3,1)-1,0,2), OFFSET(I_Vd1:I_Vd3,MATCH(AM107,I_Vd1:I_Vd3,1)-1,0,2))+(AM106-25)*vd_temp_coeff/1000))) -> 0.2365920764 | AN108: =IF(AN107<I_Vd1,Vd_1+(AN106-25)*vd_temp_coeff/1000,IF(AN107=0,0,IF(Reset=1,0.45,FORECAST(AN107, OFFSET(Vd_1:Vd_3,MATCH(AN107,I_Vd1:I_Vd3,1)-1,0,2), OFFSET(I_Vd1:I_Vd3,MATCH(AN107,I_Vd1:I_Vd3,1)-1,0,2))+(AN106-25)*vd_temp_coeff/1000))) -> 0.2364542434 | AO108: =IF(AO107<I_Vd1,Vd_1+(AO106-25)*vd_temp_coeff/1000,IF(AO107=0,0,IF(Reset=1,0.45,FORECAST(AO107, OFFSET(Vd_1:Vd_3,MATCH(AO107,I_Vd1:I_Vd3,1)-1,0,2), OFFSET(I_Vd1:I_Vd3,MATCH(AO107,I_Vd1:I_Vd3,1)-1,0,2))+(AO106-25)*vd_temp_coeff/1000))) -> 0.236321297 | AP108: =IF(AP107<I_Vd1,Vd_1+(AP106-25)*vd_temp_coeff/1000,IF(AP107=0,0,IF(Reset=1,0.45,FORECAST(AP107, OFFSET(Vd_1:Vd_3,MATCH(AP107,I_Vd1:I_Vd3,1)-1,0,2), OFFSET(I_Vd1:I_Vd3,MATCH(AP107,I_Vd1:I_Vd3,1)-1,0,2))+(AP106-25)*vd_temp_coeff/1000))) -> 0.236192982 | AQ108: =IF(AQ107<I_Vd1,Vd_1+(AQ106-25)*vd_temp_coeff/1000,IF(AQ107=0,0,IF(Reset=1,0.45,FORECAST(AQ107, OFFSET(Vd_1:Vd_3,MATCH(AQ107,I_Vd1:I_Vd3,1)-1,0,2), OFFSET(I_Vd1:I_Vd3,MATCH(AQ107,I_Vd1:I_Vd3,1)-1,0,2))+(AQ106-25)*vd_temp_coeff/1000))) -> 0.2360690605 | AR108: =IF(AR107<I_Vd1,Vd_1+(AR106-25)*vd_temp_coeff/1000,IF(AR107=0,0,IF(Reset=1,0.45,FORECAST(AR107, OFFSET(Vd_1:Vd_3,MATCH(AR107,I_Vd1:I_Vd3,1)-1,0,2), OFFSET(I_Vd1:I_Vd3,MATCH(AR107,I_Vd1:I_Vd3,1)-1,0,2))+(AR106-25)*vd_temp_coeff/1000))) -> 0.2359493108 | AS108: =IF(AS107<I_Vd1,Vd_1+(AS106-25)*vd_temp_coeff/1000,IF(AS107=0,0,IF(Reset=1,0.45,FORECAST(AS107, OFFSET(Vd_1:Vd_3,MATCH(AS107,I_Vd1:I_Vd3,1)-1,0,2), OFFSET(I_Vd1:I_Vd3,MATCH(AS107,I_Vd1:I_Vd3,1)-1,0,2))+(AS106-25)*vd_temp_coeff/1000))) -> 0.2358335259 | AT108: =IF(AT107<I_Vd1,Vd_1+(AT106-25)*vd_temp_coeff/1000,IF(AT107=0,0,IF(Reset=1,0.45,FORECAST(AT107, OFFSET(Vd_1:Vd_3,MATCH(AT107,I_Vd1:I_Vd3,1)-1,0,2), OFFSET(I_Vd1:I_Vd3,MATCH(AT107,I_Vd1:I_Vd3,1)-1,0,2))+(AT106-25)*vd_temp_coeff/1000))) -> 0.235721512 | AU108: =IF(AU107<I_Vd1,Vd_1+(AU106-25)*vd_temp_coeff/1000,IF(AU107=0,0,IF(Reset=1,0.45,FORECAST(AU107, OFFSET(Vd_1:Vd_3,MATCH(AU107,I_Vd1:I_Vd3,1)-1,0,2), OFFSET(I_Vd1:I_Vd3,MATCH(AU107,I_Vd1:I_Vd3,1)-1,0,2))+(AU106-25)*vd_temp_coeff/1000))) -> 0.2356130881 | AV108: =IF(AV107<I_Vd1,Vd_1+(AV106-25)*vd_temp_coeff/1000,IF(AV107=0,0,IF(Reset=1,0.45,FORECAST(AV107, OFFSET(Vd_1:Vd_3,MATCH(AV107,I_Vd1:I_Vd3,1)-1,0,2), OFFSET(I_Vd1:I_Vd3,MATCH(AV107,I_Vd1:I_Vd3,1)-1,0,2))+(AV106-25)*vd_temp_coeff/1000))) -> 0.2355080843 | AW108: =IF(AW107<I_Vd1,Vd_1+(AW106-25)*vd_temp_coeff/1000,IF(AW107=0,0,IF(Reset=1,0.45,FORECAST(AW107, OFFSET(Vd_1:Vd_3,MATCH(AW107,I_Vd1:I_Vd3,1)-1,0,2), OFFSET(I_Vd1:I_Vd3,MATCH(AW107,I_Vd1:I_Vd3,1)-1,0,2))+(AW106-25)*vd_temp_coeff/1000))) -> 0.2354063414 | AX108: =IF(AX107<I_Vd1,Vd_1+(AX106-25)*vd_temp_coeff/1000,IF(AX107=0,0,IF(Reset=1,0.45,FORECAST(AX107, OFFSET(Vd_1:Vd_3,MATCH(AX107,I_Vd1:I_Vd3,1)-1,0,2), OFFSET(I_Vd1:I_Vd3,MATCH(AX107,I_Vd1:I_Vd3,1)-1,0,2))+(AX106-25)*vd_temp_coeff/1000))) -> 0.2353077097 | AY108: =IF(AY107<I_Vd1,Vd_1+(AY106-25)*vd_temp_coeff/1000,IF(AY107=0,0,IF(Reset=1,0.45,FORECAST(AY107, OFFSET(Vd_1:Vd_3,MATCH(AY107,I_Vd1:I_Vd3,1)-1,0,2), OFFSET(I_Vd1:I_Vd3,MATCH(AY107,I_Vd1:I_Vd3,1)-1,0,2))+(AY106-25)*vd_temp_coeff/1000))) -> 0.235212049 | AZ108: =IF(AZ107<I_Vd1,Vd_1+(AZ106-25)*vd_temp_coeff/1000,IF(AZ107=0,0,IF(Reset=1,0.45,FORECAST(AZ107, OFFSET(Vd_1:Vd_3,MATCH(AZ107,I_Vd1:I_Vd3,1)-1,0,2), OFFSET(I_Vd1:I_Vd3,MATCH(AZ107,I_Vd1:I_Vd3,1)-1,0,2))+(AZ106-25)*vd_temp_coeff/1000))) -> 0.2351192268 | BA108: =IF(BA107<I_Vd1,Vd_1+(BA106-25)*vd_temp_coeff/1000,IF(BA107=0,0,IF(Reset=1,0.45,FORECAST(BA107, OFFSET(Vd_1:Vd_3,MATCH(BA107,I_Vd1:I_Vd3,1)-1,0,2), OFFSET(I_Vd1:I_Vd3,MATCH(BA107,I_Vd1:I_Vd3,1)-1,0,2))+(BA106-25)*vd_temp_coeff/1000))) -> 0.2350291189 | BB108: =IF(BB107<I_Vd1,Vd_1+(BB106-25)*vd_temp_coeff/1000,IF(BB107=0,0,IF(Reset=1,0.45,FORECAST(BB107, OFFSET(Vd_1:Vd_3,MATCH(BB107,I_Vd1:I_Vd3,1)-1,0,2), OFFSET(I_Vd1:I_Vd3,MATCH(BB107,I_Vd1:I_Vd3,1)-1,0,2))+(BB106-25)*vd_temp_coeff/1000))) -> 0.2349416078 | BC108: =IF(BC107<I_Vd1,Vd_1+(BC106-25)*vd_temp_coeff/1000,IF(BC107=0,0,IF(Reset=1,0.45,FORECAST(BC107, OFFSET(Vd_1:Vd_3,MATCH(BC107,I_Vd1:I_Vd3,1)-1,0,2), OFFSET(I_Vd1:I_Vd3,MATCH(BC107,I_Vd1:I_Vd3,1)-1,0,2))+(BC106-25)*vd_temp_coeff/1000))) -> 0.234856583 | BD108: =IF(BD107<I_Vd1,Vd_1+(BD106-25)*vd_temp_coeff/1000,IF(BD107=0,0,IF(Reset=1,0.45,FORECAST(BD107, OFFSET(Vd_1:Vd_3,MATCH(BD107,I_Vd1:I_Vd3,1)-1,0,2), OFFSET(I_Vd1:I_Vd3,MATCH(BD107,I_Vd1:I_Vd3,1)-1,0,2))+(BD106-25)*vd_temp_coeff/1000))) -> 0.2347739399 | BE108: =IF(BE107<I_Vd1,Vd_1+(BE106-25)*vd_temp_coeff/1000,IF(BE107=0,0,IF(Reset=1,0.45,FORECAST(BE107, OFFSET(Vd_1:Vd_3,MATCH(BE107,I_Vd1:I_Vd3,1)-1,0,2), OFFSET(I_Vd1:I_Vd3,MATCH(BE107,I_Vd1:I_Vd3,1)-1,0,2))+(BE106-25)*vd_temp_coeff/1000))) -> 0.2346935801 | BF108: =IF(BF107<I_Vd1,Vd_1+(BF106-25)*vd_temp_coeff/1000,IF(BF107=0,0,IF(Reset=1,0.45,FORECAST(BF107, OFFSET(Vd_1:Vd_3,MATCH(BF107,I_Vd1:I_Vd3,1)-1,0,2), OFFSET(I_Vd1:I_Vd3,MATCH(BF107,I_Vd1:I_Vd3,1)-1,0,2))+(BF106-25)*vd_temp_coeff/1000))) -> 0.23461541 | BG108: =IF(BG107<I_Vd1,Vd_1+(BG106-25)*vd_temp_coeff/1000,IF(BG107=0,0,IF(Reset=1,0.45,FORECAST(BG107, OFFSET(Vd_1:Vd_3,MATCH(BG107,I_Vd1:I_Vd3,1)-1,0,2), OFFSET(I_Vd1:I_Vd3,MATCH(BG107,I_Vd1:I_Vd3,1)-1,0,2))+(BG106-25)*vd_temp_coeff/1000))) -> 0.2345393416 | BH108: =IF(BH107<I_Vd1,Vd_1+(BH106-25)*vd_temp_coeff/1000,IF(BH107=0,0,IF(Reset=1,0.45,FORECAST(BH107, OFFSET(Vd_1:Vd_3,MATCH(BH107,I_Vd1:I_Vd3,1)-1,0,2), OFFSET(I_Vd1:I_Vd3,MATCH(BH107,I_Vd1:I_Vd3,1)-1,0,2))+(BH106-25)*vd_temp_coeff/1000))) -> 0.2344652911 | BI108: =IF(BI107<I_Vd1,Vd_1+(BI106-25)*vd_temp_coeff/1000,IF(BI107=0,0,IF(Reset=1,0.45,FORECAST(BI107, OFFSET(Vd_1:Vd_3,MATCH(BI107,I_Vd1:I_Vd3,1)-1,0,2), OFFSET(I_Vd1:I_Vd3,MATCH(BI107,I_Vd1:I_Vd3,1)-1,0,2))+(BI106-25)*vd_temp_coeff/1000))) -> 0.2316869683 | BJ108: Vf buck diode
I109: Pdiss buck diode | J109: =J108*J84 -> 0.07920778796 | K109: 0.02115799222 | L109: 0.025146747 | M109: 0.02885527751 | N109: 0.03242241277 | O109: 0.03564505537 | P109: 0.03866298294 | Q109: 0.04149507281 | R109: 0.04415795375 | S109: 0.04666633068 | T109: 0.04903325473 | U109: 0.05127034905 | V109: 0.05338799875 | W109: 0.05539551124 | X109: 0.05730125241 | Y109: 0.05911276256 | Z109: 0.06083685575 | AA109: 0.06247970508 | AB109: 0.06404691626 | AC109: 0.06554359131 | AD109: 0.06697438379 | AE109: 0.06834354705 | AF109: 0.06965497626 | AG109: 0.07091224532 | AH109: 0.07211863933 | AI109: 0.07327718312 | AJ109: 0.07439066654 | AK109: 0.07546166682 | AL109: 0.07649256842 | AM109: 0.07748558075 | AN109: 0.07844275388 | AO109: 0.07936599272 | AP109: =AP108*AP84 -> 0.08025706957 | AQ109: 0.08111763547 | AR109: 0.08194923043 | AS109: 0.08275329256 | AT109: 0.08353116639 | AU109: 0.08428411032 | AV109: 0.08501330346 | AW109: 0.0857198517 | AX109: 0.0864047934 | AY109: 0.08706910438 | AZ109: 0.08771370259 | BA109: 0.08833945235 | BB109: 0.0889471682 | BC109: 0.0895376184 | BD109: 0.09011152822 | BE109: 0.09066958287 | BF109: 0.09121243025 | BG109: 0.09174068344 | BH109: 0.092254923 | BI109: 0.1115488314 | BJ109: Pdiss buck diode
I110: I_IN | J110: =(J111+J112)/J65 -> 0.3035950042 | K110: =(K111+K112)/K65 -> 0.6022472828 | L110: 0.5820838959 | M110: 0.5632742506 | N110: 0.5452252116 | O110: 0.528777131 | P110: 0.5133359914 | Q110: 0.4988135397 | R110: 0.4851315325 | S110: 0.4722203573 | T110: 0.4600178759 | U110: 0.4484684476 | V110: 0.4375221032 | W110: 0.4271338402 | X110: 0.4172630213 | Y110: 0.4078728585 | Z110: 0.3989299676 | AA110: 0.390403984 | AB110: 0.3822672289 | AC110: 0.3744944192 | AD110: 0.3670624138 | AE110: 0.3599499915 | AF110: 0.3531376563 | AG110: 0.3466074654 | AH110: 0.3403428778 | AI110: 0.33432862 | AJ110: 0.3285505671 | AK110: 0.3229956367 | AL110: 0.3176516944 | AM110: 0.3125074698 | AN110: 0.3075524809 | AO110: 0.3027769661 | AP110: 0.2981718237 | AQ110: 0.2937285571 | AR110: 0.2894392249 | AS110: 0.2852963968 | AT110: 0.2812931131 | AU110: 0.2774228477 | AV110: 0.2736794751 | AW110: 0.2700572402 | AX110: 0.2665507305 | AY110: 0.2631548513 | AZ110: 0.2598648023 | BA110: 0.2566760571 | BB110: 0.2535843435 | BC110: 0.2505856264 | BD110: 0.247676091 | BE110: 0.2448521287 | BF110: 0.2421103225 | BG110: 0.2394474352 | BH110: 0.2368603972 | BI110: 0.1264133195
I111: Pout | J111: =J77*Iout_PreReg -> 3.0495 | K111: 3.0495 | L111: 3.0495 | M111: 3.0495 | N111: 3.0495 | O111: 3.0495 | P111: 3.0495 | Q111: 3.0495 | R111: 3.0495 | S111: 3.0495 | T111: 3.0495 | U111: 3.0495 | V111: 3.0495 | W111: 3.0495 | X111: 3.0495 | Y111: 3.0495 | Z111: 3.0495 | AA111: 3.0495 | AB111: 3.0495 | AC111: 3.0495 | AD111: 3.0495 | AE111: 3.0495 | AF111: 3.0495 | AG111: 3.0495 | AH111: 3.0495 | AI111: 3.0495 | AJ111: 3.0495 | AK111: 3.0495 | AL111: 3.0495 | AM111: 3.0495 | AN111: 3.0495 | AO111: 3.0495 | AP111: =AP77*Iout_PreReg -> 3.0495 | AQ111: 3.0495 | AR111: 3.0495 | AS111: 3.0495 | AT111: 3.0495 | AU111: 3.0495 | AV111: 3.0495 | AW111: 3.0495 | AX111: 3.0495 | AY111: 3.0495 | AZ111: 3.0495 | BA111: 3.0495 | BB111: 3.0495 | BC111: 3.0495 | BD111: 3.0495 | BE111: 3.0495 | BF111: 3.0495 | BG111: 3.0495 | BH111: 3.0495 | BI111: 3.0495
I112: P loss | J112: =J66+J109+J82^2*dcr*10^-3 -> 1.049032556 | K112: 0.8651073381 | L112: 0.87065685 | M112: 0.8761766646 | N112: 0.8783469322 | O112: 0.8839543727 | P112: 0.889568016 | Q112: 0.8951989112 | R112: 0.9008567646 | S112: 0.9065501366 | T112: 0.9122866044 | U112: 0.9180728989 | V112: 0.9239150189 | W112: 0.9298183272 | X112: 0.9357876324 | Y112: 0.9418272586 | Z112: 0.9479411042 | AA112: 0.9541326928 | AB112: 0.9604052173 | AC112: 0.9667615775 | AD112: 0.9732044125 | AE112: 0.9797361297 | AF112: 0.9863589293 | AG112: 0.9930748261 | AH112: 0.9998856685 | AI112: 1.006793155 | AJ112: 1.013798851 | AK112: 1.020904197 | AL112: 1.028110526 | AM112: 1.03541907 | AN112: 1.04283097 | AO112: 1.050347286 | AP112: =AP66+AP109+AP82^2*dcr*10^-3 -> 1.057969 | AQ112: 1.065697029 | AR112: 1.073532223 | AS112: 1.081475378 | AT112: 1.089527236 | AU112: 1.097688488 | AV112: 1.105959785 | AW112: 1.114341734 | AX112: 1.122834905 | AY112: 1.131439831 | AZ112: 1.140157017 | BA112: 1.148986933 | BB112: 1.157930026 | BC112: 1.166986713 | BD112: 1.17615739 | BE112: 1.18544243 | BF112: 1.194842184 | BG112: 1.204356986 | BH112: =BH66+BH109+BH82^2*dcr*10^-3 -> 1.21398715 | BI112: 1.5013795
I113: Efficiency | J113: =J111/(J111+J112) -> 0.7440467919 | K113: 0.7790053348 | L113: 0.7779025474 | M113: 0.7768087544 | N113: 0.7763795414 | O113: 0.7752727529 | P113: 0.7741678965 | Q113: 0.7730628037 | R113: 0.7719555933 | S113: 0.770844629 | T113: 0.7697284848 | U113: 0.7686059154 | V113: 0.7674758326 | W113: 0.7663372843 | X113: 0.7651894371 | Y113: 0.764031562 | Z113: 0.7628630218 | AA113: 0.7616832597 | AB113: 0.7604917909 | AC113: 0.759288194 | AD113: 0.7580721046 | AE113: 0.7568432084 | AF113: 0.7556012372 | AG113: 0.754345963 | AH113: 0.7530771948 | AI113: 0.751794775 | AJ113: 0.7504985757 | AK113: 0.7491884964 | AL113: 0.7478644615 | AM113: 0.7465264178 | AN113: 0.7451743327 | AO113: 0.7438081927 | AP113: =AP111/(AP111+AP112) -> 0.7424280012 | AQ113: 0.7410337776 | AR113: 0.7396255558 | AS113: 0.7382033832 | AT113: 0.7367673191 | AU113: 0.7353174346 | AV113: 0.733853811 | AW113: 0.7323765394 | AX113: 0.7308857198 | AY113: 0.7293814604 | AZ113: 0.7278638771 | BA113: 0.7263330929 | BB113: 0.7247892374 | BC113: 0.7232324462 | BD113: 0.7216628606 | BE113: 0.720080627 | BF113: 0.7184858967 | BG113: 0.7168788256 | BH113: 0.7152595734 | BI113: 0.6700902539
A176: For Plots
A177: Vin | B177: =Vin_min_bb -> 3.5 | C177: =Vin_max_buck -> 18
A178: Ta | B178: =Ta -> 125 | C178: =Ta -> 125
A179: Tjmax | B179: 165 | C179: 165
A180: Vin | B180: 2 | C180: 18
A181: 5V out | B181: 4.75 | C181: 4.75
A182: Vin | B182: 0 | C182: 14
A183: Max buck duty | B183: =(1/(fsw*10^3)-t_off_min*10^-9)*fsw*10^3 -> 0.824 | C183: =(1/(fsw*10^3)-t_off_min*10^-9)*fsw*10^3 -> 0.824

Sheet Control Loop (hidden)
B1: Series RC with Parallel C | E1: No feedforward C
B2: Rz | C2: =Rz -> 18.2 | D2: kΩ | E2: Cz2 | F2: 39 | G2: pF
B3: Cz | C3: =Cz -> 1.5 | D3: nF | E3: Rz2 | F3: 0 | G3: kΩ
B4: Cp | C4: =Cp -> 68 | D4: pF
E5: AVOL | F5: 60 | G5: dB
B6: Ro_EA | C6: 350 | D6: kΩ | F6: =10^(F5/20) -> 1000 | G6: V/V
B7: Cstray | C7: 0 | D7: pF | E7: gm_EA1 | F7: 720 | G7: uA/V
E8: RFB1 | F8: =(Vreg-VFB)/VFB*RFB_2 -> 56.875 | G8: kΩ
B9: Cp +Cstray | C9: =IF(Type=RCC,Cp+Cstray,IF(Type=RCRC,Cp+Cstray,Cstray)) -> 68 | D9: pF | E9: RFB2 | F9: 10 | G9: kΩ
E10: FB Gain | F10: =RFB_2/(RFB_1+RFB_2) -> 0.1495327103
B11: Cout derating | C11: 0 | E11: VFB | F11: 0.8 | G11: V
B12: Cout | C12: =(1-C11)*Cout1 -> 10 | D12: uF
E13: Ri | F13: =1/gm_POWER1 -> 0.2188183807
B14: Series RC | E14: gmPOWER1 | F14: 4.57 | G14: A/V
B15: Series RC with Parallel C | E15: K | F15: =Vreg/(Iout_PreReg*Ri*(1+Vreg*(m_c*(1-Vreg/Vin_nom)-0.5)/(Iout_PreReg*fsw*10^3*L_buck*10^-6))) -> 27.56311065
E16: mc | F16: =(1+Se/Sn) -> 2.987730061
B17: No feedforward C | E17: Se typ | F17: 1.62 | G17: A/us
B18: Feedforward RC | E18: Se min | F18: 1.1 | G18: A/us
A19: Error Amp | E19: Se max | F19: 2.15 | G19: A/us
A20: fp2 | B20: =1/(2*PI()*Ro_EA*10^3*Cz*10^-9)*10^-3 -> 0.3031522726 | E20: Sn | F20: =(Vin_nom-Vreg)/L_buck -> 0.815 | G20: A/us
A21: fp3 | B21: =1/(2*PI()*Rz*10^3*Cp_Cstray*10^-12)*10^-3 -> 128.5996631 | E21: wn | F21: =PI()*fsw*10^3 -> 6911503.838
A22: fz2 | B22: =1/(2*PI()*Rz*10^3*Cz*10^-9)*10^-3 -> 5.829851395 | E22: Qp | F22: =1/(PI()*(m_c*(1-Vreg/Vin_nom)-0.5)) -> 0.2441581513
B24: Calculated
A25: fco | B25: =VLOOKUP(MIN(A36:A135),A36:I135,2,FALSE) -> 31.99267138 | E25: wp | F25: =(1/(Vreg/Iout_PreReg*Number_Cout*Co*10^-6)+(m_c*(1-Vreg/Vin_nom)-0.5)/(fsw*10^3*L_buck*10^-6*Number_Cout*Co*10^-6))/(1000) -> 4.145032883 | G25: Rad
A26: PM | B26: =VLOOKUP(MIN(A36:A135),A36:I135,9,FALSE) -> 62.32876488 | E26: wz | F26: =1/(ESR*10^-3*Co*10^-6*1000) -> 20000 | G26: Rad
D29: =20*LOG(VFB/Vreg*gmc) -> 43.4947241 | E29: dB | F29: =20*LOG(gm_EA1*C2*FB_Gain1*10^-3) -> 5.842801788
D30: =20*LOG(VFB/Vreg*gm_EA1*Ro_EA*10^-3) -> 31.52273492
D32: Error Amplifier | F32: Control to Output | H32: Total System | J32: Error Amp
A33: Calculated | C33: Frequency | D33: Gain | E33: Phase | F33: Gain | G33: Phase | H33: Total Gain | I33: Total Phase | J33: ZCz | K33: ZCp | L33: ZT(s) | M33: RFB1 with or without feedforward C | N33: Tv(s) | O33: 1 + s/ωP | P33: 1 + s/ωZ | Q33: fp(s) | R33: fh(s) | S33: fp(s)fh(s) | T33: Gain | U33: Phase
A34: =ABS(H34) -> 0.8419218233 | B34: =C34/1000 -> 35 | C34: =fc*1000 -> 35000 | D34: =20*LOG(IMABS(N34)) -> 4.911414816 | E34: =IF(180/PI()*IMARGUMENT(N34)>0,180/PI()*IMARGUMENT(N34),360+180/PI()*IMARGUMENT(N34)) -> 157.0405315 | F34: =T34 -> -5.753336639 | G34: =U34 -> -95.72247002 | H34: =D34+F34 -> -0.8419218233 | I34: =E34+G34 -> 61.31806149 | J34: =IMDIV(1,COMPLEX(0,2*PI()*$C34*Cz*10^-9)) -> -3031.52272555991i | K34: =IMDIV(1,COMPLEX(0,2*PI()*$C34*Cp_Cstray*10^-12)) -> -66871.8248285275i | L34: =IMDIV(IMPRODUCT(IMDIV(IMPRODUCT(K34,IMSUM(Rz*10^3,J34)),IMSUM(K34,IMSUM(Rz*10^3,J34))),Ro_EA*10^3),IMSUM(IMDIV(IMPRODUCT(K34,IMSUM(Rz*10^3,J34)),IMSUM(K34,IMSUM(Rz*10^3,J34))),Ro_EA*10^3)) -> 15054.2249937871-6377.57486255491i | M34: =IF($E$1="Feedforward RC",IMDIV(IMPRODUCT(IMSUM(Rz_2*10^3,IMDIV(1,COMPLEX(0,2*PI()*$C34*Cz_2*10^-12))),RFB_1*10^3),IMSUM(IMSUM(Rz_2*10^3,IMDIV(1,COMPLEX(0,2*PI()*$C34*Cz_2*10^-12))),RFB_1*10^3)),RFB_1*10^3) -> 56875 | N34: =IMPRODUCT(-gm_EA1*10^-6,L34,IMDIV(RFB_2*10^3,IMSUM(M34,RFB_2*10^3))) -> -1.6207913264339+0.68663235903395i | O34: =COMPLEX(1,2*PI()*C34*1/(1/(Vreg/Iout_PreReg*Number_Cout*Co*10^-6)+(m_c*(1-Vreg/Vin_nom)-0.5)/(fsw*10^3*L_buck*10^-6*Number_Cout*Co*10^-6))) -> 1+53.0542198192454i | P34: =COMPLEX(1,2*PI()*C34*(ESR*10^-3*Co*10^-6)) -> 1+0.0109955742875643i | Q34: =IMPRODUCT(K,IMDIV(P34,O34)) -> 0.0154993758917437-0.519235064904244i | R34: =IMDIV(1,IMSUM(COMPLEX(1,2*PI()*C34/(wn*Qp)),IMPRODUCT(COMPLEX(0,2*PI()*C34/wn),COMPLEX(0,2*PI()*C34/wn)))) -> 0.98426400671493-0.128397224533482i | S34: =IMPRODUCT(Q34,R34) -> -0.0514128633973789-0.513054462256039i | T34: =20*LOG(IMABS(S34)) -> -5.753336639 | U34: =180/PI()*IMARGUMENT(S34) -> -95.72247002
A36: =ABS(H36) -> 59.69916206 | B36: =C36/1000 -> 0.1 | C36: 100 | D36: =20*LOG(IMABS(N36)) -> 30.99125905 | E36: =IF(180/PI()*IMARGUMENT(N36)>0,180/PI()*IMARGUMENT(N36),360+180/PI()*IMARGUMENT(N36)) -> 161.0790446 | F36: =T36 -> 28.707903 | G36: =U36 -> -8.639008845 | H36: =D36+F36 -> 59.69916206 | I36: =E36+G36 -> 152.4400358 | J36: =IMDIV(1,COMPLEX(0,2*PI()*$C36*Cz*10^-9)) -> -1061032.95394597i | K36: =IMDIV(1,COMPLEX(0,2*PI()*$C36*Cp_Cstray*10^-12)) -> -23405138.6899846i | L36: =IMDIV(IMPRODUCT(IMDIV(IMPRODUCT(K36,IMSUM(Rz*10^3,J36)),IMSUM(K36,IMSUM(Rz*10^3,J36))),Ro_EA*10^3),IMSUM(IMDIV(IMPRODUCT(K36,IMSUM(Rz*10^3,J36)),IMSUM(K36,IMSUM(Rz*10^3,J36))),Ro_EA*10^3)) -> 311436.964415332-106755.979018217i | M36: =IF($E$1="Feedforward RC",IMDIV(IMPRODUCT(IMSUM(Rz_2*10^3,IMDIV(1,COMPLEX(0,2*PI()*$C36*Cz_2*10^-12))),RFB_1*10^3),IMSUM(IMSUM(Rz_2*10^3,IMDIV(1,COMPLEX(0,2*PI()*$C36*Cz_2*10^-12))),RFB_1*10^3)),RFB_1*10^3) -> 56875 | N36: =IMPRODUCT(-gm_EA1*10^-6,L36,IMDIV(RFB_2*10^3,IMSUM(M36,RFB_2*10^3))) -> -33.5304096267722+11.4937278344847i | O36: =COMPLEX(1,2*PI()*C36*1/(1/(Vreg/Iout_PreReg*Number_Cout*Co*10^-6)+(m_c*(1-Vreg/Vin_nom)-0.5)/(fsw*10^3*L_buck*10^-6*Number_Cout*Co*10^-6))) -> 1+0.151583485197844i | P36: =COMPLEX(1,2*PI()*C36*(ESR*10^-3*Co*10^-6)) -> 1+0.0000314159265358979i | Q36: =IMPRODUCT(K,IMDIV(P36,O36)) -> 26.9441316928531-4.08341946697318i | R36: =IMDIV(1,IMSUM(COMPLEX(1,2*PI()*C36/(wn*Qp)),IMPRODUCT(COMPLEX(0,2*PI()*C36/wn),COMPLEX(0,2*PI()*C36/wn)))) -> 0.999999869629706-0.000372336861627616i | S36: =IMPRODUCT(Q36,R36) -> 26.9426077725497-4.09345122805038i | T36: =20*LOG(IMABS(S36)) -> 28.707903 | U36: =180/PI()*IMARGUMENT(S36) -> -8.639008845
A37: =ABS(H37) -> 59.5781788 | B37: 0.1097498765 | C37: 109.7498765 | D37: =20*LOG(IMABS(N37)) -> 30.89017931 | E37: =IF(180/PI()*IMARGUMENT(N37)>0,180/PI()*IMARGUMENT(N37),360+180/PI()*IMARGUMENT(N37)) -> 159.4061593 | F37: =T37 -> 28.6879995 | G37: -9.466813201 | H37: =D37+F37 -> 59.5781788 | I37: 149.9393461 | J37: -966773.710646764i | K37: -21325890.6760316i | L37: =IMDIV(IMPRODUCT(IMDIV(IMPRODUCT(K37,IMSUM(Rz*10^3,J37)),IMSUM(K37,IMSUM(Rz*10^3,J37))),Ro_EA*10^3),IMSUM(IMDIV(IMPRODUCT(K37,IMSUM(Rz*10^3,J37)),IMSUM(K37,IMSUM(Rz*10^3,J37))),Ro_EA*10^3)) -> 304622.011264867-114462.514816647i | M37: 56875 | N37: =IMPRODUCT(-gm_EA1*10^-6,L37,IMDIV(RFB_2*10^3,IMSUM(M37,RFB_2*10^3))) -> -32.7966875679558+12.3234408475493i | O37: 1+0.166362687873769i | P37: 1+0.0000344789405899686i | Q37: =IMPRODUCT(K,IMDIV(P37,O37)) -> 26.820957345579-4.46105620850374i | R37: 0.999999842968524-0.000408639235779708i | S37: =IMPRODUCT(Q37,R37) -> 26.8191301712447-4.47201560349008i | T37: =20*LOG(IMABS(S37)) -> 28.6879995 | U37: =180/PI()*IMARGUMENT(S37) -> -9.466813201
A38: 59.43563317 | B38: 0.120450354 | C38: 120.450354 | D38: 30.77148704 | E38: 157.618634 | F38: 28.66414613 | G38: -10.37077869 | H38: 59.43563317 | I38: 147.2478554 | J38: -880888.198732913i | K38: -19431357.3249906i | L38: 296819.46645316-122227.238199812i | M38: 56875 | N38: -31.9566378835552+13.159418542634i | O38: 1+0.182582844565568i | P38: 1+0.0000378405947329988i | Q38: 26.674080719903-4.8691865295119i | R38: 0.999999810855037-0.000448481043310953i | S38: 26.6718919367802-4.88114842808042i | T38: 28.66414613 | U38: -10.37077869
A39: 59.26830847 | B39: 0.1321941148 | C39: 132.1941148 | D39: 30.63272094 | E39: 155.7174559 | F39: 28.63558752 | G39: -11.35693279 | H39: 59.26830847 | I39: 144.3605231 | J39: -802632.518987084i | K39: -17705129.0953033i | L39: 287963.636210457-129914.964291527i | M39: 56875 | N39: -31.0031877490137+13.9871064358728i | O39: 1+0.200384446510921i | P39: 1+0.0000415300060049893i | Q39: 26.4992895059207-5.30890076442589i | R39: 0.99999977217423-0.000492207373548752i | S39: 26.496670388598-5.3219427006101i | T39: 28.63558752 | U39: -11.35693279
A40: 59.07272427 | B40: 0.1450828778 | C40: 145.0828778 | D40: 30.47128821 | E40: 153.7060589 | F40: 28.60143606 | G40: -12.43147788 | H40: 59.07272427 | I40: 141.274581 | J40: -731328.85814819i | K40: -16132254.2238571i | L40: 278011.092428636-137365.061652482i | M40: 56875 | N40: -29.9316615399803+14.7892103760429i | O40: 1+0.219921682669745i | P40: 1+0.000045579130321395i | Q40: 26.2917710594069-5.78087422914023i | R40: 0.999999725583065-0.000540196961263403i | S40: 26.2886410338076-5.79507537760297i | T40: 28.60143606 | U40: -12.43147788
A41: 58.84518326 | B41: 0.1592282793 | C41: 159.2282793 | D41: 30.28452935 | E41: 151.5907149 | F41: 28.5606539 | G41: -13.60069588 | H41: 58.84518326 | I41: 137.990019 | J41: -666359.6180171i | K41: -14699109.2209654i | L41: 266949.374147995-144394.901209375i | M41: 56875 | N41: -28.7407176652795+15.5460678685234i | O41: 1+0.241363775235201i | P41: 1+0.000050023039259978i | Q41: 26.0460901177343-6.28520385036659i | R41: 0.999999669463848-0.000592865466947661i | S41: 26.0423552282443-6.30064360025931i | T41: 28.5606539 | U41: -13.60069588
A42: 58.58183872 | B42: 0.17475284 | C42: 174.75284 | D42: 30.06980399 | E42: 149.3808445 | F42: 28.51203473 | G42: -14.87081804 | H42: 58.58183872 | I42: 134.5100265 | J42: -607162.066116524i | K42: -13393280.8702175i | L42: 254805.386786834-150806.491349349i | M42: 56875 | N42: -27.4332528577975+16.2363624331262i | O42: 1+0.264896445355376i | P42: 1+0.0000549002238340365i | Q42: 25.7561959587038-6.82121153439305i | R42: 0.999999601868059-0.000650669076884163i | S42: 25.7517473529272-6.83796757889936i | T42: 28.51203473 | U42: -14.87081804
A43: 58.27878176 | B43: 0.1917910262 | C43: 191.7910262 | D43: 29.82459544 | E43: 147.0891966 | F43: 28.45418632 | G43: -16.24785364 | H43: 58.27878176 | I43: 130.8413429 | J43: -553223.461571507i | K43: -12203458.7111362i | L43: 241652.219619229-156396.474152647i | M43: 56875 | N43: -26.0171361683507+16.8381998340046i | O43: 1+0.290723521761025i | P43: 1+0.0000602529278831477i | Q43: 25.415473432477-7.38721518539542i | R43: 0.999999520448705-0.000714108454168371i | S43: 25.4101859716372-7.40536104729164i | T43: 28.45418632 | U43: -16.24785364
A44: 57.93214405 | B44: 0.2104904145 | C44: 210.4904145 | D44: 29.54662856 | E44: 144.7318439 | F44: 28.38551548 | G44: -17.73737158 | H44: 57.93214405 | I44: 126.9944723 | J44: -504076.613993246i | K44: -11119337.0733804i | L44: 227612.919167453-160969.083285188i | M44: 56875 | N44: -24.5056152225146+17.3305031723866i | O44: 1+0.319068706232518i | P44: 1+0.0000661275139690967i | Q44: 25.0168552762172-7.9802729670044i | R44: 0.99999942237882-0.000783733074889653i | S44: 25.0105864220808-7.99987489433941i | T44: 28.38551548 | U44: -17.73737158
A45: 57.53820922 | B45: 0.23101297 | C45: 231.01297 | D45: 29.2339918 | E45: 142.3279564 | F45: 28.30421742 | G45: -19.34423095 | H45: 57.53820922 | I45: 122.9837254 | J45: -459295.83689945i | K45: -10131525.8139584i | L45: 212859.86444801-164350.958604651i | M45: 56875 | N45: -22.9172489573932+17.6946078796783i | O45: 1+0.350177511197655i | P45: 1+0.0000725748649462085i | Q45: 24.5530151092925-8.59591333433774i | R45: 0.99999930425332-0.000860145987003212i | S45: 24.5456042862546-8.61702653117466i | T45: 28.30421742 | U45: -19.34423095
A46: 57.09352374 | B46: 0.2535364494 | C46: 253.5364494 | D46: 28.88525163 | E46: 139.8993353 | F46: 28.20827211 | G46: -21.07225971 | H46: 57.09352374 | I46: 118.8270755 | J46: -418493.260621673i | K46: -9231468.98430161i | L46: 197608.876350203-166406.043607143i | M46: 56875 | N46: -21.2752734163957+17.9158656294793i | O46: 1+0.384319386242857i | P46: 1+0.000079650824684289i | Q46: 24.0166602708-9.22787271038314i | R46: 0.999999161970772-0.000944009033078311i | S46: 24.007928948942-9.2505369213961i | T46: 28.20827211 | U46: -21.07225971
A47: 56.59499751 | B47: 0.2782559402 | C47: 278.2559402 | D47: 28.49954648 | E47: 137.4697242 | F47: 28.09545103 | G47: -22.92388591 | H47: 56.59499751 | I47: 114.5458382 | J47: -381315.4727638i | K47: -8411370.72273091i | L47: 182108.035438907-167048.383304755i | M47: 56875 | N47: -19.6063978341702+17.9850222025306i | O47: 1+0.421790051956586i | P47: 1+0.0000874166817615113i | Q47: 23.4009395467062-9.86787403156634i | R47: 0.99999899059099-0.00103604858211558i | S47: 23.3906923286881-9.89210858108292i | T47: 28.09545103 | U47: -22.92388591
A48: 56.03998594 | B48: 0.3053855509 | C48: 305.3855509 | D48: 28.07664842 | E48: 135.0639481 | F48: 27.96333752 | G48: -24.8997337 | H48: 56.03998594 | I48: 110.1642144 | J48: -347440.457112945i | K48: -7664127.7304326i | L48: 166622.21340575-166250.692206735i | M48: 56875 | N48: -17.9391392377032+17.8991399459962i | O48: 1+0.462914061319605i | P48: 1+0.0000959397003167579i | Q48: 22.6999709757333-10.5054913596386i | R48: 0.999998784163508-0.0011370618200211i | S48: 22.6879979831546-10.5312898569909i | T48: 27.96333752 | U48: -24.8997337
A49: 55.42634871 | B49: 0.3351602651 | C49: 335.1602651 | D49: 27.61698439 | E49: 132.706961 | F49: 27.80936432 | G49: -26.99820576 | H49: 55.42634871 | I49: 105.7087553 | J49: -316574.804489057i | K49: -6983267.74608214i | L49: 151415.260987205-164047.152304006i | M49: 56875 | N49: -16.3019047343234+17.6618990144126i | O49: 1+0.508047610827642i | P49: 1+0.000105293702659415i | Q49: 21.9094777738135-11.1281556154904i | R49: 0.999998535520981-0.00124792365314493i | S49: 21.8955585992345-11.155480674082i | T49: 27.80936432 | U49: -26.99820576
A50: 54.7524853 | B50: 0.3678379772 | C50: 367.8379772 | D50: 27.12161444 | E50: 130.4228998 | F50: 27.63087086 | G50: -29.21508544 | H50: 54.7524853 | I50: 101.2078144 | J50: -288451.171374971i | K50: -6362893.48621259i | L50: 136732.340492307-160529.919945919i | M50: 56875 | N50: -14.7210893688914+17.2832212876354i | O50: 1+0.557581625695034i | P50: 1+0.000115559708682901i | Q50: 21.0274956650756-11.7213600321913i | R50: 0.999998236030329-0.00136959428457708i | S50: 21.0114050655034-11.7501384939496i | T50: 27.63087086 | U50: -29.21508544
A51: 54.01735196 | B51: 0.4037017259 | C51: 403.7017259 | D51: 26.59217029 | E51: 128.2342411 | F51: 27.42518167 | G51: -31.54320205 | H51: 54.01735196 | I51: 96.69103908 | J51: -262825.96431476i | K51: -5797631.56576677i | L51: 122784.856814074-155839.990926454i | M51: 56875 | N51: -13.2194537429732+16.7782868735771i | O51: 1+0.611945145861911i | P51: 1+0.000126826637620221i | Q51: 20.0550846780273-12.2691159819226i | R51: 0.999997875293002-0.0015031275286879i | S51: 20.0366000208634-12.2992352635157i | T51: 27.42518167 | U51: -31.54320205
A52: 53.22046762 | B52: 0.4430621458 | C52: 443.0621458 | D52: 26.0307632 | E52: 126.1611393 | F52: 27.18970441 | G52: -33.97221111 | H52: 53.22046762 | I52: 92.18892818 | J52: -239477.230023748i | K52: -5282585.95640622i | L52: 109739.838961594-150154.055298511i | M52: 56875 | N52: -11.8149807928744+16.1661188508304i | O52: 1+0.671609042132916i | P52: 1+0.000139192078219828i | Q52: 18.9969483770947-12.7546857363359i | R52: 0.999997440783936-0.0016496799357507i | S52: 18.9758586106532-12.7859919789175i | T52: 27.18970441 | U52: -33.97221111
A53: 52.36191651 | B53: 0.486260158 | C53: 486.260158 | D53: 25.43987303 | E53: 124.2209914 | F53: 26.92204348 | G53: -36.48854235 | H53: 52.36191651 | I53: 87.73244908 | J53: -218202.732935341i | K53: -4813295.57945606i | L53: 97714.6603470166-143669.505011406i | M53: 56875 | N53: -10.5203073569872+15.4679691376766i | O53: 1+0.737090094634849i | P53: 1+0.000152763134012674i | Q53: 17.8618427859348-13.1615767622719i | R53: 0.999996917416694-0.00181052080544361i | S53: 17.8379584167559-13.1938754286026i | T53: 26.92204348 | U53: -36.48854235
A54: 51.44235264 | B54: 0.5336699231 | C54: 533.6699231 | D54: 24.82223176 | E54: 122.4282419 | F54: 26.62012088 | G54: -39.07556004 | H54: 51.44235264 | I54: 83.35268187 | J54: -198818.203533298i | K54: -4385695.66617568i | L54: 86776.9637751801-136589.750874531i | M54: 56875 | N54: -9.34271609990725+14.7057376642486i | O54: 1+0.808955468918907i | P54: 1+0.00016765735099176i | Q54: 16.6626570454372-13.4747263855103i | R54: 0.999996287019678-0.00198704317565042i | S54: 16.6358203142114-13.5077857730867i | T54: 26.62012088 | U54: -39.07556004
A55: 50.46300667 | B55: 0.5857020818 | C55: 585.7020818 | D55: 24.18071309 | E55: 120.7944057 | F55: 26.28229358 | G55: -41.71396106 | H55: 50.46300667 | I55: 79.08044464 | J55: -181155.74229733i | K55: -3996082.55067638i | L55: 76948.8494098869-129111.556264647i | M55: 56875 | N55: -8.28458640375606+13.9006086744742i | O55: 1+0.887827628477358i | P55: 1+0.000184003735739293i | Q55: 15.4160771834308-13.6817475308616i | R55: 0.999995527705225-0.00218077588132743i | S55: 15.3861714131596-13.7153053513599i | T55: 26.28229358 | U55: -41.71396106
A56: 49.42569141 | B56: 0.6428073117 | C56: 642.8073117 | D56: 23.51823692 | E56: 119.3282686 | F56: 25.90745449 | G56: -44.38240612 | H56: 49.42569141 | I56: 74.94586245 | J56: -165062.365437782i | K56: -3641081.59053932i | L56: 68213.9415107949-121415.41129715i | M56: 56875 | N56: -7.34415519817157+13.0720143751698i | O56: 1+0.974389726224527i | P56: 1+0.000201943872819985i | Q56: 14.1418049376026-13.7740632401602i | R56: 0.999994613109705-0.00239339678733848i | S56: 14.1087619585432-13.8078359912974i | T56: 25.90745449 | U56: -44.38240612
A57: 48.33279856 | B57: 0.7054802311 | C57: 705.4802311 | D57: 22.83769406 | E57: 118.0362111 | F57: 25.4951045 | G57: -47.05834496 | H57: 48.33279856 | I57: 70.97786611 | J57: -150398.679823232i | K57: -3317617.93727717i | L57: 60525.8799296603-113659.273626368i | M57: 56875 | N57: -6.51643118495035+12.2369610483716i | O57: 1+1.06939152164054i | P57: 1+0.00022163315111882i | Q57: 12.8613856414394-13.7477478624373i | R57: 0.999993511478235-0.00262674730915358i | S57: 12.8251903303542-13.7814422700017i | T57: 25.4951045 | U57: -47.05834496
A58: 47.18727923 | B58: 0.7742636827 | C58: 774.2636827 | D58: 22.1418932 | E58: 116.9226022 | F58: 25.04538603 | G58: -49.71896354 | H58: 47.18727923 | I58: 67.20363865 | J58: -137037.675623867i | K58: -3022889.90346766i | L58: 53816.9898140392-105975.448876404i | M58: 56875 | N58: -5.79412824913768+11.4096931874409i | O58: 1+1.17365587482923i | P58: 1+0.000243242109745241i | Q58: 11.5967820087972-13.6039268245538i | R58: 0.999992184562234-0.00288284834622851i | S58: 11.5574733169207-13.637252267746i | T58: 25.04538603 | U58: -49.71896354
A59: 45.99260289 | B59: 0.8497534359 | C59: 849.7534359 | D59: 21.43352952 | E59: 115.9902149 | F59: 24.55907337 | G59: -52.34215927 | H59: 45.99260289 | I59: 63.64805561 | J59: -124863.626213103i | K59: -2754344.69587727i | L59: 48006.233394294-98470.0432539939i | M59: 56875 | N59: -5.1685215766567+10.6016345634207i | O59: 1+1.28808587373875i | P59: 1+0.000266957915161328i | Q59: 10.3688888680367-13.3486610867314i | R59: 0.999990586291574-0.00316391776481234i | S59: 10.3265571923914-13.381341738019i | T59: 24.55907337 | U59: -52.34215927
A60: 44.75269379 | B60: 0.9326033469 | C60: 932.6033469 | D60: 20.7151726 | E60: 115.2406253 | F60: 24.03752119 | G60: -54.907445 | H60: 44.75269379 | I60: 60.33318029 | J60: -113771.085798905i | K60: -2509656.30438761i | L60: 43005.9213146572-91224.2851856313i | M60: 56875 | N60: -4.63017022004534+9.821530517182i | O60: 1+1.41367265627732i | P60: 1+0.000292985982328158i | Q60: 9.19619786854193-12.9923378634245i | R60: 0.999988661175231-0.003472389579944i | S60: 9.15097913584969-13.024123327236i | T60: 24.03752119 | U60: -54.907445
A61: 43.47184875 | B61: 1.023531022 | C61: 1023.531022 | D61: 19.98927049 | E61: 114.6745685 | F61: 23.48257826 | G61: -57.39669598 | H61: 43.47184875 | I61: 57.27787255 | J61: -103663.976102782i | K61: -2286705.35520842i | L61: 38726.9793498991-84297.0303293189i | M61: 56875 | N61: -4.16948413187699+9.07571765788556i | O61: 1+1.55150399507566i | P61: 1+0.000321551753911925i | Q61: 8.09378601695881-12.5486783740272i | R61: 0.999986342374958-0.00381093500058061i | S61: 8.04585327743761-12.5793518813024i | T61: 23.48257826 | U61: -57.39669598
A62: 42.1546439 | B62: 1.123324033 | C62: 1123.324033 | D62: 19.25816628 | E62: 114.2922327 | F62: 22.89647762 | G62: -59.79468118 | H62: 42.1546439 | I62: 54.49755152 | J62: -94454.7541757011i | K62: -2083560.75387576i | L62: 35082.7952226715-77727.8717475924i | M62: 56875 | N62: -3.77713832677735+8.36845871525482i | O62: 1+1.70277371925308i | P62: 1+0.000352902652960464i | Q62: 7.07272978598105-12.0335313080758i | R62: 0.999983549385135-0.00418248551722834i | S62: 7.02228336481016-12.0629149389839i | T62: 22.89647762 | U62: -59.79468118
A63: 40.80584003 | B63: 1.232846739 | C63: 1232.846739 | D63: 18.52412388 | E63: 114.0934808 | F63: 22.28171615 | G63: -62.08935558 | H63: 40.80584003 | I63: 52.00412523 | J63: -86063.6541429428i | K63: -1898462.9590355i | L63: 31991.8081117991-71540.4199576183i | M63: 56875 | N63: -3.44435167708342+7.70229568141835i | O63: 1+1.86879205479427i | P63: 1+0.000387310225963334i | Q63: 6.13996097857346-11.4636348188919i | R63: 0.999980185238324-0.00459025822820133i | S63: 6.08721827265746-11.4915916761028i | T63: 22.28171615 | U63: -62.08935558
A64: 39.43029557 | B64: 1.353047775 | C64: 1353.047775 | D64: 17.78935991 | E64: 114.0779945 | F64: 21.64093565 | G64: -64.27192296 | H64: 39.43029557 | I64: 49.80607158 | J64: -78417.9963102543i | K64: -1729808.74213796i | L64: 29379.0668655524-65745.4588104788i | M64: 56875 | N64: -3.16305467561835+7.07838958408146i | O64: 1+2.05099697309994i | P64: 1+0.000425072494857595i | Q64: 5.29850598739765-10.8555034218956i | R64: 0.999976133139605-0.00503778361878422i | S64: 5.24369185138247-10.8819370617783i | T64: 21.64093565 | U64: -64.27192296
A65: 38.03289438 | B65: 1.484968262 | C65: 1484.968262 | D65: 17.05607898 | E65: 114.2453376 | F65: 20.9768154 | G65: -66.33670453 | H65: 38.03289438 | I65: 47.90863308 | J65: -71451.5576471059i | K65: -1576137.3010391i | L65: 27176.9943760346-60343.8026234112i | M65: 56875 | N65: -2.92597173095251+6.49682809552989i | O65: 1+2.25096664600717i | P65: 1+0.000466516538351261i | Q65: 4.54800286899405-10.2245441170852i | R65: 0.999971252413013-0.00552893602718402i | S65: 4.49134127455547-10.2493958030279i | T65: 20.9768154 | U65: -66.33670453
A66: 36.61849201 | B66: 1.629750835 | C66: 1629.750835 | D66: 16.32650962 | E66: 114.5949377 | F66: 20.29198239 | G66: -68.28086303 | H66: 36.61849201 | I66: 46.31407468 | J66: -65103.9981944816i | K66: -1436117.60723121i | L66: 25325.5759853181-55328.7705524167i | M66: 56875 | N66: -2.72664145187724+5.95689193237235i | O66: 1+2.47043311515892i | P66: 1+0.000512001324922604i | Q66: 3.88537515351001-9.58444709487651i | R66: 0.999965373619546-0.00606796705226304i | S66: 3.82708250784587-9.60769154858214i | T66: 20.29198239 | U66: -68.28086303
A67: 35.1918809 | B67: 1.788649529 | C67: 1788.649529 | D67: 15.60293863 | E67: 115.1259871 | F67: 19.58894228 | G67: -70.10403562 | H67: 35.1918809 | I67: 45.02195146 | J67: -59320.3384290213i | K67: -1308536.87711076i | L67: 23772.155338573-50688.256659211i | M67: 56875 | N67: -2.55939466822768+5.45727772630011i | O67: 1+2.71129729412009i | P67: 1+0.00056192082203337i | Q67: 3.30555194582665-8.94684576050057i | R67: 0.999958292677587-0.00665954218066599i | S67: 3.24583218337993-8.96848607413347i | T67: 19.58894228 | U67: -70.10403562
A68: 33.7577721 | B68: 1.96304065 | C68: 1963.04065 | D68: 14.88774107 | E68: 115.8372631 | F68: 18.87003103 | G68: -71.80792418 | H68: 33.7577721 | I68: 44.02933896 | J68: =IMDIV(1,COMPLEX(0,2*PI()*$C68*Cz*10^-9)) -> -54050.4830566909i | K68: =IMDIV(1,COMPLEX(0,2*PI()*$C68*Cp_Cstray*10^-12)) -> -1192290.067427i | L68: =IMDIV(IMPRODUCT(IMDIV(IMPRODUCT(K68,IMSUM(Rz*10^3,J68)),IMSUM(K68,IMSUM(Rz*10^3,J68))),Ro_EA*10^3),IMSUM(IMDIV(IMPRODUCT(K68,IMSUM(Rz*10^3,J68)),IMSUM(K68,IMSUM(Rz*10^3,J68))),Ro_EA*10^3)) -> 22470.982586925-46406.4131684843i | M68: =IF($E$1="Feedforward RC",IMDIV(IMPRODUCT(IMSUM(Rz_2*10^3,IMDIV(1,COMPLEX(0,2*PI()*$C68*Cz_2*10^-12))),RFB_1*10^3),IMSUM(IMSUM(Rz_2*10^3,IMDIV(1,COMPLEX(0,2*PI()*$C68*Cz_2*10^-12))),RFB_1*10^3)),RFB_1*10^3) -> 56875 | N68: =IMPRODUCT(-gm_EA1*10^-6,L68,IMDIV(RFB_2*10^3,IMSUM(M68,RFB_2*10^3))) -> -2.41930578879791+4.99627924954149i | O68: =COMPLEX(1,2*PI()*C68*1/(1/(Vreg/Iout_PreReg*Number_Cout*Co*10^-6)+(m_c*(1-Vreg/Vin_nom)-0.5)/(fsw*10^3*L_buck*10^-6*Number_Cout*Co*10^-6))) -> 1+2.97564543318145i | P68: =COMPLEX(1,2*PI()*C68*(ESR*10^-3*Co*10^-6)) -> 1+0.000616707408486464i | Q68: =IMPRODUCT(K,IMDIV(P68,O68)) -> 2.80215006069904-8.32120665667116i | R68: =IMDIV(1,IMSUM(COMPLEX(1,2*PI()*C68/(wn*Qp)),IMPRODUCT(COMPLEX(0,2*PI()*C68/wn),COMPLEX(0,2*PI()*C68/wn)))) -> 0.999949763782094-0.00730878093505871i | S68: 2.74119141470902-8.34126893166113i | T68: 18.87003103 | U68: -71.80792418
A69: 32.3207884 | B69: 2.15443469 | C69: 2154.43469 | D69: 14.18340303 | E69: 116.7268726 | F69: 18.13738538 | G69: -73.39588239 | H69: 32.3207884 | I69: 43.33099024 | J69: -49248.7871113079i | K69: -1086370.30392591i | L69: 21382.6235603236-42464.9858346606i | M69: 56875 | N69: -2.30212919079372+4.57193118518963i | O69: 1+3.26576718946169i | P69: 1+0.000676835619484316i | Q69: 2.36806502474447-7.71489336525247i | R69: 0.999939490877417-0.00802130087069948i | S69: 2.30603825433955-7.73342150586897i | T69: 18.13738538 | U69: -73.39588239
A70: 30.88546283 | B70: 2.364489413 | C70: 2364.489413 | D70: 13.49253401 | E70: 117.7919263 | F70: 17.39292882 | G70: -74.87252742 | H70: 30.88546283 | I70: 42.91939889 | J70: -44873.6605996842i | K70: -989860.160287155i | L70: 20473.3074920171-38844.3495744394i | M70: 56875 | N70: -2.20422899353306+4.18212062707983i | O70: 1+3.58417545882194i | P70: 1+0.000742826256825767i | Q70: 1.99594605278527-7.13334625721696i | R70: 0.999927117388708-0.00880326577429383i | S70: 1.9330038400626-7.15039720388831i | T70: 17.39292882 | U70: -74.87252742
A71: 29.45623536 | B71: 2.595024211 | C71: 2595.024211 | D71: 12.81786544 | E71: 119.0281573 | F71: 16.63836992 | G71: -76.24339373 | H71: 29.45623536 | I71: 42.78476356 | J71: -40887.2082689993i | K71: -901923.711816158i | L71: 19714.2660030557-35524.2939885816i | M71: 56875 | N71: -2.12250789117011+3.82467165185477i | O71: 1+3.93362814136759i | P71: 1+0.000815250899842107i | Q71: 1.67855158415317-6.58032689740451i | R71: 0.999912213856905-0.00966143844676127i | S71: 1.61482880730477-6.59596645869589i | T71: 16.63836992 | U71: -76.24339373
A72: 28.03744111 | B72: 2.848035868 | C72: 2848.035868 | D72: 12.16223188 | E72: 120.4295039 | F72: 15.87520924 | G72: -77.51463721 | H72: 28.03744111 | I72: 42.91486673 | J72: -37254.9013762495i | K72: -821799.295064325i | L72: 19081.0970920878-32484.6053644357i | M72: 56875 | N72: -2.05433867757805+3.49740797942336i | O72: 1+4.31715202905967i | P72: 1+0.000894736856143814i | Q72: 1.40899575183935-6.05818713802371i | R72: 0.999894263050144-0.0106032384797209i | S72: 1.34461036594695-6.07248648176774i | T72: 15.87520924 | U72: -77.51463721
A73: 26.63328399 | B73: 3.12571585 | C73: 3125.71585 | D73: 11.52853177 | E73: 121.9876886 | F73: 15.10475221 | G73: -78.69279183 | H73: 26.63328399 | I73: 43.29489675 | J73: -33945.2786167941i | K73: -748792.910664576i | L73: 18553.1740123954-29705.4864685435i | M73: 56875 | N73: -1.99750060395136+3.19819816932356i | O73: 1+4.73806902233884i | P73: 1+0.000981972595058975i | Q73: 1.18090324882945-5.568134882368i | R73: 0.999872642037853-0.0116368054635312i | S73: 1.11595754897737-5.5811676774343i | T73: 15.10475221 | U73: -78.69279183
A74: 25.24779154 | B74: 3.430469286 | C74: 3430.469286 | D74: 10.91966615 | E74: 123.6918336 | F74: 14.32812539 | G74: -79.78457618 | H74: 25.24779154 | I74: 43.90725739 | J74: -30929.6736215864i | K74: -682272.212240878i | L74: 18113.1091705259-27167.8493497i | M74: 56875 | N74: -1.95012166022858+2.92498714493967i | O74: 1+5.20002490283776i | P74: 1+0.00107771371082524i | Q74: 0.988492229562372-5.11047906772848i | R74: 0.999846600609697-0.0127710680916555i | S74: 0.923074319302097-5.12231922492715i | T74: 14.32812539 | U74: -79.78457618
A75: 23.88474958 | B75: 3.764935807 | C75: 3764.935807 | D75: 10.33845531 | E75: 125.5281653 | F75: 13.54629427 | G75: -80.79674487 | H75: 23.88474958 | I75: 44.73142045 | J75: -28181.9666627972i | K75: -621661.029326408i | L75: 17746.2765978066-24853.5103345611i | M75: 56875 | N75: -1.91062716267974+2.67581718742191i | O75: 1+5.70702091139759i | P75: 1+0.00118278946718564i | Q75: 0.826603955729814-4.68484470383767i | R75: 0.999815235296782-0.0140158196506356i | S75: 0.760789290035031-4.69556464186235i | T75: 13.54629427 | U75: -80.79674487
A76: 22.54761808 | B76: 4.1320124 | C76: 4132.0124 | D76: 9.787536671 | E76: 127.4798611 | F76: 12.76008141 | G76: -81.73597887 | H76: 22.54761808 | I76: 45.74388221 | J76: -25678.3584172292i | K76: -566434.376850643i | L76: 17440.3923042161-22745.3108689411i | M76: 56875 | N76: -1.87769457331374+2.44884094588974i | O76: 1+6.26344840490192i | P76: 1+0.00129810998007443i | Q76: 0.690695343770076-4.29035470019688i | R76: 0.999777458102773-0.0153818004051929i | S76: 0.624548255451958-4.30002405444079i | T76: 12.76008141 | U76: -81.73597887
A77: 21.23943433 | B77: 4.534878508 | C77: 4534.878508 | D77: 9.269250421 | E77: 129.5270887 | F77: 11.97018391 | G77: -82.60880809 | H77: 21.23943433 | I77: 46.91828057 | J77: -23397.1638279639i | K77: -516113.907969792i | L77: 17185.1492573905-20827.1830407572i | M77: 56875 | N77: -1.85021420042186+2.2423284918647i | O77: 1+6.8741268921093i | P77: 1+0.0014246741006059i | Q77: 0.576807432259488-3.92577903179229i | R77: 0.999731958873325-0.0168807874014049i | S77: 0.510382582924892-3.93446372519305i | T77: 11.97018391 | U77: -82.60880809
A78: 19.96271253 | B78: 4.977023564 | C78: 4977.023564 | D78: 8.785522811 | E78: 131.6472748 | F78: 11.17718972 | G78: -83.42156041 | H78: 19.96271253 | I78: 48.22571437 | J78: -21318.6242787732i | K78: -470263.770855291i | L78: 16971.902323745-19084.1745634376i | M78: 56875 | N78: -1.82725527822002+2.05467000907291i | O78: 1+7.54434577793257i | P78: 1+0.0015635780666449i | Q78: 0.481519693836466-3.58965399393008i | R78: 0.999677160017636-0.0185256922140479i | S78: 0.414863414980523-3.597415595741i | T78: 11.17718972 | U78: -83.42156041
A79: 18.71935197 | B79: 5.462277218 | C79: 5462.277218 | D79: 8.33775952 | E79: 133.8156115 | F79: 10.38159245 | G79: -84.18033169 | H79: 18.71935197 | I79: 49.63527981 | J79: -19424.7364544376i | K79: -428486.83355377i | L79: 16793.3978806948-17502.4446638701i | M79: 56875 | N79: -1.80803685594023+1.88437535072695i | O79: 1+8.27991017773375i | P79: 1+0.0017160249978948i | Q79: 0.401897395740476-3.28037535050595i | R79: 0.999611162039581-0.0203306671523951i | S79: 0.335048903390761-3.28727065822746i | T79: 10.38159245 | U79: -84.18033169
A80: 17.51056661 | B80: 5.994842503 | C80: 5994.842503 | D80: 7.926762078 | E80: 136.0057769 | F80: 9.583804532 | G80: -84.89097209 | H80: 17.51056661 | I80: 51.11480482 | J80: -17699.0964046424i | K80: -390421.244220052i | L80: 16643.5426818468-16069.2396273446i | M80: 56875 | N80: -1.79190291303622+1.73007140660757i | O80: 1+9.08719119845618i | P80: 1+0.00188333531674477i | Q80: 0.33543698974911-2.99626948116358i | R80: 0.999531678030067-0.022311220405706i | S80: 0.268429468448151-3.00235027094823i | T80: 9.583804532 | U80: -84.89097209
A81: 16.33684727 | B81: 6.579332247 | C81: 6579.332247 | D81: 7.552678513 | E81: 138.190811 | F81: 8.78416876 | G81: -85.55908499 | H81: 16.33684727 | I81: 52.631726 | J81: -16126.7574608077i | K81: -355737.296929581i | L81: 16517.2067357904-14772.8546087299i | M81: 56875 | N81: -1.77830113641407+1.59049799151933i | O81: 1+9.97318112210502i | P81: 1+0.00206695818513686i | Q81: 0.280012790853762-2.73564648253067i | R81: 0.999435954908254-0.0244843405469389i | S81: 0.212874350919138-2.74095938308821i | T81: 8.78416876 | U81: -85.55908499
A82: 15.1979635 | B82: 7.220809018 | C82: 7220.809018 | D82: 7.214995245 | E82: 140.3440606 | F82: 7.982968257 | G82: -86.1900353 | H82: 15.1979635 | I82: 54.15402527 | J82: -14694.1007751955i | K82: -324134.575923431i | L82: 16410.0553101159-13602.5866294934i | M82: 56875 | N82: -1.76676483338818+1.46450278478284i | O82: 1+10.9455539695489i | P82: 1+0.00226848405651347i | Q82: 0.233826928559684-2.49683878903283i | R82: 0.999320678767072-0.0268686307096653i | S82: 0.166581445598192-2.50142524282169i | T82: 7.982968257 | U82: -86.1900353
A83: 14.09300641 | B83: 7.924828984 | C83: 7924.828984 | D83: 6.91257148 | E83: 142.4400942 | F83: 7.180434934 | G83: -86.7889648 | H83: 14.09300641 | I83: 55.65112944 | J83: -13388.7173609659i | K83: -295339.353550719i | L83: 16318.4056065456-12548.6823567943i | M83: 56875 | N83: -1.75689750081687+1.35103570794645i | O83: 1+12.0127319692176i | P83: 1+0.00248965845156422i | Q83: 0.195363646363946-2.27822838892494i | R83: 0.999181861166971-0.0294844525939285i | S83: 0.128031494846894-2.28212467197925i | T83: 7.180434934 | U83: -86.7889648
A84: 13.02046788 | B84: 8.697490026 | C84: 8697.490026 | D84: 6.643711281 | E84: 144.4554935 | F84: 6.376756596 | G84: -87.36081259 | H84: 13.02046788 | I84: 57.09468091 | J84: -12199.300611469i | K84: -269102.21937064i | L84: 16239.1041135693-11602.2832271427i | M84: 56875 | N84: -1.74835962045157+1.24914301660452i | O84: 1+13.1839585064152i | P84: 1+0.00273239707709108i | Q84: 0.163348403147103-2.07826520621269i | R84: 0.999014702618806-0.032354080222285i | S84: 0.0959470971882709-2.08150248428719i | T84: 6.376756596 | U84: -87.36081259
A85: 11.9783464 | B85: 9.545484567 | C85: 9545.484567 | D85: 6.406263595 | E85: 146.3694492 | F85: 5.572082803 | G85: -87.91033915 | H85: 11.9783464 | I85: 58.45911006 | J85: -11115.5483678275i | K85: -245195.919878547i | L85: 16169.4210951713-10755.3696678531i | M85: 56875 | N85: -1.74085729921844+1.15796129508101i | O85: 1+14.4693781851024i | P85: 1+0.0029988024189443i | Q85: 0.136711822997849-1.89547874644826i | R85: 0.998813428789325-0.0355018630317567i | S85: 0.0692565778485089-1.89808315035217i | T85: 5.572082803 | U85: -87.91033915
A86: 10.96426729 | B86: 10.47615753 | C86: 10476.15753 | D86: 6.197737673 | E86: 148.1641247 | F86: 4.766529619 | G86: -88.44215301 | H86: 10.96426729 | I86: 59.72197167 | J86: -10128.0736865647i | K86: -223413.390144809i | L86: 16106.9590992906-10000.7055302455i | M86: 56875 | N86: -1.73413241891428+1.07671147391054i | O86: 1+15.8801246956021i | P86: 1+0.00329118195274897i | Q86: 0.114558288041747-1.72848468669403i | R86: 0.998571094137965-0.0389543974172071i | S86: 0.0470625156173835-1.73047739387259i | T86: 4.766529619 | U86: -88.44215301
A87: 9.975604369 | B87: 11.49756995 | C87: 11497.56995 | D87: 6.015421041 | E87: 149.8247821 | F87: 3.960183328 | G87: -88.96073905 | H87: 9.975604369 | I87: 60.86404305 | J87: -9228.32353439107i | K87: -203565.960317449i | L87: 16049.5727597772-9331.7833342067i | M87: 56875 | N87: -1.72795400180031+1.00469293467347i | O87: 1+17.4284172492991i | P87: 1+0.00361206813015501i | Q87: 0.0961388257089772-1.57598773477708i | R87: 0.998279346739512-0.0427407051928583i | S87: 0.0286145769653938-1.57738504754996i | T87: 3.960183328 | U87: -88.96073905
A88: 9.009592191 | B88: 12.61856883 | C88: 12618.56883 | D88: 5.85648896 | E88: 151.3396985 | F88: 3.153103231 | G88: -89.47048812 | H88: 9.009592191 | I88: 61.8692104 | J88: -8408.50470592118i | K88: -185481.721454144i | L88: 15995.2975209942-8742.77049722259i | M88: 56875 | N88: -1.72211053683975+0.94127772082247i | O88: 1+19.1276664156036i | P88: 1+0.00396424031372192i | Q88: 0.0808278725665315-1.43678178913639i | R88: 0.997928146954564-0.0468924165544274i | S88: 0.0132862389385993-1.43759520268054i | T88: 3.153103231 | U88: -89.47048812
A89: 8.063421005 | B89: 13.84886371 | C89: 13848.86371 | D89: 5.718097431 | E89: 152.6999167 | F89: 2.345323574 | G89: -89.97572724 | H89: 8.063421005 | I89: 62.72418944 | J89: -7661.51632265725i | K89: -169004.036529204i | L89: 15942.2852413092-8228.45635194716i | M89: 56875 | N89: -1.71640304654095+0.885904833405901i | O89: 1+20.9925902778879i | P89: 1+0.00435074885042761i | Q89: 0.0681034758212225-1.30974819245254i | R89: 0.997505431375151-0.051443953931506i | S89: 0.000554961352793995-1.30998444777792i | T89: 2.345323574 | U89: -89.97572724
A90: 7.13430996 | B90: 15.19911083 | C90: 15199.11083 | D90: 5.59745529 | E90: 153.8988845 | F90: 1.536854669 | G90: -90.48075029 | H90: 7.13430996 | I90: 63.41813419 | J90: -6980.88832857618i | K90: -153990.183718592i | L90: 15888.7449423356-7784.19942012076i | M90: 56875 | N90: -1.71063870781034+0.838074554390572i | O90: 1+23.0393419144835i | P90: 1+0.00477494149231463i | Q90: 0.0575305027360419-1.19385268236131i | R90: 0.996996712102368-0.0564327115248554i | S90: -0.0100146219534406-1.1935138013136i | T90: 1.536854669 | U90: -90.48075029
A91: 6.219557353 | B91: 16.68100537 | C91: 16681.00537 | D91: 5.491874117 | E91: 154.9320355 | F91: 0.7276832354 | G91: -90.98984883 | H91: 6.219557353 | I91: 63.9421867 | J91: -6360.7254495999i | K91: -140310.120211763i | L91: 15832.8872820848-7405.87408799045i | M91: 56875 | N91: -1.70462487373474+0.797342705548131i | O91: 1+25.2856493089181i | P91: 1+0.0052404923931169i | Q91: 0.0487464549431995-1.08814149306952i | R91: 0.996384599929346-0.0618992232079744i | S91: -0.018784896154815-1.08722479393372i | T91: 0.7276832354 | U91: -90.98984883
A92: 5.316569016 | B92: 18.3073828 | C92: 18307.3828 | D92: 5.398797057 | E92: 155.7963557 | F92: -0.08222804082 | G92: -91.50734285 | H92: 5.316569016 | I92: 64.2890128 | J92: -5795.65613155139i | K92: -127845.355843045i | L92: 15772.8716651141-7089.81550586191i | M92: 56875 | N92: -1.6981633792721+0.763314716145133i | O92: 1+27.750968901228i | P92: 1+0.00575143393202155i | Q92: 0.0414495205274438-0.991736945279641i | R92: 0.995648238453957-0.0678873086887168i | S92: -0.0260572100442935-0.990235038972429i | T92: -0.08222804082 | U92: -91.50734285
A93: 4.42286743 | B93: 20.09233003 | C93: 20092.33003 | D93: 5.31580915 | E93: 156.4899701 | F93: -0.8929417204 | G93: -92.03761132 | H93: 4.42286743 | I93: 64.45235875 | J93: -5280.78601432198i | K93: -116487.926786514i | L93: 15706.7552908036-6832.76120585872i | M93: 56875 | N93: -1.69104505560802+0.735639337303668i | O93: 1+30.4566541103339i | P93: 1+0.00631219164020852i | Q93: 0.0353885362692153-0.90383277201721i | R93: 0.994762634618814-0.0744441841928848i | S93: -0.0320818997851468-0.901733540259008i | T93: -0.8929417204 | U93: -92.03761132
A94: 3.536084822 | B94: 22.0513074 | C94: 22051.3074 | D94: 5.24063247 | E94: 157.0117749 | F94: -1.704547648 | G94: -92.58512209 | H94: 3.536084822 | I94: 64.42665283 | J94: -4811.65553926576i | K94: -106139.46042498i | L94: 15632.4439187472-6631.78760126293i | M94: 56875 | N94: -1.68304442938288+0.714001805294851i | O94: 1+33.4261402871405i | P94: 1+0.00692762253268445i | Q94: 0.0303545721078485-0.823689359242772i | R94: 0.993697869816005-0.0816205192279893i | S94: -0.0370666795412195-0.820975917606039i | T94: -1.704547648 | U94: -92.58512209
A95: 2.653943608 | B95: 24.20128265 | C95: 24201.28265 | D95: 5.171109463 | E95: 157.3611282 | F95: -2.517165855 | G95: -93.15446105 | H95: 2.653943608 | I95: 64.20666717 | J95: -4384.20132263575i | K95: -96710.323293436i | L95: 15547.6447417836-6484.23921651619i | M95: 56875 | N95: -1.67391464883502+0.698116222189407i | O95: 1+36.6851477003343i | P95: 1+0.00760305717742304i | Q95: 0.0261738876468393-0.750629027978096i | R95: 0.992418174730118-0.0894704149544252i | S95: -0.0411836488059697-0.747279678434198i | T95: -2.517165855 | U95: -93.15446105
A96: 1.774227251 | B96: 26.56087783 | C96: 26560.87783 | D96: 5.105177652 | E96: 157.5376083 | F96: -3.330950401 | G96: -93.75035995 | H96: 1.774227251 | I96: 63.78724836 | J96: -3994.72096049797i | K96: -88118.8447168666i | L96: 15449.8225516933-6387.64823901054i | M96: 56875 | N96: -1.66338276444399+0.687716894517771i | O96: 1+40.2619043130472i | P96: 1+0.00834434586619489i | Q96: 0.0227020452555932-0.684031445402879i | R96: 0.990880850874597-0.0980512720436567i | S96: -0.0445751314201576-0.680019625061089i | T96: -3.330950401 | U96: -93.75035995
A97: 0.8947441816 | B97: 29.15053063 | C97: 29150.53063 | D97: 5.04083843 | E97: 157.540843 | F97: -4.146094248 | G97: -94.37772218 | H97: 0.8947441816 | I97: 63.16312078 | J97: -3639.84096027964i | K97: -80290.6094179329i | L97: 15336.1614096253-6339.64185233377i | M97: 56875 | N97: -1.65114560223256+0.682548356438179i | O97: 1+44.1873902799691i | P97: 1+0.00915790928699601i | Q97: 0.0198189955204871-0.623329223046399i | R97: 0.98903502281966-0.107423506333666i | S97: -0.0473585300530163-0.618623458330678i | T97: -4.146094248 | U97: -94.37772218
A98: 0.01328702372 | B98: 31.99267138 | C98: 31992.67138 | D98: 4.97612229 | E98: 157.3704108 | F98: -4.962835267 | G98: -95.04164595 | H98: 0.01328702372 | I98: 62.32876488 | J98: -3316.48752119045i | K98: -73157.8129674362i | L98: 15203.5353320427-6337.83491645726i | M98: 56875 | N98: -1.63686660771151+0.682353815304558i | O98: 1+48.4956062826258i | P98: 1+0.0100507941369755i | Q98: 0.0174249783465747-0.568003738489269i | R98: 0.986820208158109-0.117650058815305i | S98: -0.0496303524814582-0.562567617177894i | T98: -4.962835267 | U98: -95.04164595
A99: 0.8724109898 | B99: =C99/1000 -> 35.11191734 | C99: 35111.91734 | D99: 4.909052508 | E99: 157.0258148 | F99: -5.781463497 | G99: -95.7474434 | H99: -0.8724109898 | I99: 61.27837145 | J99: -3021.85991043051i | K99: -66658.6744947908i | L99: 15048.4930826753-6379.70606472385i | M99: 56875 | N99: -1.62017420852729+0.686861811828213i | O99: 1+53.2238680270191i | P99: 1+0.0110307341575555i | Q99: 0.0154371070283472-0.517581201091374i | R99: 0.984164698350923-0.128795632297428i | S99: -0.0514695422778615-0.51137337860476i | T99: -5.781463497 | U99: -95.7474434
A100: 1.764720645 | B100: 38.53528594 | C100: 38535.28594 | D100: 4.837609141 | E100: 156.5065277 | F100: -6.602329786 | G100: -96.5006543 | H100: -1.764720645 | I100: 60.00587336 | J100: =IMDIV(1,COMPLEX(0,2*PI()*$C100*Cz*10^-9)) -> -2753.40620458276i | K100: =IMDIV(1,COMPLEX(0,2*PI()*$C100*Cp_Cstray*10^-12)) -> -60736.9015716785i | L100: =IMDIV(IMPRODUCT(IMDIV(IMPRODUCT(K100,IMSUM(Rz*10^3,J100)),IMSUM(K100,IMSUM(Rz*10^3,J100))),Ro_EA*10^3),IMSUM(IMDIV(IMPRODUCT(K100,IMSUM(Rz*10^3,J100)),IMSUM(K100,IMSUM(Rz*10^3,J100))),Ro_EA*10^3)) -> 14867.2639696437-6462.45640697862i | M100: =IF($E$1="Feedforward RC",IMDIV(IMPRODUCT(IMSUM(Rz_2*10^3,IMDIV(1,COMPLEX(0,2*PI()*$C100*Cz_2*10^-12))),RFB_1*10^3),IMSUM(IMSUM(Rz_2*10^3,IMDIV(1,COMPLEX(0,2*PI()*$C100*Cz_2*10^-12))),RFB_1*10^3)),RFB_1*10^3) -> 56875 | N100: =IMPRODUCT(-gm_EA1*10^-6,L100,IMDIV(RFB_2*10^3,IMSUM(M100,RFB_2*10^3))) -> -1.60066243860089+0.695771007555082i | O100: =COMPLEX(1,2*PI()*C100*1/(1/(Vreg/Iout_PreReg*Number_Cout*Co*10^-6)+(m_c*(1-Vreg/Vin_nom)-0.5)/(fsw*10^3*L_buck*10^-6*Number_Cout*Co*10^-6))) -> 1+58.413129454419i | P100: =COMPLEX(1,2*PI()*C100*(ESR*10^-3*Co*10^-6)) -> 1+0.0121062171203992i | Q100: =IMPRODUCT(K,IMDIV(P100,O100)) -> 0.0137865233432371-0.471628970766508i | R100: =IMDIV(1,IMSUM(COMPLEX(1,2*PI()*C100/(wn*Qp)),IMPRODUCT(COMPLEX(0,2*PI()*C100/wn),COMPLEX(0,2*PI()*C100/wn)))) -> 0.980983754159823-0.14092557049512i | S100: -0.0529402263412357-0.464603231980352i | T100: -6.602329786 | U100: -96.5006543
A101: =ABS(H101) -> 2.666160639 | B101: 42.29242874 | C101: 42292.42874 | D101: =20*LOG(IMABS(N101)) -> 4.759695274 | E101: =IF(180/PI()*IMARGUMENT(N101)>0,180/PI()*IMARGUMENT(N101),360+180/PI()*IMARGUMENT(N101)) -> 155.8121092 | F101: =T101 -> -7.425855913 | G101: -97.3070524 | H101: =D101+F101 -> -2.666160639 | I101: 58.50505684 | J101: -2508.80118607312i | K101: -55341.2026339659i | L101: 14655.7934259114-6582.85202602881i | M101: 56875 | N101: -1.57789476884579+0.708733227475252i | O101: 1+64.1083374648108i | P101: 1+0.013286558344429i | Q101: 0.0124160294883785-0.42975213064628i | R101: 0.97717763628811-0.154104276624526i | S101: =IMPRODUCT(Q101,R101) -> -0.0540939748735566-0.421857534457566i | T101: =20*LOG(IMABS(S101)) -> -7.425855913 | U101: =180/PI()*IMARGUMENT(S101) -> -97.3070524
A102: 3.579438704 | B102: 46.41588834 | C102: 46415.88834 | D102: 4.673107604 | E102: 154.9423961 | F102: -8.252546308 | G102: -98.17264172 | H102: -3.579438704 | I102: 56.76975436 | J102: -2285.9262032482i | K102: -50424.8427187101i | L102: 14409.8187775424-6737.05460578615i | M102: 56875 | N102: -1.55141226464756+0.725335224847257i | O102: 1+70.3588212254421i | P102: 1+0.0145819813806623i | Q102: 0.0112781178139986-0.391590308784263i | R102: 0.972629517498225-0.168393048867306i | S102: -0.0549716557153542-0.382771449734003i | T102: -8.252546308 | U102: -98.17264172
A103: 4.507487544 | B103: 50.94138015 | C103: 50941.38015 | D103: 4.575513856 | E103: 153.8977602 | F103: -9.0830014 | G103: -99.10363977 | H103: -4.507487544 | I103: 54.79412048 | J103: -2082.85081962824i | K103: -45945.2386682701i | L103: 14124.9964317294-6920.44904209835i | M103: 56875 | N103: -1.52074727937872+0.745080121167973i | O103: 1+77.2187194364695i | P103: 1+0.0160037065637197i | Q103: 0.0103333321351823-0.35681474020966i | R103: 0.96720335971775-0.183847191310275i | S103: -0.0556049542474237-0.347012169617529i | T103: -9.0830014 | U103: -99.10363977
A104: 5.453492659 | B104: 55.90810183 | C104: 55908.10183 | D104: 4.464439908 | E104: 152.6794332 | F104: -9.917932567 | G104: -100.1064436 | H104: -5.453492659 | I104: 52.57298962 | J104: -1897.81609338988i | K104: -41863.590295365i | L104: 13797.09094197-7127.48276420224i | M104: 56875 | N104: -1.48544380982705+0.767370106949625i | O104: 1+84.7474492544797i | P104: 1+0.0175640481969954i | Q104: 0.00954890523727113-0.325125558165255i | R104: 0.960741891646839-0.200512244746053i | S104: -0.0560176222112164-0.314276416198414i | T104: -9.917932567 | U104: -100.1064436
A105: 6.420908628 | B105: 61.35907273 | C105: 61359.07273 | D105: 4.337269912 | E105: 151.289884 | F105: -10.75817854 | G105: -101.1875739 | H105: -6.420908628 | I105: 50.10231014 | J105: -1729.21934225345i | K105: -38144.5443144143i | L105: 13422.2330095343-7351.53833028894i | M105: 56875 | N105: -1.44508527354986+0.791492724905876i | O105: 1+93.010220935477i | P105: 1+0.019276521213263i | Q105: 0.00889762631097391-0.296249301891085i | R105: 0.953064892144458-0.218419177825171i | S105: -0.0562265136899216-0.284288221178136i | T105: -10.75817854 | U105: -101.1875739
A106: 7.413460101 | B106: 67.34150658 | C106: 67341.50658 | D106: 4.191262793 | E106: 149.7332344 | F106: -11.60472289 | G106: -102.3535922 | H106: -7.413460101 | I106: 47.37964215 | J106: -1575.60026181586i | K106: -34755.8881282911i | L106: 12997.2463967657-7584.86760199565i | M106: 56875 | N106: -1.39932970552094+0.816613782943832i | O106: 1+102.078602654922i | P106: 1+0.0211559582345569i | Q106: 0.0083568997130328-0.269936627567462i | R106: 0.943968074141168-0.237578394200549i | S106: -0.0562424639854868-0.256796977279336i | T106: -11.60472289 | U106: -102.3535922
A107: 8.435123793 | B107: 73.90722034 | C107: 73907.22034 | D107: 4.023588254 | E107: 148.0156817 | F107: -12.45871205 | G107: -103.6109842 | H107: -8.435123793 | I107: 44.40469748 | J107: -1435.62827709243i | K107: -31668.2708182155i | L107: 12520.0322406622-7818.62056368257i | M107: 56875 | N107: -1.3479511346956+0.84178045694975i | O107: 1+112.031140397033i | P107: 1+0.0232186380452488i | Q107: 0.00790796286800023-0.245960208801404i | R107: 0.93322297231446-0.257972457758066i | S107: -0.0560710669625577-0.231575753745649i | T107: -12.45871205 | U107: -103.6109842
A108: 9.490088371 | B108: 81.11308308 | C108: 81113.08308 | D108: 3.831384416 | E108: 146.1458924 | F108: -13.32147279 | G108: -104.966003 | H108: -9.490088371 | I108: 41.1798894 | J108: -1308.09101771287i | K108: -28854.9489201369i | L108: 11989.9835936947-8043.0019461711i | M108: 56875 | N108: -1.29088421494732+0.865938153456927i | O108: 1+122.954038282523i | P108: 1+0.0254824265910907i | Q108: 0.00753523649816787-0.224112813174679i | R108: 0.920578359510409-0.27954753166393i | S108: -0.0557134080832347-0.208419862661176i | T108: -13.32147279 | U108: -104.966003
A109: 10.58269056 | B109: 89.02150854 | C109: 89021.50854 | D109: 3.611837402 | E109: 144.1353175 | F109: -14.19452796 | G109: -106.4244674 | H109: -10.58269056 | I109: 37.71085012 | J109: -1191.88381694917i | K109: -26291.5547856435i | L109: 11408.3850648469-8247.58122052462i | M109: 56875 | N109: -1.22826725184146+0.887963884677044i | O109: 1+134.941905227456i | P109: 1+0.0279669317254894i | Q109: 0.00722578485699123-0.20420554175426i | R109: 0.905763837689805-0.302203686206274i | S109: -0.0551668128394973-0.18714565399638i | T109: -14.19452796 | U109: -106.4244674
A110: 11.7173279 | B110: 97.70099573 | C110: 97700.99573 | D110: 3.362280471 | E110: 141.9983751 | F110: -15.07960837 | G110: -107.9915084 | H110: -11.7173279 | I110: 34.00686672 | J110: -1086.00014362086i | K110: -23955.8855210484i | L110: 10778.7362067724-8421.76395302587i | M110: 56875 | N110: -1.16047701964503+0.90671701625101i | O110: 1+148.098574400413i | P110: 1+0.0306936730433532i | Q110: 0.00696886738750246-0.186066219012283i | R110: 0.888496342318439-0.325784472989467i | S110: -0.0544256719181612-0.167589503810606i | T110: -15.07960837 | U110: -107.9915084
A111: 12.89835147 | B111: 107.2267222 | C111: 107226.7222 | D111: 3.080306946 | E111: 139.7524496 | F111: -15.97865841 | G111: -109.671264 | H111: -12.89835147 | I111: 30.08118559 | J111: -989.52288400339i | K111: -21827.7106765455i | L111: 10106.9287050498-8555.40495552163i | M111: 56875 | N111: -1.08814783815116+0.92110528119261i | O111: 1+162.538002575736i | P111: 1+0.0336862682735279i | Q111: 0.0067555663510282-0.169537921250081i | R111: 0.868490321788689-0.350066499381804i | S111: -0.0534824026104145-0.149606941245714i | T111: -15.97865841 | U111: -109.671264
A112: 14.12994467 | B112: 117.6811952 | C112: 117681.1952 | D112: 2.763887724 | E112: 137.4176668 | F112: -16.89383239 | G112: -111.4665239 | H112: -14.12994467 | I112: 25.95114292 | J112: -901.616398227882i | K112: -19888.5970197327i | L112: 9401.21281911551-8639.50992412788i | M112: 56875 | N112: -1.01216795959075+0.930160320803302i | O112: 1+178.385257172577i | P112: 1+0.0369706378442646i | Q112: 0.0065784775744528-0.154477632324447i | R112: 0.845472245717179-0.374750159455257i | S112: -0.0523285971375844-0.133071836234422i | T112: -16.89383239 | U112: -111.4665239
A113: 15.41599671 | B113: 129.1549665 | C113: 129154.9665 | D113: 2.41148142 | E113: 135.0164286 | F113: -17.82747813 | G113: -113.3783332 | H113: -15.41599671 | I113: 21.63809541 | J113: -821.519282368244i | K113: -18121.7488757701i | L113: 8671.91200804721-8666.9403903593i | M113: 56875 | N113: -0.933648844230878+0.933113582214385i | O113: 1+195.777599529063i | P113: 1+0.040575229393571i | Q113: 0.00643145363177304-0.140755016201223i | R113: 0.819199786127094-0.399453145143565i | S113: -0.0509563884766772-0.117875543549414i | T113: -17.82747813 | U113: -113.3783332
A114: 16.75998024 | B114: 141.7474163 | C114: 141747.4163 | D114: 2.022124076 | E114: 132.5727245 | F114: -18.78210432 | G114: -115.4055762 | H114: -16.75998024 | I114: 17.16714832 | J114: -748.537773524664i | K114: -16511.8626512793i | L114: 7930.88509481778-8633.01752230747i | M114: 56875 | N114: -0.853867255068233+0.929461325766188i | O114: 1+214.865673794342i | P114: 1+0.0445312641690421i | Q114: 0.00630939057970143-0.128251296589039i | R114: 0.789485436614449-0.42370878432308i | S114: -0.0493600289890138-0.103925875096311i | T114: -18.78210432 | U114: -115.4055762
A115: 18.16484208 | B115: 155.5676144 | C115: 155567.6144 | D115: 1.595486612 | E115: 130.1112694 | F115: -19.76032869 | G115: -117.5445669 | H115: -18.16484208 | I115: 12.56670257 | J115: -682.039740781286i | K115: -15044.9942819401i | L115: 7190.78462437182-8535.92313148247i | M115: 56875 | N115: -0.774185410025827+0.919007798828768i | O115: 1+235.814811736123i | P115: 1+0.0488730074513686i | Q115: 0.00620805086789459-0.116858234618231i | R115: 0.756223455592955-0.446971483689803i | S115: -0.0475376248288657-0.0911457597047356i | T115: -19.76032869 | U115: -117.5445669
A116: 19.63291331 | B116: 170.7352647 | C116: 170735.2647 | D116: 1.131891823 | E116: 127.6565504 | F116: -20.76480513 | G116: -119.7886895 | H116: -19.63291331 | I116: 7.867860949 | J116: -621.449209990571i | K116: -13708.4384556743i | L116: 6464.2047202471-8376.82476575616i | M116: 56875 | N116: -0.69595923717053+0.90187870375244i | O116: 1+258.806464765373i | P116: 1+0.05363806534381i | Q116: 0.00612391629252926-0.106477196216375i | R116: 0.719417890097494-0.468631399568272i | S116: -0.0454929025466803-0.0794714593084883i | T116: -20.76480513 | U116: -119.7886895
A117: 21.16584206 | B117: 187.3817423 | C117: 187381.7423 | D117: 0.6322882399 | E117: 125.2318789 | F117: -21.7981303 | G117: -122.1281372 | H117: -21.16584206 | I117: 3.103741728 | J117: -566.241374960799i | K117: -12490.6185653118i | L117: 5762.83748745474-8159.70065482923i | M117: 56875 | N117: -0.620447550051202+0.878502350875073i | O117: 1+284.03977558162i | P117: 1+0.0588677104982676i | Q117: 0.00605406589965946-0.0970183014856077i | R117: 0.67920823182595-0.48803972315351i | S117: -0.0432368136027943-0.0688502536524195i | T117: -21.7981303 | U117: -122.1281372
A118: 22.76454867 | B118: 205.6512308 | C118: 205651.2308 | D118: 0.09818426308 | E118: 122.8585462 | F118: -22.86273294 | G118: -124.5498037 | H118: -22.76454867 | I118: -1.691257516 | J118: -515.938051835909i | K118: -11380.9864375567i | L118: 5096.75499867998-7890.8961925965i | M118: 56875 | N118: -0.548734743783116+0.849561907838428i | O118: 1+311.733303051752i | P118: 1+0.0646072395992511i | Q118: 0.00599607460732752-0.0883996490038135i | R118: 0.635888297910709-0.504544535667353i | S118: -0.0407887261835869-0.0592375890195199i | T118: -22.86273294 | U118: -124.5498037
A119: 24.42920165 | B119: 225.701972 | C119: 225701.972 | D119: -0.4684487172 | E119: 120.5551587 | F119: -23.96075293 | G119: -127.037375 | H119: -24.42920165 | I119: -6.48221633 | J119: -470.103537295661i | K119: -10369.9309697573i | L119: 4473.90484278733-7578.49036573242i | M119: 56875 | N119: -0.481676484008506+0.815927187039603i | O119: 1+342.12691526237i | P119: 1+0.0709063657020922i | Q119: 0.0059479290322014-0.0805466085502698i | R119: 0.589913638919663-0.517535144336243i | S119: -0.0381769362224369-0.0505938052627094i | T119: -23.96075293 | U119: -127.037375
A120: 26.15921225 | B120: 247.7076356 | C120: 247707.6356 | D120: -1.065292164 | E120: 118.3372012 | F120: -25.09392008 | G120: -129.5716551 | H120: -26.15921225 | I120: -11.23445389 | J120: -428.340834701956i | K120: -9448.69488313135i | L120: 3899.86102997375-7231.57561701027i | M120: 56875 | N120: -0.419872888460726+0.77857711315849i | O120: 1+375.483867142399i | P120: 1+0.0778196488236453i | Q120: 0.00590795760209109-0.0733911762955415i | R120: 0.541893552716463-0.526490511262357i | S120: -0.03543827379569-0.0428806888792725i | T120: -25.09392008 | U120: -129.5716551
A121: 27.95324754 | B121: 271.8588243 | C121: 271858.8243 | D121: -1.689802292 | E121: 116.2168374 | F121: -26.26344525 | G121: -132.131129 | H121: -27.95324754 | I121: -15.91429156 | J121: -390.288215503843i | K121: -8609.29887140833i | L121: 3377.82325814574-6859.55400212119i | M121: 56875 | N121: -0.363668447979803+0.738523944901273i | O121: 1+412.093080651341i | P121: 1+0.0854069685150539i | Q121: 0.00587477253049339-0.0668713869961007i | R121: 0.492565797002018-0.531025459742419i | S121: -0.0326166970095296-0.0360582118162521i | T121: -26.26344525 | U121: -132.131129
A122: 29.80926293 | B122: 298.364724 | C122: 298364.724 | D122: -2.339326487 | E122: 114.2029306 | F122: -27.46993645 | G122: -134.6927374 | H122: -29.80926293 | I122: -20.48980678 | J122: -355.616086117878i | K122: -7844.47248789439i | L122: 2908.81914598471-6471.53082834201i | M122: 56875 | N122: -0.313173799642466+0.696747991985981i | O122: 1+452.271647283078i | P122: 1+0.093734042509776i | Q122: 0.0058472216403313-0.0609307781973189i | R122: 0.442755107445785-0.530927513708062i | S122: -0.0297609393309757-0.0300818640951103i | T122: -27.46993645 | U122: -134.6927374
A123: 31.72455642 | B123: 327.4549163 | C123: 327454.9163 | D123: -3.011205633 | E123: 112.3012408 | F123: -28.71335079 | G123: -137.232798 | H123: -31.72455642 | I123: -24.93155716 | J123: -324.024133146168i | K123: -7147.59117234195i | L123: 2492.04313579495-6075.85422370356i | M123: 56875 | N123: -0.268302214246335+0.654148043523973i | O123: 1+496.367574560689i | P123: 1+0.102872995939153i | Q123: 0.0058243483654477-0.0555179018758544i | R123: 0.393319946621684-0.526178029309595i | S123: -0.0269214678122366-0.0249009423473028i | T123: -28.71335079 | U123: -137.232798
A124: 33.69584562 | B124: 359.3813664 | C124: 359381.3664 | D124: -3.702857203 | E124: 110.5147481 | F124: -29.99298841 | G124: -139.7279866 | H124: -33.69584562 | I124: -29.21323855 | J124: -295.238722205396i | K124: -6512.61887217782i | L124: 2125.26264103979-5679.81580488003i | M124: 56875 | N124: -0.22881332359606+0.611509140861851i | O124: 1+544.762800311139i | P124: 1+0.112902986045792i | Q124: 0.0058053585419506-0.0505858793458372i | R124: 0.34509455895042-0.516953753874551i | S124: -0.0241471625752922-0.0204580136128199i | T124: -29.99298841 | U124: -139.7279866
A125: 35.71936623 | B125: 394.4206059 | C125: 394420.6059 | D125: -4.411837312 | E125: 108.844048 | F125: -31.30752892 | G125: -142.1562784 | H125: -35.71936623 | I125: -33.31223046 | J125: -269.010527836683i | K125: -5934.05576110332i | L125: 1805.23205671608-5289.50130066978i | M125: 56875 | N125: -0.194357694330554+0.569486495174915i | O125: 1+597.876500828015i | P125: 1+0.123910887805737i | Q125: 0.00578959283698381-0.0460919956147797i | R125: 0.298834513958826-0.503608523453775i | S125: -0.0214821916931375-0.016689567406967i | T125: -31.30752892 | U125: -142.1562784
A126: 37.79098727 | B126: 432.8761281 | C126: 432876.1281 | D126: -5.135882476 | E126: 107.2877752 | F126: -32.65510479 | G126: -144.4977592 | H126: -37.79098727 | I126: -37.20998397 | J126: -245.112373967755i | K126: -5406.89060222989i | L126: 1528.07204320698-4909.76385614264i | M126: 56875 | N126: -0.164517662969574+0.528602613296853i | O126: 1+656.168721576054i | P126: 1+0.135992046397945i | Q126: 0.00577650385804117-0.0419973297068071i | R126: 0.255173098914055-0.486638471214943i | S126: -0.0189635079332852-0.0135276577738456i | T126: -32.65510479 | U126: -144.4977592
A127: 39.90633513 | B127: 475.0810162 | C127: 475081.0162 | D127: -5.872933571 | E127: 105.8430185 | F127: -34.03340155 | G127: -146.7352394 | H127: -39.90633513 | I127: -40.89222083 | J127: -223.33726622247i | K127: -4926.55734314274i | L127: 1289.5893311186-4544.28637185931i | M127: 56875 | N127: -0.13884176723819+0.489254009381489i | O127: 1+720.144361884875i | P127: 1+0.149251103038619i | Q127: 0.00576563714832763-0.0382664177747721i | R127: 0.214593459161867-0.466636815215801i | S127: -0.0166192513002052-0.010902181516607i | T127: -34.03340155 | U127: -146.7352394
A128: 42.06091737 | B128: 521.4008288 | C128: 521400.8288 | D128: -6.621145277 | E128: 104.5057037 | F128: -35.4397721 | G128: -148.8546388 | H128: -42.06091737 | I128: -44.34893506 | J128: -203.496599034564i | K128: -4488.89556693891i | L128: 1085.52745975297-4195.7001449867i | M128: 56875 | N128: -0.116871741461254+0.451723978226606i | O128: 1+790.357548145439i | P128: 1+0.163802901333362i | Q128: 0.00575661540850457-0.0348669461010855i | R128: 0.17741810253418-0.444245366362337i | S128: -0.0144681514618167-0.0087433771395743i | T128: -35.4397721 | U128: -148.8546388
A129: 44.25023709 | B129: 572.2367659 | C129: 572236.7659 | D129: -7.378884548 | E129: 103.2709308 | F129: -36.87135255 | G129: -150.845144 | H129: -44.25023709 | I129: -47.57421315 | J129: -185.418522036463i | K129: -4090.11445668667i | L129: 911.749740578269-3865.73225097306i | M129: 56875 | N129: -0.0981622150603894+0.416198462908502i | O129: 1+867.416433387735i | P129: 1+0.179773481997545i | Q129: 0.00574912539712048-0.031769471341646i | R129: 0.143814267734539-0.420109293584919i | S129: -0.0125198439038043-0.00698416426662764i | T129: -36.87135255 | U129: -150.845144
A130: 46.46989055 | B130: 628.0291442 | C130: 628029.1442 | D130: -8.144721338 | E130: 102.133259 | F130: -38.32516921 | G130: -152.6991684 | H130: -46.46989055 | I130: -50.56590943 | J130: -168.946451573604i | K130: -3726.75996118244i | L130: 764.362273605413-3555.36094373829i | M130: 56875 | N130: -0.082293956933966+0.382782785718366i | O130: 1+951.98846481143i | P130: 1+0.197301174560694i | Q130: 0.00574290705499062-0.0289471655999374i | R130: 0.113811461215491-0.394839878667953i | S130: -0.0107758867097072-0.0055620479397695i | T130: -38.32516921 | U130: -152.6991684
A131: 48.71564382 | B131: 689.2612104 | C131: 689261.2104 | D131: -8.917414374 | E131: 101.0869397 | F131: -39.79822944 | G131: -154.4121651 | H131: -48.71564382 | I131: -53.32522544 | J131: -153.937714451737i | K131: -3395.68487761184i | L131: 639.787836531213-3264.96509339421i | M131: 56875 | N131: -0.068881830624669+0.351517737157956i | O131: 1+1044.80616489418i | P131: 1+0.216537795510691i | Q131: 0.0057377444759776-0.0263755841309538i | R131: 0.0873265026564656-0.368987706544173i | S131: -0.00923120913901995-0.00442044469260504i | T131: -39.79822944 | U131: -154.4121651
A132: 50.98348707 | B132: 756.4633276 | C132: 756463.3276 | D132: -9.695894172 | E132: 100.1261013 | F132: -41.2875929 | G132: -155.9823465 | H132: -50.98348707 | I132: -55.85624524 | J132: -140.262312169964i | K132: -3094.02159198449i | L132: =IMDIV(IMPRODUCT(IMDIV(IMPRODUCT(K132,IMSUM(Rz*10^3,J132)),IMSUM(K132,IMSUM(Rz*10^3,J132))),Ro_EA*10^3),IMSUM(IMDIV(IMPRODUCT(K132,IMSUM(Rz*10^3,J132)),IMSUM(K132,IMSUM(Rz*10^3,J132))),Ro_EA*10^3)) -> 534.801988408961-2994.45937367154i | M132: 56875 | N132: =IMPRODUCT(-gm_EA1*10^-6,L132,IMDIV(RFB_2*10^3,IMSUM(M132,RFB_2*10^3))) -> -0.0575786813688901+0.322394130698095i | O132: 1+1146.67347615089i | P132: 1+0.237649963255571i | Q132: =IMPRODUCT(K,IMDIV(P132,O132)) -> 0.00573345841071462-0.0240324536687414i | R132: 0.0641915662271709-0.343026623862612i | S132: -0.00787573176984089-0.00350940972296256i | T132: -41.2875929 | U132: -155.9823465
A133: 53.26966798 | B133: 830.2175681 | C133: 830217.5681 | D133: -10.47924494 | E133: 99.24489106 | F133: -42.79042304 | G133: -157.4103651 | H133: -53.26966798 | I133: -58.16547405 | J133: -127.801794935915i | K133: -2819.15724123342i | L133: 446.541780423959-2743.41122152402i | M133: 56875 | N133: -0.0480762739297571+0.295365395065016i | O133: 1+1258.47272449923i | P133: 1+0.26082054129246i | Q133: 0.00572990004302224-0.0218974795485569i | R133: 0.0441815868501483-0.317347263178281i | S133: -0.00669594912884346-0.00278583349141214i | T133: -42.79042304 | U133: -157.4103651
A134: 55.57070769 | B134: 911.1627561 | C134: 911162.7561 | D134: -11.26668652 | E134: 98.43758029 | F134: -44.30402117 | G134: -158.6989979 | H134: -55.57070769 | I134: -60.26141761 | J134: -116.448235710315i | K134: -2568.71108184519i | L134: 372.495814851825-2511.13856105237i | M134: 56875 | N134: -0.0401042223092806+0.270358095545078i | O134: 1+1381.17226154459i | P134: 1+0.286250222083705i | Q134: 0.00572694582295191-0.0199521699563679i | R134: 0.0270385873485534-0.292258091199042i | S134: -0.00567633458185264-0.00221322474477469i | T134: -44.30402117 | U134: -158.6989979
A135: 57.88340398 | B135: 1000 | C135: 1000000 | D135: -12.05755718 | E135: 97.69863981 | F135: -45.8258468 | G135: -159.8528675 | H135: -57.88340398 | I135: -62.15422771 | J135: -106.103295394597i | K135: -2340.51386899846i | L135: 310.482553031295-2296.7891376034i | M135: 56875 | N135: -0.0334276543076684+0.247280475375619i | O135: 1+1515.83485197844i | P135: 1+0.314159265358979i | Q135: 0.00572449317706821-0.0181796757859454i | R135: 0.0124916322872906-0.267991706369622i | S135: -0.00480049407132297-0.00176121051964396i | T135: -45.8258468 | U135: -159.8528675
A137: =ABS(H137) -> 0.8419218233 | B137: 35 | C137: =fc*1000 -> 35000 | D137: =20*LOG(IMABS(N137)) -> 4.911414816 | E137: =IF(180/PI()*IMARGUMENT(N137)>0,180/PI()*IMARGUMENT(N137),360+180/PI()*IMARGUMENT(N137)) -> 157.0405315 | F137: =T137 -> -5.753336639 | G137: =U137 -> -95.72247002 | H137: =D137+F137 -> -0.8419218233 | I137: =E137+G137 -> 61.31806149 | J137: -3031.52272555991i | K137: -66871.8248285275i | L137: =IMDIV(IMPRODUCT(IMDIV(IMPRODUCT(K137,IMSUM(Rz*10^3,J137)),IMSUM(K137,IMSUM(Rz*10^3,J137))),Ro_EA*10^3),IMSUM(IMDIV(IMPRODUCT(K137,IMSUM(Rz*10^3,J137)),IMSUM(K137,IMSUM(Rz*10^3,J137))),Ro_EA*10^3)) -> 15054.2249937871-6377.57486255491i | M137: =IF($E$1="Feedforward RC",IMDIV(IMPRODUCT(IMSUM(Rz_2*10^3,IMDIV(1,COMPLEX(0,2*PI()*$C137*Cz_2*10^-12))),RFB_1*10^3),IMSUM(IMSUM(Rz_2*10^3,IMDIV(1,COMPLEX(0,2*PI()*$C137*Cz_2*10^-12))),RFB_1*10^3)),RFB_1*10^3) -> 56875 | N137: =IMPRODUCT(-gm_EA1*10^-6,L137,IMDIV(RFB_2*10^3,IMSUM(M137,RFB_2*10^3))) -> -1.6207913264339+0.68663235903395i | O137: =COMPLEX(1,2*PI()*C137*1/(1/(Vreg/Iout_PreReg*Number_Cout*Co*10^-6)+(m_c*(1-Vreg/Vin_nom)-0.5)/(fsw*10^3*L_buck*10^-6*Number_Cout*Co*10^-6))) -> 1+53.0542198192454i | P137: =COMPLEX(1,2*PI()*C137*(ESR*10^-3*Co*10^-6)) -> 1+0.0109955742875643i | Q137: =IMPRODUCT(K,IMDIV(P137,O137)) -> 0.0154993758917437-0.519235064904244i | R137: =IMDIV(1,IMSUM(COMPLEX(1,2*PI()*C137/(wn*Qp)),IMPRODUCT(COMPLEX(0,2*PI()*C137/wn),COMPLEX(0,2*PI()*C137/wn)))) -> 0.98426400671493-0.128397224533482i | S137: =IMPRODUCT(Q137,R137) -> -0.0514128633973789-0.513054462256039i | T137: =20*LOG(IMABS(S137)) -> -5.753336639 | U137: =180/PI()*IMARGUMENT(S137) -> -95.72247002
D138: =20*LOG(IMABS((-gm_EA1*10^-6*Rz*10^3))) -> 22.34807769

Sheet Constants
A1: These values are all derived from the data sheet or lab measurements.
A2: PARAMETER | C2: MIN | D2: TYP | E2: MAX | F2: UNITS | G2: COMMENTS
A3: dead time | C3: - | D3: 15 | E3: - | F3: ns
A4: Icc | C4: - | D4: 0.02 | E4: - | F4: A
A5: Rds_On at 25°C | C5: - | D5: =Rds_ON_150/Rds_on_coeff_150 -> 0.142534815 | E5: - | F5: Ω
A6: Thermal coeff at 150C | C6: - | D6: =(150+40)*(1.34655999666222-0.667409045393858)/0.828125/(Rds_ON_150*1000)+0.667409045393858/0.828125 -> 1.523494453 | E6: -
A7: Minimum off time for regulation | C7: - | D7: 80 | E7: - | F7: ns
A8: Maximum Buck duty cycle | C8: - | D8: =(1/(fsw*10^3)-t_off_min*10^-9)*fsw*10^3 -> 0.824 | E8: -
A9: Lx SLEW rate | C9: - | D9: 0.9 | E9: - | F9: V/ns
A11: Buck Fet | B11: Vin < 5.5V | C11: =1.25*Rds_ON_min40_7V -> 0.1125 | D11: - | E11: =1.1429*Rds_ON_150_7V -> 0.217151 | F11: Ω
C12: - | D12: =(Rds_ON_150-Rds_ON_min40)/190 -> 0.0005507947368 | E12: - | F12: Ω/°C
B13: 5V ≤ Vin ≤ 7V | C13: =1.1667*Rds_ON_min40_7V -> 0.105003 | D13: - | E13: =1.0714*Rds_ON_150_7V -> 0.203566 | F13: Ω
C14: - | D14: =(E13-C13)/190 -> 0.0005187526316 | E14: - | F14: Ω/°C
B15: Vin > 7V | C15: 0.09 | D15: - | E15: 0.19 | F15: Ω
C16: - | D16: =(E15-C15)/190 -> 0.0005263157895 | E16: - | F16: Ω/°C
A17: VUC | C17: 0.503 | D17: - | E17: 0.3273 | F17: Ω
C18: - | D18: =(Rds_ON_VUC_150-Rds_ON_VUC_min40)/190 -> 0.0009247368421 | E18: - | F18: Ω/°C
A19: V5A | C19: 0.699 | D19: - | E19: 0.2402 | F19: Ω
C20: - | D20: =(Rds_ON_V5A_150-Rds_ON_V5A_min40)/190 -> 0.002414736842 | E20: - | F20: Ω/°C
A21: V5P1 | C21: 0.699 | D21: - | E21: 0.2402 | F21: Ω
C22: - | D22: =(Rds_ON_V5P1_150-Rds_ON_V5P1_min40)/190 -> 0.002414736842 | E22: - | F22: Ω/°C
A23: V5P2 | C23: 0.699 | D23: - | E23: 0.2402 | F23: Ω
C24: - | D24: =(Rds_ON_V5P2_150-Rds_ON_V5P2_min40)/190 -> 0.002414736842 | E24: - | F24: Ω/°C
A25: Adjust Boost Duty Cycle slope
A26: Duty at | B26: 3.8 | C26: - | D26: 0.6 | E26: -
A27: Duty at | B27: 6.5 | C27: - | D27: 0.29 | E27: -
A28: m | C28: - | D28: =(D26-D27)/(B26-B27) -> -0.1148148148 | E28: -
A29: b | C29: - | D29: =D26-D28*B26 -> 1.036296296 | E29: -
A32: VF, Temp. Coeff. | D32: -1.2
A33: RTHAVG | D33: 120
A34: VF, Temp. Coeff. | D34: -1
A35: RTHAVG | D35: 120
A41: C_Vripple | C41: =ROUNDUP(2*MAX(Pdiss!K23:BH23)/(8*Vripple*fsw),0) -> 1
A42: C Istep up | C42: =IF(Vin_min_transient>Vreg,ROUNDUP(L_buck*I_step^2/(2*V_transient*D_max_IC*(Vin_min_transient-Vreg)),0),ROUNDUP(L_buck*I_step^2/(2*V_transient*D_max_IC*(0.7)),0)) -> 
A43: C Istep down | C43: =ROUNDUP(L_buck*I_step^2/(2*V_transient*D_max_IC*Vreg),0) -> 1
A44: ESR =
A45: ESL = | C45: 1.8
A46: Co_tot_min | C46: =Pdiss!B45*Pdiss!B43 -> 40
A48: Vripple | C48: 0.02
A49: I Step | C49: 0.15
A50: V transient | C50: 0.1
A51: VIN min for transient | C51: =Vin_min -> 
